{"text_format":"1","workbook":"xlsx","n_sheets":10,"sheets":["Points","Accueil","Inscrits","1","2","3","4","Final","Classement","Feuil1"],"not_rendered":{"charts":0,"images":2,"macros":1,"external_links":0,"defined_names":66,"comments":5,"pivot_tables":0},"unopened":[],"bounds":{"document_bytes":16777216,"sheet_cells":100000,"rows_first":2000,"rows_last":500,"rows_between":2000,"halvings":0,"cell_chars":16384,"cell_head_chars":4096},"cells_cut":0,"cells_raw":0,"read":"whole","date_system":"1900"}

{"sheet":"Points","index":0,"n_rows":36,"n_cols":4,"rows_kept":36,"cut":false,"hidden":false,"merged":[]}
["Place","R1","D2","D3"]
[1,200,200,200]
[2,180,180,180]
[3,161,161,161]
[4,161,161,161]
[5,143,143,143]
[6,143,143,143]
[7,143,143,143]
[8,143,143,143]
[9,126,126,126]
[10,126,126,126]
[11,126,126,126]
[12,126,126,126]
[13,126,126,126]
[14,126,126,126]
[15,126,126,126]
[16,126,126,126]
[17,110,110,110]
[18,110,110,110]
[19,110,110,110]
[20,110,110,110]
[21,110,110,110]
[22,110,110,110]
[23,110,110,110]
[24,110,110,110]
[25,95,95,95]
[26,95,95,95]
[27,95,95,95]
[28,95,95,95]
[29,95,95,95]
[30,95,95,95]
[31,95,95,95]
[32,95,95,95]
["FNE",-50,-50,-50]
["FE",0,0,0]
["A",0,0,0]

{"sheet":"Accueil","index":1,"n_rows":128,"n_cols":7,"rows_kept":128,"cut":false,"hidden":false,"merged":[[1,2,1,6],[22,3,22,6],[23,3,23,6],[13,2,13,6]]}
["F"]
["A",null,"INFOS UTILES POUR CE TOURNOI"]
[0]
[1,null,"Comité Sportif","Isére Nord/Rhône",null,"SAISON","2017 / 2018"]
[2]
[3,null,"DATE","2018-04-15",null,"TOURNOI",5]
[4]
[5,null,"CLUB","Billard Club Lyonnais 8 Pool",null,"DIVISION","R1"]
[6]
[7,null,"VILLE DU CLUB","LYON",null,"NB JOUEURS",22]
[8]
[9,null,"Nbre de Billards",7,null,"CATEGORIE","MIXTE"]
[10]
[11,null,"DISTANCES DES MATCHS"]
[12]
[13,null,"Nb Parties Gagnantes\ndans les Poules\n(côté gagnant)",3,null,"Nb Parties Gagnantes\ndans les Poules\n(côté perdant)",3]
[14]
[15,null,"Nb Parties Gagnantes\nen 1/8 de finale",4,null,"Nb Parties Gagnantes\nen 1/4 de finale",4]
[16]
[17,null,"Nb Parties Gagnantes\nen 1/2 de finale",4,null,"Nb Parties Gagnantes\nen Finale",5]
[18]
[19]
[20,null,"Nom du fichier des Licenciés","Championnat FFB avec R3.xls"]
[21,null,"Chemin du fichier Licenciés","E:\\FFB\\Logiciel\\Championnat FFB avec R3.xls"]
[22]
[23]
[24]
[25]
[26]
[27]
[28]
[29]
[30]
[31]
[32]
[33]
[34]
[35]
[36]
[37]
[38]
[39]
[40]
[41]
[42]
[]
["Club"]
["Comité Sportif"]
["Ligue"]
[]
["Cantal/Haute-Loire"]
["Isére Nord/Rhône"]
["Isére Sud/Drôme"]
["Savoie/Haute-Savoie/Ain Est"]
["Ain Ouest"]
["Allier/Loire/Puy-de-Dôme"]
["U14"]
["U18"]
["U23"]
["FEMININ"]
["VETERAN"]
["MIXTE"]
["R1"]
[]
[]
[]
[]
["2016 / 2017"]
["2017 / 2018"]
["2018 / 2019"]
["2019 / 2020"]
["2020 / 2021"]
["F"]
["G"]
["H"]
["I"]
["J"]
["K"]
["L"]
["M"]
["N"]
["O"]
["P"]
["Q"]
[]
[]
[]
[]
[]
[]
[]
[]
[]
[]
[]
[]
[]
[]
[]
[]
[]
[]
[]
[]
[]
[]
[]
[]
[]
[]
[]
[]
[]
[]
[]
[]
[]
[]
[]
[]
[]
[]
[]
[]
[]
[]
[]
["DAMIENFFB8POOL"]

{"sheet":"Inscrits","index":2,"n_rows":34,"n_cols":12,"rows_kept":34,"cut":false,"hidden":false,"merged":[[0,11,1,11],[8,11,9,11],[16,11,18,11],[25,11,26,11]]}
["N° Tirage","Nom du Joueur","Classement","Club","N° Licence","Forfait\nNon Excusé","Forfait\nExcusé","Abandon",1,"X",null,1]
[1,{"$f":"IFERROR(VLOOKUP(E2,Feuil1!$A$2:$C$1800,2,FALSE),\"\")","v":"BENABDESSELAM YASSINE"},1,{"$f":"IFERROR(VLOOKUP(E2,Feuil1!$A$2:$C$1800,3,FALSE),\"\")","v":"BILLARD CLUB LYONNAIS 8 POOL"},"163592S","-","-","-",2,"-"]
[2,{"$f":"IFERROR(VLOOKUP(E3,Feuil1!$A$2:$C$1800,2,FALSE),\"\")","v":"BAILLY FABRICE"},2,{"$f":"IFERROR(VLOOKUP(E3,Feuil1!$A$2:$C$1800,3,FALSE),\"\")","v":"BILLARD CLUB LYONNAIS 8 POOL"},"126039R","-","-","-",3]
[3,{"$f":"IFERROR(VLOOKUP(E4,Feuil1!$A$2:$C$1800,2,FALSE),\"\")","v":"LAMRANI MEHDI"},3,{"$f":"IFERROR(VLOOKUP(E4,Feuil1!$A$2:$C$1800,3,FALSE),\"\")","v":"BILLARD CLUB PONTOIS"},"159769M","-","-","-",4]
[4,{"$f":"IFERROR(VLOOKUP(E5,Feuil1!$A$2:$C$1800,2,FALSE),\"\")","v":"IMTIASZ ASHH"},4,{"$f":"IFERROR(VLOOKUP(E5,Feuil1!$A$2:$C$1800,3,FALSE),\"\")","v":"BILLARD CLUB LYONNAIS 8 POOL"},"159700M","-","-","-",5]
[5,{"$f":"IFERROR(VLOOKUP(E6,Feuil1!$A$2:$C$1800,2,FALSE),\"\")","v":"DELORME STEPHANE"},5,{"$f":"IFERROR(VLOOKUP(E6,Feuil1!$A$2:$C$1800,3,FALSE),\"\")","v":"BILLARD CLUB LYONNAIS 8 POOL"},"163504X","-","-","-",6]
[6,{"$f":"IFERROR(VLOOKUP(E7,Feuil1!$A$2:$C$1800,2,FALSE),\"\")","v":"BERLIAT REGIS"},6,{"$f":"IFERROR(VLOOKUP(E7,Feuil1!$A$2:$C$1800,3,FALSE),\"\")","v":"BILLARD CLUB PONTOIS"},"137600I","-","-","-",7]
[7,{"$f":"IFERROR(VLOOKUP(E8,Feuil1!$A$2:$C$1800,2,FALSE),\"\")","v":"BRUN CHRISTOPHE"},7,{"$f":"IFERROR(VLOOKUP(E8,Feuil1!$A$2:$C$1800,3,FALSE),\"\")","v":"BILLARD CLUB PONTOIS"},"155902J","-","-","-",8]
[8,{"$f":"IFERROR(VLOOKUP(E9,Feuil1!$A$2:$C$1800,2,FALSE),\"\")","v":"FADILI YOUSSEF"},8,{"$f":"IFERROR(VLOOKUP(E9,Feuil1!$A$2:$C$1800,3,FALSE),\"\")","v":"BILLARD CLUB LYONNAIS 8 POOL"},"159685W","-","-","-",9,null,null,2]
[9,{"$f":"IFERROR(VLOOKUP(E10,Feuil1!$A$2:$C$1800,2,FALSE),\"\")","v":"ORENES LERMA JACKY"},9,{"$f":"IFERROR(VLOOKUP(E10,Feuil1!$A$2:$C$1800,3,FALSE),\"\")","v":"BILLARD CLUB PONTOIS"},"155904L","-","-","-",10]
[10,{"$f":"IFERROR(VLOOKUP(E11,Feuil1!$A$2:$C$1800,2,FALSE),\"\")","v":"PILLOT VINCENT"},10,{"$f":"IFERROR(VLOOKUP(E11,Feuil1!$A$2:$C$1800,3,FALSE),\"\")","v":"BILLARD CLUB PONTOIS"},"145348I","-","-","-",11]
[11,{"$f":"IFERROR(VLOOKUP(E12,Feuil1!$A$2:$C$1800,2,FALSE),\"\")","v":"PHONGSY PHOXAY"},11,{"$f":"IFERROR(VLOOKUP(E12,Feuil1!$A$2:$C$1800,3,FALSE),\"\")","v":"BILLARD CLUB LYONNAIS 8 POOL"},"153152V","-","-","-",12]
[12,{"$f":"IFERROR(VLOOKUP(E13,Feuil1!$A$2:$C$1800,2,FALSE),\"\")","v":"SCANDELLA CEDRIC"},12,{"$f":"IFERROR(VLOOKUP(E13,Feuil1!$A$2:$C$1800,3,FALSE),\"\")","v":"BILLARD CLUB LYONNAIS 8 POOL"},"153316Y","-","-","-",13]
[13,{"$f":"IFERROR(VLOOKUP(E14,Feuil1!$A$2:$C$1800,2,FALSE),\"\")","v":"NAVEL ANGELIQUE"},14,{"$f":"IFERROR(VLOOKUP(E14,Feuil1!$A$2:$C$1800,3,FALSE),\"\")","v":"BILLARD CLUB PONTOIS"},"162464R","-","-","-",14]
[14,{"$f":"IFERROR(VLOOKUP(E15,Feuil1!$A$2:$C$1800,2,FALSE),\"\")","v":"HASIMOVIC VLADIMIR"},15,{"$f":"IFERROR(VLOOKUP(E15,Feuil1!$A$2:$C$1800,3,FALSE),\"\")","v":"BILLARD CLUB LYONNAIS 8 POOL"},"164578P","-","-","-",15]
[15,{"$f":"IFERROR(VLOOKUP(E16,Feuil1!$A$2:$C$1800,2,FALSE),\"\")","v":"GOUTTE LYDIE"},16,{"$f":"IFERROR(VLOOKUP(E16,Feuil1!$A$2:$C$1800,3,FALSE),\"\")","v":"BILLARD CLUB PONTOIS"},"155903K","-","-","-",16]
[16,{"$f":"IFERROR(VLOOKUP(E17,Feuil1!$A$2:$C$1800,2,FALSE),\"\")","v":"BERLIAT PATRICIA"},17,{"$f":"IFERROR(VLOOKUP(E17,Feuil1!$A$2:$C$1800,3,FALSE),\"\")","v":"BILLARD CLUB PONTOIS"},"149474X","-","-","-",17,null,null,"OU"]
[17,{"$f":"IFERROR(VLOOKUP(E18,Feuil1!$A$2:$C$1800,2,FALSE),\"\")","v":"DECOUZON JEAN FRANCOIS"},18,{"$f":"IFERROR(VLOOKUP(E18,Feuil1!$A$2:$C$1800,3,FALSE),\"\")","v":"BILLARD CLUB LYONNAIS 8 POOL"},"164577N","-","-","-",18]
[18,{"$f":"IFERROR(VLOOKUP(E19,Feuil1!$A$2:$C$1800,2,FALSE),\"\")","v":"CARDON CECILE"},19,{"$f":"IFERROR(VLOOKUP(E19,Feuil1!$A$2:$C$1800,3,FALSE),\"\")","v":"BILLARD CLUB LYONNAIS 8 POOL"},"164576M","-","-","-",19]
[19,{"$f":"IFERROR(VLOOKUP(E20,Feuil1!$A$2:$C$1800,2,FALSE),\"\")","v":"GOGORA JACKIE"},20,{"$f":"IFERROR(VLOOKUP(E20,Feuil1!$A$2:$C$1800,3,FALSE),\"\")","v":"BILLARD CLUB LYONNAIS 8 POOL"},"162474C","-","-","-",20]
[20,{"$f":"IFERROR(VLOOKUP(E21,Feuil1!$A$2:$C$1800,2,FALSE),\"\")","v":"ROLET LILIAN"},22,{"$f":"IFERROR(VLOOKUP(E21,Feuil1!$A$2:$C$1800,3,FALSE),\"\")","v":"BILLARD CLUB LYONNAIS 8 POOL"},"145118M","-","-","-",21]
[21,{"$f":"IFERROR(VLOOKUP(E22,Feuil1!$A$2:$C$1800,2,FALSE),\"\")","v":"VALLET STEPHANE"},23,{"$f":"IFERROR(VLOOKUP(E22,Feuil1!$A$2:$C$1800,3,FALSE),\"\")","v":"BILLARD CLUB PONTOIS"},"151475X","-","-","-",22]
[22,{"$f":"IFERROR(VLOOKUP(E23,Feuil1!$A$2:$C$1800,2,FALSE),\"\")","v":"BOURJA MOUNIR"},24,{"$f":"IFERROR(VLOOKUP(E23,Feuil1!$A$2:$C$1800,3,FALSE),\"\")","v":"BILLARD CLUB LYONNAIS 8 POOL"},"164876N","-","-","-",23]
[23,{"$f":"IFERROR(VLOOKUP(E24,Feuil1!$A$2:$C$1800,2,FALSE),\"\")","v":"BLANC 1"},31,{"$f":"IFERROR(VLOOKUP(E24,Feuil1!$A$2:$C$1800,3,FALSE),\"\")","v":0},"0000bl1","-","-","-",24]
[24,{"$f":"IFERROR(VLOOKUP(E25,Feuil1!$A$2:$C$1800,2,FALSE),\"\")","v":"BLANC 2"},"NC",{"$f":"IFERROR(VLOOKUP(E25,Feuil1!$A$2:$C$1800,3,FALSE),\"\")","v":0},"0000BL2","-","-","-"]
[null,null,null,null,null,null,null,null,null,null,null,3]
[]
[null,null,{"$f":"IF(B28=\"\",\"\",VLOOKUP(B28,#REF!,3,FALSE))","v":""}]
[null,null,{"$f":"IF(B29=\"\",\"\",VLOOKUP(B29,#REF!,3,FALSE))","v":""}]
[null,null,{"$f":"IF(B30=\"\",\"\",VLOOKUP(B30,#REF!,3,FALSE))","v":""}]
[null,null,{"$f":"IF(B31=\"\",\"\",VLOOKUP(B31,#REF!,3,FALSE))","v":""}]
[null,null,{"$f":"IF(B32=\"\",\"\",VLOOKUP(B32,#REF!,3,FALSE))","v":""}]
[null,null,{"$f":"IF(B33=\"\",\"\",VLOOKUP(B33,#REF!,3,FALSE))","v":""}]
[null,null,{"$f":"IF(B34=\"\",\"\",VLOOKUP(B34,#REF!,3,FALSE))","v":""}]

{"sheet":"1","index":3,"n_rows":21,"n_cols":45,"rows_kept":21,"cut":false,"hidden":false,"merged":[[20,9,20,17],[12,1,12,2],[0,9,0,17],[1,42,1,45],[11,42,11,45],[10,20,10,21]]}
[null,null,null,null,null,null,null,null,null,{"$f":"\"(\"&Accueil!D16&\" manches côté gagnant)\"","v":"(3 manches côté gagnant)"}]
[null,null,null,null,null,null,null,null,null,null,null,null,null,null,null,null,null,null,null,null,null,null,null,null,null,null,null,null,null,null,null,null,null,null,null,null,null,null,null,null,null,null,"QUALIFIES"]
[null,null,null,null,null,null,null,null,null,null,"P1",1,{"$f":"IF(IF(ISNA(VLOOKUP(L3,Inscrits!$A$2:$C$25,2,FALSE)),\"\",VLOOKUP(L3,Inscrits!$A$2:$C$25,2,FALSE))=0,\"\",IF(ISNA(VLOOKUP(L3,Inscrits!$A$2:$C$25,2,FALSE)),\"\",VLOOKUP(L3,Inscrits!$A$2:$C$25,2,FALSE)))","v":"BENABDESSELAM YASSINE"},{"$f":"IF(IF(ISNA(VLOOKUP(L3,Inscrits!$A$2:$C$25,3,FALSE)),\"\",\"(\"&(VLOOKUP(L3,Inscrits!$A$2:$C$25,3,FALSE))&\")\")=\"()\",\"\",IF(ISNA(VLOOKUP(L3,Inscrits!$A$2:$C$25,3,FALSE)),\"\",\"(\"&(VLOOKUP(L3,Inscrits!$A$2:$C$25,3,FALSE))&\")\"))","v":"(1)"},null,null,"G1",null,null,null,null,null,null,null,null,null,null,null,"G","P","G","P","G","P","G","P","G","P","G","P","Ga",null,null,"NOM","Ga"]
[null,null,null,null,null,null,null,null,null,null,null,null,"Match 1 - Billard",null,null,null,{"$f":"M3","v":"BENABDESSELAM YASSINE"},{"$f":"N3","v":"(1)"},null,null,null,null,null,null,1,{"$f":"IF(U6=\"\",\"\",IF(U6=Q4,Q4,Q8))","v":""},null,{"$f":"M3","v":"BENABDESSELAM YASSINE"},{"$f":"IF(AB4=M3,IF(O5=\"F\",\"\",O3),0)","v":0},{"$f":"IF(AB4=M3,IF(O3=\"F\",\"\",O5),0)","v":0},{"$f":"IF(AB4=Q4,IF(S8=\"F\",\"\",S4),0)","v":0},{"$f":"IF(AB4=Q4,IF(S4=\"F\",\"\",S8),0)","v":0},{"$f":"IF(AB4=J4,IF(I8=\"F\",\"\",I4),0)","v":0},{"$f":"IF(AB4=J4,IF(I4=\"F\",\"\",I8),0)","v":0},{"$f":"IF(AB4=F6,IF(E10=\"F\",\"\",E6),0)","v":0},{"$f":"IF(AB4=F6,IF(E6=\"F\",\"\",E10),0)","v":0},{"$f":"IF(AB4=F20,IF(E16=\"F\",\"\",E20),0)","v":0},{"$f":"IF(AB4=F20,IF(E20=\"F\",\"\",E16),0)","v":0},{"$f":"SUM(AC4,AE4,AG4,AI4,AK4)","v":0},0,{"$f":"AM4-AN4","v":0},null,null,{"$f":"Z4","v":""},{"$f":"IF(AR4=\"\",\"\",(VLOOKUP(AR4,AB4:AO17,14,FALSE)))","v":""}]
[null,null,null,null,null,null,"G7",null,null,null,null,null,null,null,null,null,null,null,null,null,"G5",null,null,null,3,{"$f":"IF(B8=\"\",\"\",IF(B8=F6,F6,F10))","v":""},null,{"$f":"M5","v":0},{"$f":"IF(AB5=M5,IF(O3=\"F\",\"\",O5),0)","v":0},{"$f":"IF(AB5=M5,IF(O5=\"F\",\"\",O3),0)","v":0},{"$f":"IF(AB5=Q4,IF(S8=\"F\",\"\",S4),0)","v":0},{"$f":"IF(AB5=Q4,IF(S4=\"F\",\"\",S8),0)","v":0},{"$f":"IF(AB5=J4,IF(I8=\"F\",\"\",I4),0)","v":0},{"$f":"IF(AB5=J4,IF(I4=\"F\",\"\",I8),0)","v":0},{"$f":"IF(AB5=F6,IF(E10=\"F\",\"\",E6),0)","v":0},{"$f":"IF(AB5=F6,IF(E6=\"F\",\"\",E10),0)","v":0},{"$f":"IF(AB5=F20,IF(E16=\"F\",\"\",E20),0)","v":0},{"$f":"IF(AB5=F20,IF(E20=\"F\",\"\",E16),0)","v":0},0,0,{"$f":"AM5-AN5","v":0},null,null,{"$f":"Z14","v":""},{"$f":"IF(AR5=\"\",\"\",(VLOOKUP(AR5,AB4:AO17,14,FALSE)))","v":""}]
[null,null,null,null,null,{"$f":"J8","v":""},{"$f":"K8","v":""},null,null,"Match 7 - Billard",null,null,null,null,null,null,"Match 5 - Billard",null,null,null,{"$f":"IF(OR(S4=\"F\",S4=\"A\"),Q8,IF(OR(S8=\"F\",S8=\"A\"),Q4,IF(S4=S8,\"\",(IF(S4>S8,Q4,Q8)))))","v":""},{"$f":"IF(OR(S4=\"F\",S4=\"A\"),R8,IF(OR(S8=\"F\",S8=\"A\"),R4,IF(S4=S8,\"\",(IF(S4>S8,R4,R8)))))","v":""},"A",null,5,{"$f":"IF(B8=\"\",\"\",IF(B8=F6,F10,F6))","v":""},null,{"$f":"M7","v":"DECOUZON JEAN FRANCOIS"},{"$f":"IF(AB6=M7,IF(O9=\"F\",\"\",O7),0)","v":0},{"$f":"IF(AB6=M7,IF(O7=\"F\",\"\",O9),0)","v":0},{"$f":"IF(AB6=Q8,IF(S4=\"F\",\"\",S8),0)","v":0},{"$f":"IF(AB6=Q8,IF(S8=\"F\",\"\",S4),0)","v":0},{"$f":"IF(AB6=J8,IF(I4=\"F\",\"\",I8),0)","v":0},{"$f":"IF(AB6=J8,IF(I8=\"F\",\"\",I4),0)","v":0},{"$f":"IF(AB6=F6,IF(E10=\"F\",\"\",E6),0)","v":0},{"$f":"IF(AB6=F6,IF(E6=\"F\",\"\",E10),0)","v":0},{"$f":"IF(AB6=F20,IF(E16=\"F\",\"\",E20),0)","v":0},{"$f":"IF(AB6=F20,IF(E20=\"F\",\"\",E16),0)","v":0},0,0,{"$f":"AM6-AN6","v":0},null,null,{"$f":"Z5","v":""},{"$f":"IF(AR6=\"\",\"\",(VLOOKUP(AR6,AB4:AO17,14,FALSE)))","v":""}]
[null,null,"G9",null,null,null,null,null,null,null,null,17,{"$f":"IF(IF(ISNA(VLOOKUP(L7,Inscrits!$A$2:$C$25,2,FALSE)),\"\",VLOOKUP(L7,Inscrits!$A$2:$C$25,2,FALSE))=0,\"\",IF(ISNA(VLOOKUP(L7,Inscrits!$A$2:$C$25,2,FALSE)),\"\",VLOOKUP(L7,Inscrits!$A$2:$C$25,2,FALSE)))","v":"DECOUZON JEAN FRANCOIS"},{"$f":"IF(IF(ISNA(VLOOKUP(L7,Inscrits!$A$2:$C$25,3,FALSE)),\"\",\"(\"&(VLOOKUP(L7,Inscrits!$A$2:$C$25,3,FALSE))&\")\")=\"()\",\"\",IF(ISNA(VLOOKUP(L7,Inscrits!$A$2:$C$25,3,FALSE)),\"\",\"(\"&(VLOOKUP(L7,Inscrits!$A$2:$C$25,3,FALSE))&\")\"))","v":"(18)"},null,null,null,null,null,null,null,null,null,null,7,{"$f":"IF(F6=\"\",\"\",IF(F6=J4,J8,J4))","v":""},null,{"$f":"M9","v":"BERLIAT PATRICIA"},{"$f":"IF(AB7=M9,IF(O7=\"F\",\"\",O9),0)","v":0},{"$f":"IF(AB7=M9,IF(O9=\"F\",\"\",O7),0)","v":0},{"$f":"IF(AB7=Q8,IF(S4=\"F\",\"\",S8),0)","v":0},{"$f":"IF(AB7=Q8,IF(S8=\"F\",\"\",S4),0)","v":0},{"$f":"IF(AB7=J8,IF(I4=\"F\",\"\",I8),0)","v":0},{"$f":"IF(AB7=J8,IF(I8=\"F\",\"\",I4),0)","v":0},{"$f":"IF(AB7=F6,IF(E10=\"F\",\"\",E6),0)","v":0},{"$f":"IF(AB7=F6,IF(E6=\"F\",\"\",E10),0)","v":0},{"$f":"IF(AB7=F20,IF(E16=\"F\",\"\",E20),0)","v":0},{"$f":"IF(AB7=F20,IF(E20=\"F\",\"\",E16),0)","v":0},0,0,{"$f":"AM7-AN7","v":0},null,null,{"$f":"Z15","v":""},{"$f":"IF(AR7=\"\",\"\",(VLOOKUP(AR7,AB4:AO17,14,FALSE)))","v":""}]
["S",{"$f":"IF(OR(E6=\"F\",E6=\"A\"),F10,IF(OR(E10=\"F\",E10=\"A\"),F6,IF(E6=E10,\"\",(IF(E6>E10,F6,F10)))))","v":""},{"$f":"IF(OR(E6=\"F\",E6=\"A\"),G10,IF(OR(E10=\"F\",E10=\"A\"),G6,IF(E6=E10,\"\",(IF(E6>E10,G6,G10)))))","v":""},null,null,"Match 9 - Billard",null,null,null,{"$f":"IF(OR(AND(O7=\"F\",O9=\"F\"),AND(O7=\"A\",O9=\"A\")),M9,IF(OR(O7=\"F\",O7=\"A\"),M7,IF(OR(O9=\"F\",O9=\"A\"),M9,IF(O7=O9,\"\",(IF(O7<O9,M7,M9))))))","v":""},{"$f":"IF(OR(AND(O7=\"F\",O9=\"F\"),AND(O7=\"A\",O9=\"A\")),N9,IF(OR(O7=\"F\",O7=\"A\"),N7,IF(OR(O9=\"F\",O9=\"A\"),N9,IF(O7=O9,\"\",(IF(O7<O9,N7,N9))))))","v":""},null,"Match 2 - Billard",null,null,null,{"$f":"IF(OR(AND(O7=\"F\",O9=\"F\"),AND(O7=\"A\",O9=\"A\")),M7,IF(OR(O7=\"F\",O7=\"A\"),M9,IF(OR(O9=\"F\",O9=\"A\"),M7,IF(O7=O9,\"\",(IF(O7>O9,M7,M9))))))","v":""},{"$f":"IF(OR(AND(O7=\"F\",O9=\"F\"),AND(O7=\"A\",O9=\"A\")),N7,IF(OR(O7=\"F\",O7=\"A\"),N9,IF(OR(O9=\"F\",O9=\"A\"),N7,IF(O7=O9,\"\",(IF(O7>O9,N7,N9))))))","v":""}]
[null,null,null,null,null,null,null,null,null,null,"P2",16,{"$f":"IF(IF(ISNA(VLOOKUP(L9,Inscrits!$A$2:$C$25,2,FALSE)),\"\",VLOOKUP(L9,Inscrits!$A$2:$C$25,2,FALSE))=0,\"\",IF(ISNA(VLOOKUP(L9,Inscrits!$A$2:$C$25,2,FALSE)),\"\",VLOOKUP(L9,Inscrits!$A$2:$C$25,2,FALSE)))","v":"BERLIAT PATRICIA"},{"$f":"IF(IF(ISNA(VLOOKUP(L9,Inscrits!$A$2:$C$25,3,FALSE)),\"\",\"(\"&(VLOOKUP(L9,Inscrits!$A$2:$C$25,3,FALSE))&\")\")=\"()\",\"\",IF(ISNA(VLOOKUP(L9,Inscrits!$A$2:$C$25,3,FALSE)),\"\",\"(\"&(VLOOKUP(L9,Inscrits!$A$2:$C$25,3,FALSE))&\")\"))","v":"(17)"},null,null,"G2"]
[null,null,null,null,null,{"$f":"IF(OR(S14=\"F\",S14=\"A\"),Q14,IF(OR(S18=\"F\",S18=\"A\"),Q18,IF(S14=S18,\"\",(IF(S14<S18,Q14,Q18)))))","v":""},{"$f":"IF(OR(S14=\"F\",S14=\"A\"),R14,IF(OR(S18=\"F\",S18=\"A\"),R18,IF(S14=S18,\"\",(IF(S14<S18,R14,R18)))))","v":""}]
[null,null,null,null,null,null,"P6",null,null,null,null,null,null,null,null,null,null,null,null,null,"QUALIFIES"]
[null,null,null,null,null,null,null,null,null,null,null,null,null,null,null,null,null,null,null,null,null,null,null,null,null,null,null,null,null,null,null,null,null,null,null,null,null,null,null,null,null,null,"ELIMINES"]
[null,"QUALIFIES",null,null,null,null,null,null,null,null,"P3",9,{"$f":"IF(IF(ISNA(VLOOKUP(L13,Inscrits!$A$2:$C$25,2,FALSE)),\"\",VLOOKUP(L13,Inscrits!$A$2:$C$25,2,FALSE))=0,\"\",IF(ISNA(VLOOKUP(L13,Inscrits!$A$2:$C$25,2,FALSE)),\"\",VLOOKUP(L13,Inscrits!$A$2:$C$25,2,FALSE)))","v":"ORENES LERMA JACKY"},{"$f":"IF(IF(ISNA(VLOOKUP(L13,Inscrits!$A$2:$C$25,3,FALSE)),\"\",\"(\"&(VLOOKUP(L13,Inscrits!$A$2:$C$25,3,FALSE))&\")\")=\"()\",\"\",IF(ISNA(VLOOKUP(L13,Inscrits!$A$2:$C$25,3,FALSE)),\"\",\"(\"&(VLOOKUP(L13,Inscrits!$A$2:$C$25,3,FALSE))&\")\"))","v":"(9)"},null,null,"G3",null,null,null,null,null,null,null,null,null,null,null,"G","P","G","P","G","P","G","P","G","P","G","P","Ga",null,null,"NOM","Ga"]
[null,null,null,null,null,null,null,null,null,{"$f":"IF(OR(AND(O13=\"F\",O15=\"F\"),AND(O13=\"A\",O15=\"A\")),M15,IF(OR(O13=\"F\",O13=\"A\"),M13,IF(OR(O15=\"F\",O15=\"A\"),M15,IF(O13=O15,\"\",(IF(O13<O15,M13,M15))))))","v":"BLANC 2"},{"$f":"IF(OR(AND(O13=\"F\",O15=\"F\"),AND(O13=\"A\",O15=\"A\")),N15,IF(OR(O13=\"F\",O13=\"A\"),N13,IF(OR(O15=\"F\",O15=\"A\"),N15,IF(O13=O15,\"\",(IF(O13<O15,N13,N15))))))","v":"(NC)"},null,"Match 3 - Billard",null,null,null,{"$f":"IF(OR(AND(O13=\"F\",O15=\"F\"),AND(O13=\"A\",O15=\"A\")),M13,IF(OR(O13=\"F\",O13=\"A\"),M15,IF(OR(O15=\"F\",O15=\"A\"),M13,IF(O13=O15,\"\",(IF(O13>O15,M13,M15))))))","v":"ORENES LERMA JACKY"},{"$f":"IF(OR(AND(O13=\"F\",O15=\"F\"),AND(O13=\"A\",O15=\"A\")),N13,IF(OR(O13=\"F\",O13=\"A\"),N15,IF(OR(O15=\"F\",O15=\"A\"),N13,IF(O13=O15,\"\",(IF(O13>O15,N13,N15))))))","v":"(9)"},null,null,null,null,null,null,2,{"$f":"IF(U16=\"\",\"\",IF(U16=Q14,Q14,Q18))","v":""},null,{"$f":"M13","v":"ORENES LERMA JACKY"},{"$f":"IF(AB14=M13,IF(O15=\"F\",\"\",O13),0)","v":""},{"$f":"IF(AB14=M13,IF(O13=\"F\",\"\",O15),0)","v":"F"},{"$f":"IF(AB14=Q14,IF(S18=\"F\",\"\",S14),0)","v":0},{"$f":"IF(AB14=Q14,IF(S14=\"F\",\"\",S18),0)","v":0},{"$f":"IF(AB14=J14,IF(I18=\"F\",\"\",I14),0)","v":0},{"$f":"IF(AB14=J14,IF(I14=\"F\",\"\",I18),0)","v":0},{"$f":"IF(AB14=F16,IF(E20=\"F\",\"\",E16),0)","v":0},{"$f":"IF(AB14=F16,IF(E16=\"F\",\"\",E20),0)","v":0},{"$f":"IF(AB14=F10,IF(E6=\"F\",\"\",E10),0)","v":0},{"$f":"IF(AB14=F10,IF(E10=\"F\",\"\",E6),0)","v":0},{"$f":"SUM(AC14,AE14,AG14,AI14,AK14)","v":0},0,{"$f":"AM14-AN14","v":0},null,null,{"$f":"Z6","v":""},{"$f":"IF(AR14=\"\",\"\",(VLOOKUP(AR14,AB4:AO17,14,FALSE)))","v":""}]
[null,null,null,null,null,null,"G8",null,null,null,null,24,{"$f":"IF(IF(ISNA(VLOOKUP(L15,Inscrits!$A$2:$C$25,2,FALSE)),\"\",VLOOKUP(L15,Inscrits!$A$2:$C$25,2,FALSE))=0,\"\",IF(ISNA(VLOOKUP(L15,Inscrits!$A$2:$C$25,2,FALSE)),\"\",VLOOKUP(L15,Inscrits!$A$2:$C$25,2,FALSE)))","v":"BLANC 2"},{"$f":"IF(IF(ISNA(VLOOKUP(L15,Inscrits!$A$2:$C$25,3,FALSE)),\"\",\"(\"&(VLOOKUP(L15,Inscrits!$A$2:$C$25,3,FALSE))&\")\")=\"()\",\"\",IF(ISNA(VLOOKUP(L15,Inscrits!$A$2:$C$25,3,FALSE)),\"\",\"(\"&(VLOOKUP(L15,Inscrits!$A$2:$C$25,3,FALSE))&\")\"))","v":"(NC)"},"F",null,null,null,null,null,"G6",null,null,null,4,{"$f":"IF(B18=\"\",\"\",IF(B18=F16,F16,F20))","v":""},null,{"$f":"M15","v":"BLANC 2"},{"$f":"IF(AB15=M15,IF(O13=\"F\",\"\",O15),0)","v":"F"},{"$f":"IF(AB15=M15,IF(O15=\"F\",\"\",O13),0)","v":""},{"$f":"IF(AB15=Q14,IF(S18=\"F\",\"\",S14),0)","v":0},{"$f":"IF(AB15=Q14,IF(S14=\"F\",\"\",S18),0)","v":0},{"$f":"IF(AB15=J14,IF(I18=\"F\",\"\",I14),0)","v":0},{"$f":"IF(AB15=J14,IF(I14=\"F\",\"\",I18),0)","v":0},{"$f":"IF(AB15=F16,IF(E20=\"F\",\"\",E16),0)","v":"F"},{"$f":"IF(AB15=F16,IF(E16=\"F\",\"\",E20),0)","v":""},{"$f":"IF(AB15=F10,IF(E6=\"F\",\"\",E10),0)","v":0},{"$f":"IF(AB15=F10,IF(E10=\"F\",\"\",E6),0)","v":0},0,0,{"$f":"AM15-AN15","v":0},null,null,{"$f":"Z16","v":""},{"$f":"IF(AR15=\"\",\"\",(VLOOKUP(AR15,AB4:AO17,14,FALSE)))","v":""}]
[null,null,null,null,"F",{"$f":"J14","v":"BLANC 2"},{"$f":"K14","v":"(NC)"},null,null,"Match 8 - Billard",null,null,null,null,null,null,"Match 6 - Billard",null,null,null,{"$f":"IF(OR(S14=\"F\",S14=\"A\"),Q18,IF(OR(S18=\"F\",S18=\"A\"),Q14,IF(S14=S18,\"\",(IF(S14>S18,Q14,Q18)))))","v":""},{"$f":"IF(OR(S14=\"F\",S14=\"A\"),R18,IF(OR(S18=\"F\",S18=\"A\"),R14,IF(S14=S18,\"\",(IF(S14>S18,R14,R18)))))","v":""},"B",null,6,{"$f":"IF(B18=\"\",\"\",IF(B18=F16,F20,F16))","v":""},null,{"$f":"M17","v":0},{"$f":"IF(AB16=M17,IF(O19=\"F\",\"\",O17),0)","v":0},{"$f":"IF(AB16=M17,IF(O17=\"F\",\"\",O19),0)","v":0},{"$f":"IF(AB16=Q18,IF(S14=\"F\",\"\",S18),0)","v":0},{"$f":"IF(AB16=Q18,IF(S18=\"F\",\"\",S14),0)","v":0},{"$f":"IF(AB16=J18,IF(I14=\"F\",\"\",I18),0)","v":0},{"$f":"IF(AB16=J18,IF(I18=\"F\",\"\",I14),0)","v":0},{"$f":"IF(AB16=F16,IF(E20=\"F\",\"\",E16),0)","v":0},{"$f":"IF(AB16=F16,IF(E16=\"F\",\"\",E20),0)","v":0},{"$f":"IF(AB16=F10,IF(E6=\"F\",\"\",E10),0)","v":0},{"$f":"IF(AB16=F10,IF(E10=\"F\",\"\",E6),0)","v":0},0,0,{"$f":"AM16-AN16","v":0}]
[null,null,"G10",null,null,null,null,null,null,null,null,null,null,null,null,null,null,null,null,null,null,null,null,null,8,{"$f":"IF(F16=\"\",\"\",IF(F16=J14,J18,J14))","v":0},null,{"$f":"M19","v":"FADILI YOUSSEF"},{"$f":"IF(AB17=M19,IF(O17=\"F\",\"\",O19),0)","v":0},{"$f":"IF(AB17=M19,IF(O19=\"F\",\"\",O17),0)","v":0},{"$f":"IF(AB17=Q18,IF(S14=\"F\",\"\",S18),0)","v":0},{"$f":"IF(AB17=Q18,IF(S18=\"F\",\"\",S14),0)","v":0},{"$f":"IF(AB17=J18,IF(I14=\"F\",\"\",I18),0)","v":0},{"$f":"IF(AB17=J18,IF(I18=\"F\",\"\",I14),0)","v":0},{"$f":"IF(AB17=F16,IF(E20=\"F\",\"\",E16),0)","v":0},{"$f":"IF(AB17=F16,IF(E16=\"F\",\"\",E20),0)","v":0},{"$f":"IF(AB17=F10,IF(E6=\"F\",\"\",E10),0)","v":0},{"$f":"IF(AB17=F10,IF(E10=\"F\",\"\",E6),0)","v":0},0,{"$f":"SUM(AD17,AF17,AH17,AJ17,AL17)","v":0},{"$f":"AM17-AN17","v":0}]
["T",{"$f":"IF(OR(E16=\"F\",E16=\"A\"),F20,IF(OR(E20=\"F\",E20=\"A\"),F16,IF(E16=E20,\"\",(IF(E16>E20,F16,F20)))))","v":""},{"$f":"IF(OR(E16=\"F\",E16=\"A\"),G20,IF(OR(E20=\"F\",E20=\"A\"),G16,IF(E16=E20,\"\",(IF(E16>E20,G16,G20)))))","v":""},null,null,"Match 10 - Billard",null,null,null,null,null,null,"Match 4 - Billard",null,null,null,{"$f":"M19","v":"FADILI YOUSSEF"},{"$f":"N19","v":"(8)"}]
[null,null,null,null,null,null,null,null,null,null,"P4",8,{"$f":"IF(IF(ISNA(VLOOKUP(L19,Inscrits!$A$2:$C$25,2,FALSE)),\"\",VLOOKUP(L19,Inscrits!$A$2:$C$25,2,FALSE))=0,\"\",IF(ISNA(VLOOKUP(L19,Inscrits!$A$2:$C$25,2,FALSE)),\"\",VLOOKUP(L19,Inscrits!$A$2:$C$25,2,FALSE)))","v":"FADILI YOUSSEF"},{"$f":"IF(IF(ISNA(VLOOKUP(L19,Inscrits!$A$2:$C$25,3,FALSE)),\"\",\"(\"&(VLOOKUP(L19,Inscrits!$A$2:$C$25,3,FALSE))&\")\")=\"()\",\"\",IF(ISNA(VLOOKUP(L19,Inscrits!$A$2:$C$25,3,FALSE)),\"\",\"(\"&(VLOOKUP(L19,Inscrits!$A$2:$C$25,3,FALSE))&\")\"))","v":"(8)"},null,null,"G4"]
[null,null,null,null,null,{"$f":"IF(OR(S4=\"F\",S4=\"A\"),Q4,IF(OR(S8=\"F\",S8=\"A\"),Q8,IF(S4=S8,\"\",(IF(S4<S8,Q4,Q8)))))","v":""},{"$f":"IF(OR(S4=\"F\",S4=\"A\"),R4,IF(OR(S8=\"F\",S8=\"A\"),R8,IF(S4=S8,\"\",(IF(S4<S8,R4,R8)))))","v":""}]
[null,null,null,null,null,null,"P5",null,null,{"$f":"\"(\"&Accueil!G16&\" manches côté perdant)\"","v":"(3 manches côté perdant)"}]

{"sheet":"2","index":4,"n_rows":21,"n_cols":45,"rows_kept":21,"cut":false,"hidden":false,"merged":[[1,42,1,45],[11,42,11,45],[20,9,20,17],[0,9,0,17],[12,1,12,2],[10,20,10,21]]}
[null,null,null,null,null,null,null,null,null,{"$f":"\"(\"&Accueil!D16&\" manches côté gagnant)\"","v":"(3 manches côté gagnant)"}]
[null,null,null,null,null,null,null,null,null,null,null,null,null,null,null,null,null,null,null,null,null,null,null,null,null,null,null,null,null,null,null,null,null,null,null,null,null,null,null,null,null,null,"QUALIFIES"]
[null,null,null,null,null,null,null,null,null,null,"P1",5,{"$f":"IF(IF(ISNA(VLOOKUP(L3,Inscrits!$A$2:$C$25,2,FALSE)),\"\",VLOOKUP(L3,Inscrits!$A$2:$C$25,2,FALSE))=0,\"\",IF(ISNA(VLOOKUP(L3,Inscrits!$A$2:$C$25,2,FALSE)),\"\",VLOOKUP(L3,Inscrits!$A$2:$C$25,2,FALSE)))","v":"DELORME STEPHANE"},{"$f":"IF(IF(ISNA(VLOOKUP(L3,Inscrits!$A$2:$C$25,3,FALSE)),\"\",\"(\"&(VLOOKUP(L3,Inscrits!$A$2:$C$25,3,FALSE))&\")\")=\"()\",\"\",IF(ISNA(VLOOKUP(L3,Inscrits!$A$2:$C$25,3,FALSE)),\"\",\"(\"&(VLOOKUP(L3,Inscrits!$A$2:$C$25,3,FALSE))&\")\"))","v":"(5)"},null,null,"G1",null,null,null,null,null,null,null,null,null,null,null,"G","P","G","P","G","P","G","P","G","P","G","P","Ga",null,null,"NOM","Ga"]
[null,null,null,null,null,null,null,null,null,null,null,null,"Match 1 - Billard",null,null,null,{"$f":"M3","v":"DELORME STEPHANE"},{"$f":"N3","v":"(5)"},null,null,null,null,null,null,1,{"$f":"IF(U6=\"\",\"\",IF(U6=Q4,Q4,Q8))","v":""},null,{"$f":"M3","v":"DELORME STEPHANE"},{"$f":"IF(AB4=M3,IF(O5=\"F\",\"\",O3),0)","v":0},{"$f":"IF(AB4=M3,IF(O3=\"F\",\"\",O5),0)","v":0},{"$f":"IF(AB4=Q4,IF(S8=\"F\",\"\",S4),0)","v":0},{"$f":"IF(AB4=Q4,IF(S4=\"F\",\"\",S8),0)","v":0},{"$f":"IF(AB4=J4,IF(I8=\"F\",\"\",I4),0)","v":0},{"$f":"IF(AB4=J4,IF(I4=\"F\",\"\",I8),0)","v":0},{"$f":"IF(AB4=F6,IF(E10=\"F\",\"\",E6),0)","v":0},{"$f":"IF(AB4=F6,IF(E6=\"F\",\"\",E10),0)","v":0},{"$f":"IF(AB4=F20,IF(E16=\"F\",\"\",E20),0)","v":0},{"$f":"IF(AB4=F20,IF(E20=\"F\",\"\",E16),0)","v":0},{"$f":"SUM(AC4,AE4,AG4,AI4,AK4)","v":0},0,{"$f":"AM4-AN4","v":0},null,null,{"$f":"Z4","v":""},{"$f":"IF(AR4=\"\",\"\",(VLOOKUP(AR4,AB4:AO17,14,FALSE)))","v":""}]
[null,null,null,null,null,null,"G7",null,null,null,null,null,null,null,null,null,null,null,null,null,"G5",null,null,null,3,{"$f":"IF(B8=\"\",\"\",IF(B8=F6,F6,F10))","v":""},null,{"$f":"M5","v":0},{"$f":"IF(AB5=M5,IF(O3=\"F\",\"\",O5),0)","v":0},{"$f":"IF(AB5=M5,IF(O5=\"F\",\"\",O3),0)","v":0},{"$f":"IF(AB5=Q4,IF(S8=\"F\",\"\",S4),0)","v":0},{"$f":"IF(AB5=Q4,IF(S4=\"F\",\"\",S8),0)","v":0},{"$f":"IF(AB5=J4,IF(I8=\"F\",\"\",I4),0)","v":0},{"$f":"IF(AB5=J4,IF(I4=\"F\",\"\",I8),0)","v":0},{"$f":"IF(AB5=F6,IF(E10=\"F\",\"\",E6),0)","v":0},{"$f":"IF(AB5=F6,IF(E6=\"F\",\"\",E10),0)","v":0},{"$f":"IF(AB5=F20,IF(E16=\"F\",\"\",E20),0)","v":0},{"$f":"IF(AB5=F20,IF(E20=\"F\",\"\",E16),0)","v":0},0,0,{"$f":"AM5-AN5","v":0},null,null,{"$f":"Z14","v":""},{"$f":"IF(AR5=\"\",\"\",(VLOOKUP(AR5,AB4:AO17,14,FALSE)))","v":""}]
[null,null,null,null,null,{"$f":"J8","v":""},{"$f":"K8","v":""},null,null,"Match 7 - Billard",null,null,null,null,null,null,"Match 5 - Billard",null,null,null,{"$f":"IF(OR(S4=\"F\",S4=\"A\"),Q8,IF(OR(S8=\"F\",S8=\"A\"),Q4,IF(S4=S8,\"\",(IF(S4>S8,Q4,Q8)))))","v":""},{"$f":"IF(OR(S4=\"F\",S4=\"A\"),R8,IF(OR(S8=\"F\",S8=\"A\"),R4,IF(S4=S8,\"\",(IF(S4>S8,R4,R8)))))","v":""},"C",null,5,{"$f":"IF(B8=\"\",\"\",IF(B8=F6,F10,F6))","v":""},null,{"$f":"M7","v":"VALLET STEPHANE"},{"$f":"IF(AB6=M7,IF(O9=\"F\",\"\",O7),0)","v":0},{"$f":"IF(AB6=M7,IF(O7=\"F\",\"\",O9),0)","v":0},{"$f":"IF(AB6=Q8,IF(S4=\"F\",\"\",S8),0)","v":0},{"$f":"IF(AB6=Q8,IF(S8=\"F\",\"\",S4),0)","v":0},{"$f":"IF(AB6=J8,IF(I4=\"F\",\"\",I8),0)","v":0},{"$f":"IF(AB6=J8,IF(I8=\"F\",\"\",I4),0)","v":0},{"$f":"IF(AB6=F6,IF(E10=\"F\",\"\",E6),0)","v":0},{"$f":"IF(AB6=F6,IF(E6=\"F\",\"\",E10),0)","v":0},{"$f":"IF(AB6=F20,IF(E16=\"F\",\"\",E20),0)","v":0},{"$f":"IF(AB6=F20,IF(E20=\"F\",\"\",E16),0)","v":0},0,0,{"$f":"AM6-AN6","v":0},null,null,{"$f":"Z5","v":""},{"$f":"IF(AR6=\"\",\"\",(VLOOKUP(AR6,AB4:AO17,14,FALSE)))","v":""}]
[null,null,"G9",null,null,null,null,null,null,null,null,21,{"$f":"IF(IF(ISNA(VLOOKUP(L7,Inscrits!$A$2:$C$25,2,FALSE)),\"\",VLOOKUP(L7,Inscrits!$A$2:$C$25,2,FALSE))=0,\"\",IF(ISNA(VLOOKUP(L7,Inscrits!$A$2:$C$25,2,FALSE)),\"\",VLOOKUP(L7,Inscrits!$A$2:$C$25,2,FALSE)))","v":"VALLET STEPHANE"},{"$f":"IF(IF(ISNA(VLOOKUP(L7,Inscrits!$A$2:$C$25,3,FALSE)),\"\",\"(\"&(VLOOKUP(L7,Inscrits!$A$2:$C$25,3,FALSE))&\")\")=\"()\",\"\",IF(ISNA(VLOOKUP(L7,Inscrits!$A$2:$C$25,3,FALSE)),\"\",\"(\"&(VLOOKUP(L7,Inscrits!$A$2:$C$25,3,FALSE))&\")\"))","v":"(23)"},null,null,null,null,null,null,null,null,null,null,7,{"$f":"IF(F6=\"\",\"\",IF(F6=J4,J8,J4))","v":""},null,{"$f":"M9","v":"SCANDELLA CEDRIC"},{"$f":"IF(AB7=M9,IF(O7=\"F\",\"\",O9),0)","v":0},{"$f":"IF(AB7=M9,IF(O9=\"F\",\"\",O7),0)","v":0},{"$f":"IF(AB7=Q8,IF(S4=\"F\",\"\",S8),0)","v":0},{"$f":"IF(AB7=Q8,IF(S8=\"F\",\"\",S4),0)","v":0},{"$f":"IF(AB7=J8,IF(I4=\"F\",\"\",I8),0)","v":0},{"$f":"IF(AB7=J8,IF(I8=\"F\",\"\",I4),0)","v":0},{"$f":"IF(AB7=F6,IF(E10=\"F\",\"\",E6),0)","v":0},{"$f":"IF(AB7=F6,IF(E6=\"F\",\"\",E10),0)","v":0},{"$f":"IF(AB7=F20,IF(E16=\"F\",\"\",E20),0)","v":0},{"$f":"IF(AB7=F20,IF(E20=\"F\",\"\",E16),0)","v":0},0,0,{"$f":"AM7-AN7","v":0},null,null,{"$f":"Z15","v":""},{"$f":"IF(AR7=\"\",\"\",(VLOOKUP(AR7,AB4:AO17,14,FALSE)))","v":""}]
["U",{"$f":"IF(OR(E6=\"F\",E6=\"A\"),F10,IF(OR(E10=\"F\",E10=\"A\"),F6,IF(E6=E10,\"\",(IF(E6>E10,F6,F10)))))","v":""},{"$f":"IF(OR(E6=\"F\",E6=\"A\"),G10,IF(OR(E10=\"F\",E10=\"A\"),G6,IF(E6=E10,\"\",(IF(E6>E10,G6,G10)))))","v":""},null,null,"Match 9 - Billard",null,null,null,{"$f":"IF(OR(AND(O7=\"F\",O9=\"F\"),AND(O7=\"A\",O9=\"A\")),M9,IF(OR(O7=\"F\",O7=\"A\"),M7,IF(OR(O9=\"F\",O9=\"A\"),M9,IF(O7=O9,\"\",(IF(O7<O9,M7,M9))))))","v":""},{"$f":"IF(OR(AND(O7=\"F\",O9=\"F\"),AND(O7=\"A\",O9=\"A\")),N9,IF(OR(O7=\"F\",O7=\"A\"),N7,IF(OR(O9=\"F\",O9=\"A\"),N9,IF(O7=O9,\"\",(IF(O7<O9,N7,N9))))))","v":""},null,"Match 2 - Billard",null,null,null,{"$f":"IF(OR(AND(O7=\"F\",O9=\"F\"),AND(O7=\"A\",O9=\"A\")),M7,IF(OR(O7=\"F\",O7=\"A\"),M9,IF(OR(O9=\"F\",O9=\"A\"),M7,IF(O7=O9,\"\",(IF(O7>O9,M7,M9))))))","v":""},{"$f":"IF(OR(AND(O7=\"F\",O9=\"F\"),AND(O7=\"A\",O9=\"A\")),N7,IF(OR(O7=\"F\",O7=\"A\"),N9,IF(OR(O9=\"F\",O9=\"A\"),N7,IF(O7=O9,\"\",(IF(O7>O9,N7,N9))))))","v":""}]
[null,null,null,null,null,null,null,null,null,null,"P2",12,{"$f":"IF(IF(ISNA(VLOOKUP(L9,Inscrits!$A$2:$C$25,2,FALSE)),\"\",VLOOKUP(L9,Inscrits!$A$2:$C$25,2,FALSE))=0,\"\",IF(ISNA(VLOOKUP(L9,Inscrits!$A$2:$C$25,2,FALSE)),\"\",VLOOKUP(L9,Inscrits!$A$2:$C$25,2,FALSE)))","v":"SCANDELLA CEDRIC"},{"$f":"IF(IF(ISNA(VLOOKUP(L9,Inscrits!$A$2:$C$25,3,FALSE)),\"\",\"(\"&(VLOOKUP(L9,Inscrits!$A$2:$C$25,3,FALSE))&\")\")=\"()\",\"\",IF(ISNA(VLOOKUP(L9,Inscrits!$A$2:$C$25,3,FALSE)),\"\",\"(\"&(VLOOKUP(L9,Inscrits!$A$2:$C$25,3,FALSE))&\")\"))","v":"(12)"},null,null,"G2"]
[null,null,null,null,null,{"$f":"IF(OR(S14=\"F\",S14=\"A\"),Q14,IF(OR(S18=\"F\",S18=\"A\"),Q18,IF(S14=S18,\"\",(IF(S14<S18,Q14,Q18)))))","v":""},{"$f":"IF(OR(S14=\"F\",S14=\"A\"),R14,IF(OR(S18=\"F\",S18=\"A\"),R18,IF(S14=S18,\"\",(IF(S14<S18,R14,R18)))))","v":""}]
[null,null,null,null,null,null,"P6",null,null,null,null,null,null,null,null,null,null,null,null,null,"QUALIFIES"]
[null,null,null,null,null,null,null,null,null,null,null,null,null,null,null,null,null,null,null,null,null,null,null,null,null,null,null,null,null,null,null,null,null,null,null,null,null,null,null,null,null,null,"ELIMINES"]
[null,"QUALIFIES",null,null,null,null,null,null,null,null,"P3",13,{"$f":"IF(IF(ISNA(VLOOKUP(L13,Inscrits!$A$2:$C$25,2,FALSE)),\"\",VLOOKUP(L13,Inscrits!$A$2:$C$25,2,FALSE))=0,\"\",IF(ISNA(VLOOKUP(L13,Inscrits!$A$2:$C$25,2,FALSE)),\"\",VLOOKUP(L13,Inscrits!$A$2:$C$25,2,FALSE)))","v":"NAVEL ANGELIQUE"},{"$f":"IF(IF(ISNA(VLOOKUP(L13,Inscrits!$A$2:$C$25,3,FALSE)),\"\",\"(\"&(VLOOKUP(L13,Inscrits!$A$2:$C$25,3,FALSE))&\")\")=\"()\",\"\",IF(ISNA(VLOOKUP(L13,Inscrits!$A$2:$C$25,3,FALSE)),\"\",\"(\"&(VLOOKUP(L13,Inscrits!$A$2:$C$25,3,FALSE))&\")\"))","v":"(14)"},null,null,"G3",null,null,null,null,null,null,null,null,null,null,null,"G","P","G","P","G","P","G","P","G","P","G","P","Ga",null,null,"NOM","Ga"]
[null,null,null,null,null,null,null,null,null,{"$f":"IF(OR(AND(O13=\"F\",O15=\"F\"),AND(O13=\"A\",O15=\"A\")),M15,IF(OR(O13=\"F\",O13=\"A\"),M13,IF(OR(O15=\"F\",O15=\"A\"),M15,IF(O13=O15,\"\",(IF(O13<O15,M13,M15))))))","v":""},{"$f":"IF(OR(AND(O13=\"F\",O15=\"F\"),AND(O13=\"A\",O15=\"A\")),N15,IF(OR(O13=\"F\",O13=\"A\"),N13,IF(OR(O15=\"F\",O15=\"A\"),N15,IF(O13=O15,\"\",(IF(O13<O15,N13,N15))))))","v":""},null,"Match 3 - Billard",null,null,null,{"$f":"IF(OR(AND(O13=\"F\",O15=\"F\"),AND(O13=\"A\",O15=\"A\")),M13,IF(OR(O13=\"F\",O13=\"A\"),M15,IF(OR(O15=\"F\",O15=\"A\"),M13,IF(O13=O15,\"\",(IF(O13>O15,M13,M15))))))","v":""},{"$f":"IF(OR(AND(O13=\"F\",O15=\"F\"),AND(O13=\"A\",O15=\"A\")),N13,IF(OR(O13=\"F\",O13=\"A\"),N15,IF(OR(O15=\"F\",O15=\"A\"),N13,IF(O13=O15,\"\",(IF(O13>O15,N13,N15))))))","v":""},null,null,null,null,null,null,2,{"$f":"IF(U16=\"\",\"\",IF(U16=Q14,Q14,Q18))","v":""},null,{"$f":"M13","v":"NAVEL ANGELIQUE"},{"$f":"IF(AB14=M13,IF(O15=\"F\",\"\",O13),0)","v":0},{"$f":"IF(AB14=M13,IF(O13=\"F\",\"\",O15),0)","v":0},{"$f":"IF(AB14=Q14,IF(S18=\"F\",\"\",S14),0)","v":0},{"$f":"IF(AB14=Q14,IF(S14=\"F\",\"\",S18),0)","v":0},{"$f":"IF(AB14=J14,IF(I18=\"F\",\"\",I14),0)","v":0},{"$f":"IF(AB14=J14,IF(I14=\"F\",\"\",I18),0)","v":0},{"$f":"IF(AB14=F16,IF(E20=\"F\",\"\",E16),0)","v":0},{"$f":"IF(AB14=F16,IF(E16=\"F\",\"\",E20),0)","v":0},{"$f":"IF(AB14=F10,IF(E6=\"F\",\"\",E10),0)","v":0},{"$f":"IF(AB14=F10,IF(E10=\"F\",\"\",E6),0)","v":0},{"$f":"SUM(AC14,AE14,AG14,AI14,AK14)","v":0},0,{"$f":"AM14-AN14","v":0},null,null,{"$f":"Z6","v":""},{"$f":"IF(AR14=\"\",\"\",(VLOOKUP(AR14,AB4:AO17,14,FALSE)))","v":""}]
[null,null,null,null,null,null,"G8",null,null,null,null,20,{"$f":"IF(IF(ISNA(VLOOKUP(L15,Inscrits!$A$2:$C$25,2,FALSE)),\"\",VLOOKUP(L15,Inscrits!$A$2:$C$25,2,FALSE))=0,\"\",IF(ISNA(VLOOKUP(L15,Inscrits!$A$2:$C$25,2,FALSE)),\"\",VLOOKUP(L15,Inscrits!$A$2:$C$25,2,FALSE)))","v":"ROLET LILIAN"},{"$f":"IF(IF(ISNA(VLOOKUP(L15,Inscrits!$A$2:$C$25,3,FALSE)),\"\",\"(\"&(VLOOKUP(L15,Inscrits!$A$2:$C$25,3,FALSE))&\")\")=\"()\",\"\",IF(ISNA(VLOOKUP(L15,Inscrits!$A$2:$C$25,3,FALSE)),\"\",\"(\"&(VLOOKUP(L15,Inscrits!$A$2:$C$25,3,FALSE))&\")\"))","v":"(22)"},null,null,null,null,null,null,"G6",null,null,null,4,{"$f":"IF(B18=\"\",\"\",IF(B18=F16,F16,F20))","v":""},null,{"$f":"M15","v":"ROLET LILIAN"},{"$f":"IF(AB15=M15,IF(O13=\"F\",\"\",O15),0)","v":0},{"$f":"IF(AB15=M15,IF(O15=\"F\",\"\",O13),0)","v":0},{"$f":"IF(AB15=Q14,IF(S18=\"F\",\"\",S14),0)","v":0},{"$f":"IF(AB15=Q14,IF(S14=\"F\",\"\",S18),0)","v":0},{"$f":"IF(AB15=J14,IF(I18=\"F\",\"\",I14),0)","v":0},{"$f":"IF(AB15=J14,IF(I14=\"F\",\"\",I18),0)","v":0},{"$f":"IF(AB15=F16,IF(E20=\"F\",\"\",E16),0)","v":0},{"$f":"IF(AB15=F16,IF(E16=\"F\",\"\",E20),0)","v":0},{"$f":"IF(AB15=F10,IF(E6=\"F\",\"\",E10),0)","v":0},{"$f":"IF(AB15=F10,IF(E10=\"F\",\"\",E6),0)","v":0},0,0,{"$f":"AM15-AN15","v":0},null,null,{"$f":"Z16","v":""},{"$f":"IF(AR15=\"\",\"\",(VLOOKUP(AR15,AB4:AO17,14,FALSE)))","v":""}]
[null,null,null,null,null,{"$f":"J14","v":""},{"$f":"K14","v":""},null,null,"Match 8 - Billard",null,null,null,null,null,null,"Match 6 - Billard",null,null,null,{"$f":"IF(OR(S14=\"F\",S14=\"A\"),Q18,IF(OR(S18=\"F\",S18=\"A\"),Q14,IF(S14=S18,\"\",(IF(S14>S18,Q14,Q18)))))","v":""},{"$f":"IF(OR(S14=\"F\",S14=\"A\"),R18,IF(OR(S18=\"F\",S18=\"A\"),R14,IF(S14=S18,\"\",(IF(S14>S18,R14,R18)))))","v":""},"D",null,6,{"$f":"IF(B18=\"\",\"\",IF(B18=F16,F20,F16))","v":""},null,{"$f":"M17","v":0},{"$f":"IF(AB16=M17,IF(O19=\"F\",\"\",O17),0)","v":0},{"$f":"IF(AB16=M17,IF(O17=\"F\",\"\",O19),0)","v":0},{"$f":"IF(AB16=Q18,IF(S14=\"F\",\"\",S18),0)","v":0},{"$f":"IF(AB16=Q18,IF(S18=\"F\",\"\",S14),0)","v":0},{"$f":"IF(AB16=J18,IF(I14=\"F\",\"\",I18),0)","v":0},{"$f":"IF(AB16=J18,IF(I18=\"F\",\"\",I14),0)","v":0},{"$f":"IF(AB16=F16,IF(E20=\"F\",\"\",E16),0)","v":0},{"$f":"IF(AB16=F16,IF(E16=\"F\",\"\",E20),0)","v":0},{"$f":"IF(AB16=F10,IF(E6=\"F\",\"\",E10),0)","v":0},{"$f":"IF(AB16=F10,IF(E10=\"F\",\"\",E6),0)","v":0},0,0,{"$f":"AM16-AN16","v":0}]
[null,null,"G10",null,null,null,null,null,null,null,null,null,null,null,null,null,null,null,null,null,null,null,null,null,8,{"$f":"IF(F16=\"\",\"\",IF(F16=J14,J18,J14))","v":""},null,{"$f":"M19","v":"IMTIASZ ASHH"},{"$f":"IF(AB17=M19,IF(O17=\"F\",\"\",O19),0)","v":0},{"$f":"IF(AB17=M19,IF(O19=\"F\",\"\",O17),0)","v":0},{"$f":"IF(AB17=Q18,IF(S14=\"F\",\"\",S18),0)","v":0},{"$f":"IF(AB17=Q18,IF(S18=\"F\",\"\",S14),0)","v":0},{"$f":"IF(AB17=J18,IF(I14=\"F\",\"\",I18),0)","v":0},{"$f":"IF(AB17=J18,IF(I18=\"F\",\"\",I14),0)","v":0},{"$f":"IF(AB17=F16,IF(E20=\"F\",\"\",E16),0)","v":0},{"$f":"IF(AB17=F16,IF(E16=\"F\",\"\",E20),0)","v":0},{"$f":"IF(AB17=F10,IF(E6=\"F\",\"\",E10),0)","v":0},{"$f":"IF(AB17=F10,IF(E10=\"F\",\"\",E6),0)","v":0},0,0,{"$f":"AM17-AN17","v":0}]
["V",{"$f":"IF(OR(E16=\"F\",E16=\"A\"),F20,IF(OR(E20=\"F\",E20=\"A\"),F16,IF(E16=E20,\"\",(IF(E16>E20,F16,F20)))))","v":""},{"$f":"IF(OR(E16=\"F\",E16=\"A\"),G20,IF(OR(E20=\"F\",E20=\"A\"),G16,IF(E16=E20,\"\",(IF(E16>E20,G16,G20)))))","v":""},null,null,"Match 10 - Billard",null,null,null,null,null,null,"Match 4 - Billard",null,null,null,{"$f":"M19","v":"IMTIASZ ASHH"},{"$f":"N19","v":"(4)"}]
[null,null,null,null,null,null,null,null,null,null,"P4",4,{"$f":"IF(IF(ISNA(VLOOKUP(L19,Inscrits!$A$2:$C$25,2,FALSE)),\"\",VLOOKUP(L19,Inscrits!$A$2:$C$25,2,FALSE))=0,\"\",IF(ISNA(VLOOKUP(L19,Inscrits!$A$2:$C$25,2,FALSE)),\"\",VLOOKUP(L19,Inscrits!$A$2:$C$25,2,FALSE)))","v":"IMTIASZ ASHH"},{"$f":"IF(IF(ISNA(VLOOKUP(L19,Inscrits!$A$2:$C$25,3,FALSE)),\"\",\"(\"&(VLOOKUP(L19,Inscrits!$A$2:$C$25,3,FALSE))&\")\")=\"()\",\"\",IF(ISNA(VLOOKUP(L19,Inscrits!$A$2:$C$25,3,FALSE)),\"\",\"(\"&(VLOOKUP(L19,Inscrits!$A$2:$C$25,3,FALSE))&\")\"))","v":"(4)"},null,null,"G4"]
[null,null,null,null,null,{"$f":"IF(OR(S4=\"F\",S4=\"A\"),Q4,IF(OR(S8=\"F\",S8=\"A\"),Q8,IF(S4=S8,\"\",(IF(S4<S8,Q4,Q8)))))","v":""},{"$f":"IF(OR(S4=\"F\",S4=\"A\"),R4,IF(OR(S8=\"F\",S8=\"A\"),R8,IF(S4=S8,\"\",(IF(S4<S8,R4,R8)))))","v":""}]
[null,null,null,null,null,null,"P5",null,null,{"$f":"\"(\"&Accueil!G16&\" manches côté perdant)\"","v":"(3 manches côté perdant)"}]

{"sheet":"3","index":5,"n_rows":21,"n_cols":45,"rows_kept":21,"cut":false,"hidden":false,"merged":[[1,42,1,45],[11,42,11,45],[20,9,20,17],[0,9,0,17],[12,1,12,2],[10,20,10,21]]}
[null,null,null,null,null,null,null,null,null,{"$f":"\"(\"&Accueil!D16&\" manches côté gagnant)\"","v":"(3 manches côté gagnant)"}]
[null,null,null,null,null,null,null,null,null,null,null,null,null,null,null,null,null,null,null,null,null,null,null,null,null,null,null,null,null,null,null,null,null,null,null,null,null,null,null,null,null,null,"QUALIFIES"]
[null,null,null,null,null,null,null,null,null,null,"P1",3,{"$f":"IF(IF(ISNA(VLOOKUP(L3,Inscrits!$A$2:$C$25,2,FALSE)),\"\",VLOOKUP(L3,Inscrits!$A$2:$C$25,2,FALSE))=0,\"\",IF(ISNA(VLOOKUP(L3,Inscrits!$A$2:$C$25,2,FALSE)),\"\",VLOOKUP(L3,Inscrits!$A$2:$C$25,2,FALSE)))","v":"LAMRANI MEHDI"},{"$f":"IF(IF(ISNA(VLOOKUP(L3,Inscrits!$A$2:$C$25,3,FALSE)),\"\",\"(\"&(VLOOKUP(L3,Inscrits!$A$2:$C$25,3,FALSE))&\")\")=\"()\",\"\",IF(ISNA(VLOOKUP(L3,Inscrits!$A$2:$C$25,3,FALSE)),\"\",\"(\"&(VLOOKUP(L3,Inscrits!$A$2:$C$25,3,FALSE))&\")\"))","v":"(3)"},null,null,"G1",null,null,null,null,null,null,null,null,null,null,null,"G","P","G","P","G","P","G","P","G","P","G","P","Ga",null,null,"NOM","Ga"]
[null,null,null,null,null,null,null,null,null,null,null,null,"Match 1 - Billard",null,null,null,{"$f":"M3","v":"LAMRANI MEHDI"},{"$f":"N3","v":"(3)"},null,null,null,null,null,null,1,{"$f":"IF(U6=\"\",\"\",IF(U6=Q4,Q4,Q8))","v":""},null,{"$f":"M3","v":"LAMRANI MEHDI"},{"$f":"IF(AB4=M3,IF(O5=\"F\",\"\",O3),0)","v":0},{"$f":"IF(AB4=M3,IF(O3=\"F\",\"\",O5),0)","v":0},{"$f":"IF(AB4=Q4,IF(S8=\"F\",\"\",S4),0)","v":0},{"$f":"IF(AB4=Q4,IF(S4=\"F\",\"\",S8),0)","v":0},{"$f":"IF(AB4=J4,IF(I8=\"F\",\"\",I4),0)","v":0},{"$f":"IF(AB4=J4,IF(I4=\"F\",\"\",I8),0)","v":0},{"$f":"IF(AB4=F6,IF(E10=\"F\",\"\",E6),0)","v":0},{"$f":"IF(AB4=F6,IF(E6=\"F\",\"\",E10),0)","v":0},{"$f":"IF(AB4=F20,IF(E16=\"F\",\"\",E20),0)","v":0},{"$f":"IF(AB4=F20,IF(E20=\"F\",\"\",E16),0)","v":0},{"$f":"SUM(AC4,AE4,AG4,AI4,AK4)","v":0},0,{"$f":"AM4-AN4","v":0},null,null,{"$f":"Z4","v":""},{"$f":"IF(AR4=\"\",\"\",(VLOOKUP(AR4,AB4:AO17,14,FALSE)))","v":""}]
[null,null,null,null,null,null,"G7",null,null,null,null,null,null,null,null,null,null,null,null,null,"G5",null,null,null,3,{"$f":"IF(B8=\"\",\"\",IF(B8=F6,F6,F10))","v":""},null,{"$f":"M5","v":0},{"$f":"IF(AB5=M5,IF(O3=\"F\",\"\",O5),0)","v":0},{"$f":"IF(AB5=M5,IF(O5=\"F\",\"\",O3),0)","v":0},{"$f":"IF(AB5=Q4,IF(S8=\"F\",\"\",S4),0)","v":0},{"$f":"IF(AB5=Q4,IF(S4=\"F\",\"\",S8),0)","v":0},{"$f":"IF(AB5=J4,IF(I8=\"F\",\"\",I4),0)","v":0},{"$f":"IF(AB5=J4,IF(I4=\"F\",\"\",I8),0)","v":0},{"$f":"IF(AB5=F6,IF(E10=\"F\",\"\",E6),0)","v":0},{"$f":"IF(AB5=F6,IF(E6=\"F\",\"\",E10),0)","v":0},{"$f":"IF(AB5=F20,IF(E16=\"F\",\"\",E20),0)","v":0},{"$f":"IF(AB5=F20,IF(E20=\"F\",\"\",E16),0)","v":0},0,0,{"$f":"AM5-AN5","v":0},null,null,{"$f":"Z14","v":""},{"$f":"IF(AR5=\"\",\"\",(VLOOKUP(AR5,AB4:AO17,14,FALSE)))","v":""}]
[null,null,null,null,null,{"$f":"J8","v":""},{"$f":"K8","v":""},null,null,"Match 7 - Billard",null,null,null,null,null,null,"Match 5 - Billard",null,null,null,{"$f":"IF(OR(S4=\"F\",S4=\"A\"),Q8,IF(OR(S8=\"F\",S8=\"A\"),Q4,IF(S4=S8,\"\",(IF(S4>S8,Q4,Q8)))))","v":""},{"$f":"IF(OR(S4=\"F\",S4=\"A\"),R8,IF(OR(S8=\"F\",S8=\"A\"),R4,IF(S4=S8,\"\",(IF(S4>S8,R4,R8)))))","v":""},"E",null,5,{"$f":"IF(B8=\"\",\"\",IF(B8=F6,F10,F6))","v":""},null,{"$f":"M7","v":"GOGORA JACKIE"},{"$f":"IF(AB6=M7,IF(O9=\"F\",\"\",O7),0)","v":0},{"$f":"IF(AB6=M7,IF(O7=\"F\",\"\",O9),0)","v":0},{"$f":"IF(AB6=Q8,IF(S4=\"F\",\"\",S8),0)","v":0},{"$f":"IF(AB6=Q8,IF(S8=\"F\",\"\",S4),0)","v":0},{"$f":"IF(AB6=J8,IF(I4=\"F\",\"\",I8),0)","v":0},{"$f":"IF(AB6=J8,IF(I8=\"F\",\"\",I4),0)","v":0},{"$f":"IF(AB6=F6,IF(E10=\"F\",\"\",E6),0)","v":0},{"$f":"IF(AB6=F6,IF(E6=\"F\",\"\",E10),0)","v":0},{"$f":"IF(AB6=F20,IF(E16=\"F\",\"\",E20),0)","v":0},{"$f":"IF(AB6=F20,IF(E20=\"F\",\"\",E16),0)","v":0},0,0,{"$f":"AM6-AN6","v":0},null,null,{"$f":"Z5","v":""},{"$f":"IF(AR6=\"\",\"\",(VLOOKUP(AR6,AB4:AO17,14,FALSE)))","v":""}]
[null,null,"G9",null,null,null,null,null,null,null,null,19,{"$f":"IF(IF(ISNA(VLOOKUP(L7,Inscrits!$A$2:$C$25,2,FALSE)),\"\",VLOOKUP(L7,Inscrits!$A$2:$C$25,2,FALSE))=0,\"\",IF(ISNA(VLOOKUP(L7,Inscrits!$A$2:$C$25,2,FALSE)),\"\",VLOOKUP(L7,Inscrits!$A$2:$C$25,2,FALSE)))","v":"GOGORA JACKIE"},{"$f":"IF(IF(ISNA(VLOOKUP(L7,Inscrits!$A$2:$C$25,3,FALSE)),\"\",\"(\"&(VLOOKUP(L7,Inscrits!$A$2:$C$25,3,FALSE))&\")\")=\"()\",\"\",IF(ISNA(VLOOKUP(L7,Inscrits!$A$2:$C$25,3,FALSE)),\"\",\"(\"&(VLOOKUP(L7,Inscrits!$A$2:$C$25,3,FALSE))&\")\"))","v":"(20)"},null,null,null,null,null,null,null,null,null,null,7,{"$f":"IF(F6=\"\",\"\",IF(F6=J4,J8,J4))","v":""},null,{"$f":"M9","v":"HASIMOVIC VLADIMIR"},{"$f":"IF(AB7=M9,IF(O7=\"F\",\"\",O9),0)","v":0},{"$f":"IF(AB7=M9,IF(O9=\"F\",\"\",O7),0)","v":0},{"$f":"IF(AB7=Q8,IF(S4=\"F\",\"\",S8),0)","v":0},{"$f":"IF(AB7=Q8,IF(S8=\"F\",\"\",S4),0)","v":0},{"$f":"IF(AB7=J8,IF(I4=\"F\",\"\",I8),0)","v":0},{"$f":"IF(AB7=J8,IF(I8=\"F\",\"\",I4),0)","v":0},{"$f":"IF(AB7=F6,IF(E10=\"F\",\"\",E6),0)","v":0},{"$f":"IF(AB7=F6,IF(E6=\"F\",\"\",E10),0)","v":0},{"$f":"IF(AB7=F20,IF(E16=\"F\",\"\",E20),0)","v":0},{"$f":"IF(AB7=F20,IF(E20=\"F\",\"\",E16),0)","v":0},0,0,{"$f":"AM7-AN7","v":0},null,null,{"$f":"Z15","v":""},{"$f":"IF(AR7=\"\",\"\",(VLOOKUP(AR7,AB4:AO17,14,FALSE)))","v":""}]
["W",{"$f":"IF(OR(E6=\"F\",E6=\"A\"),F10,IF(OR(E10=\"F\",E10=\"A\"),F6,IF(E6=E10,\"\",(IF(E6>E10,F6,F10)))))","v":""},{"$f":"IF(OR(E6=\"F\",E6=\"A\"),G10,IF(OR(E10=\"F\",E10=\"A\"),G6,IF(E6=E10,\"\",(IF(E6>E10,G6,G10)))))","v":""},null,null,"Match 9 - Billard",null,null,null,{"$f":"IF(OR(AND(O7=\"F\",O9=\"F\"),AND(O7=\"A\",O9=\"A\")),M9,IF(OR(O7=\"F\",O7=\"A\"),M7,IF(OR(O9=\"F\",O9=\"A\"),M9,IF(O7=O9,\"\",(IF(O7<O9,M7,M9))))))","v":""},{"$f":"IF(OR(AND(O7=\"F\",O9=\"F\"),AND(O7=\"A\",O9=\"A\")),N9,IF(OR(O7=\"F\",O7=\"A\"),N7,IF(OR(O9=\"F\",O9=\"A\"),N9,IF(O7=O9,\"\",(IF(O7<O9,N7,N9))))))","v":""},null,"Match 2 - Billard",null,null,null,{"$f":"IF(OR(AND(O7=\"F\",O9=\"F\"),AND(O7=\"A\",O9=\"A\")),M7,IF(OR(O7=\"F\",O7=\"A\"),M9,IF(OR(O9=\"F\",O9=\"A\"),M7,IF(O7=O9,\"\",(IF(O7>O9,M7,M9))))))","v":""},{"$f":"IF(OR(AND(O7=\"F\",O9=\"F\"),AND(O7=\"A\",O9=\"A\")),N7,IF(OR(O7=\"F\",O7=\"A\"),N9,IF(OR(O9=\"F\",O9=\"A\"),N7,IF(O7=O9,\"\",(IF(O7>O9,N7,N9))))))","v":""}]
[null,null,null,null,null,null,null,null,null,null,"P2",14,{"$f":"IF(IF(ISNA(VLOOKUP(L9,Inscrits!$A$2:$C$25,2,FALSE)),\"\",VLOOKUP(L9,Inscrits!$A$2:$C$25,2,FALSE))=0,\"\",IF(ISNA(VLOOKUP(L9,Inscrits!$A$2:$C$25,2,FALSE)),\"\",VLOOKUP(L9,Inscrits!$A$2:$C$25,2,FALSE)))","v":"HASIMOVIC VLADIMIR"},{"$f":"IF(IF(ISNA(VLOOKUP(L9,Inscrits!$A$2:$C$25,3,FALSE)),\"\",\"(\"&(VLOOKUP(L9,Inscrits!$A$2:$C$25,3,FALSE))&\")\")=\"()\",\"\",IF(ISNA(VLOOKUP(L9,Inscrits!$A$2:$C$25,3,FALSE)),\"\",\"(\"&(VLOOKUP(L9,Inscrits!$A$2:$C$25,3,FALSE))&\")\"))","v":"(15)"},null,null,"G2"]
[null,null,null,null,null,{"$f":"IF(OR(S14=\"F\",S14=\"A\"),Q14,IF(OR(S18=\"F\",S18=\"A\"),Q18,IF(S14=S18,\"\",(IF(S14<S18,Q14,Q18)))))","v":""},{"$f":"IF(OR(S14=\"F\",S14=\"A\"),R14,IF(OR(S18=\"F\",S18=\"A\"),R18,IF(S14=S18,\"\",(IF(S14<S18,R14,R18)))))","v":""}]
[null,null,null,null,null,null,"P6",null,null,null,null,null,null,null,null,null,null,null,null,null,"QUALIFIES"]
[null,null,null,null,null,null,null,null,null,null,null,null,null,null,null,null,null,null,null,null,null,null,null,null,null,null,null,null,null,null,null,null,null,null,null,null,null,null,null,null,null,null,"ELIMINES"]
[null,"QUALIFIES",null,null,null,null,null,null,null,null,"P3",11,{"$f":"IF(IF(ISNA(VLOOKUP(L13,Inscrits!$A$2:$C$25,2,FALSE)),\"\",VLOOKUP(L13,Inscrits!$A$2:$C$25,2,FALSE))=0,\"\",IF(ISNA(VLOOKUP(L13,Inscrits!$A$2:$C$25,2,FALSE)),\"\",VLOOKUP(L13,Inscrits!$A$2:$C$25,2,FALSE)))","v":"PHONGSY PHOXAY"},{"$f":"IF(IF(ISNA(VLOOKUP(L13,Inscrits!$A$2:$C$25,3,FALSE)),\"\",\"(\"&(VLOOKUP(L13,Inscrits!$A$2:$C$25,3,FALSE))&\")\")=\"()\",\"\",IF(ISNA(VLOOKUP(L13,Inscrits!$A$2:$C$25,3,FALSE)),\"\",\"(\"&(VLOOKUP(L13,Inscrits!$A$2:$C$25,3,FALSE))&\")\"))","v":"(11)"},null,null,"G3",null,null,null,null,null,null,null,null,null,null,null,"G","P","G","P","G","P","G","P","G","P","G","P","Ga",null,null,"NOM","Ga"]
[null,null,null,null,null,null,null,null,null,{"$f":"IF(OR(AND(O13=\"F\",O15=\"F\"),AND(O13=\"A\",O15=\"A\")),M15,IF(OR(O13=\"F\",O13=\"A\"),M13,IF(OR(O15=\"F\",O15=\"A\"),M15,IF(O13=O15,\"\",(IF(O13<O15,M13,M15))))))","v":""},{"$f":"IF(OR(AND(O13=\"F\",O15=\"F\"),AND(O13=\"A\",O15=\"A\")),N15,IF(OR(O13=\"F\",O13=\"A\"),N13,IF(OR(O15=\"F\",O15=\"A\"),N15,IF(O13=O15,\"\",(IF(O13<O15,N13,N15))))))","v":""},null,"Match 3 - Billard",null,null,null,{"$f":"IF(OR(AND(O13=\"F\",O15=\"F\"),AND(O13=\"A\",O15=\"A\")),M13,IF(OR(O13=\"F\",O13=\"A\"),M15,IF(OR(O15=\"F\",O15=\"A\"),M13,IF(O13=O15,\"\",(IF(O13>O15,M13,M15))))))","v":""},{"$f":"IF(OR(AND(O13=\"F\",O15=\"F\"),AND(O13=\"A\",O15=\"A\")),N13,IF(OR(O13=\"F\",O13=\"A\"),N15,IF(OR(O15=\"F\",O15=\"A\"),N13,IF(O13=O15,\"\",(IF(O13>O15,N13,N15))))))","v":""},null,null,null,null,null,null,2,{"$f":"IF(U16=\"\",\"\",IF(U16=Q14,Q14,Q18))","v":""},null,{"$f":"M13","v":"PHONGSY PHOXAY"},{"$f":"IF(AB14=M13,IF(O15=\"F\",\"\",O13),0)","v":0},{"$f":"IF(AB14=M13,IF(O13=\"F\",\"\",O15),0)","v":0},{"$f":"IF(AB14=Q14,IF(S18=\"F\",\"\",S14),0)","v":0},{"$f":"IF(AB14=Q14,IF(S14=\"F\",\"\",S18),0)","v":0},{"$f":"IF(AB14=J14,IF(I18=\"F\",\"\",I14),0)","v":0},{"$f":"IF(AB14=J14,IF(I14=\"F\",\"\",I18),0)","v":0},{"$f":"IF(AB14=F16,IF(E20=\"F\",\"\",E16),0)","v":0},{"$f":"IF(AB14=F16,IF(E16=\"F\",\"\",E20),0)","v":0},{"$f":"IF(AB14=F10,IF(E6=\"F\",\"\",E10),0)","v":0},{"$f":"IF(AB14=F10,IF(E10=\"F\",\"\",E6),0)","v":0},{"$f":"SUM(AC14,AE14,AG14,AI14,AK14)","v":0},0,{"$f":"AM14-AN14","v":0},null,null,{"$f":"Z6","v":""},{"$f":"IF(AR14=\"\",\"\",(VLOOKUP(AR14,AB4:AO17,14,FALSE)))","v":""}]
[null,null,null,null,null,null,"G8",null,null,null,null,22,{"$f":"IF(IF(ISNA(VLOOKUP(L15,Inscrits!$A$2:$C$25,2,FALSE)),\"\",VLOOKUP(L15,Inscrits!$A$2:$C$25,2,FALSE))=0,\"\",IF(ISNA(VLOOKUP(L15,Inscrits!$A$2:$C$25,2,FALSE)),\"\",VLOOKUP(L15,Inscrits!$A$2:$C$25,2,FALSE)))","v":"BOURJA MOUNIR"},{"$f":"IF(IF(ISNA(VLOOKUP(L15,Inscrits!$A$2:$C$25,3,FALSE)),\"\",\"(\"&(VLOOKUP(L15,Inscrits!$A$2:$C$25,3,FALSE))&\")\")=\"()\",\"\",IF(ISNA(VLOOKUP(L15,Inscrits!$A$2:$C$25,3,FALSE)),\"\",\"(\"&(VLOOKUP(L15,Inscrits!$A$2:$C$25,3,FALSE))&\")\"))","v":"(24)"},null,null,null,null,null,null,"G6",null,null,null,4,{"$f":"IF(B18=\"\",\"\",IF(B18=F16,F16,F20))","v":""},null,{"$f":"M15","v":"BOURJA MOUNIR"},{"$f":"IF(AB15=M15,IF(O13=\"F\",\"\",O15),0)","v":0},{"$f":"IF(AB15=M15,IF(O15=\"F\",\"\",O13),0)","v":0},{"$f":"IF(AB15=Q14,IF(S18=\"F\",\"\",S14),0)","v":0},{"$f":"IF(AB15=Q14,IF(S14=\"F\",\"\",S18),0)","v":0},{"$f":"IF(AB15=J14,IF(I18=\"F\",\"\",I14),0)","v":0},{"$f":"IF(AB15=J14,IF(I14=\"F\",\"\",I18),0)","v":0},{"$f":"IF(AB15=F16,IF(E20=\"F\",\"\",E16),0)","v":0},{"$f":"IF(AB15=F16,IF(E16=\"F\",\"\",E20),0)","v":0},{"$f":"IF(AB15=F10,IF(E6=\"F\",\"\",E10),0)","v":0},{"$f":"IF(AB15=F10,IF(E10=\"F\",\"\",E6),0)","v":0},0,0,{"$f":"AM15-AN15","v":0},null,null,{"$f":"Z16","v":""},{"$f":"IF(AR15=\"\",\"\",(VLOOKUP(AR15,AB4:AO17,14,FALSE)))","v":""}]
[null,null,null,null,null,{"$f":"J14","v":""},{"$f":"K14","v":""},null,null,"Match 8 - Billard",null,null,null,null,null,null,"Match 6 - Billard",null,null,null,{"$f":"IF(OR(S14=\"F\",S14=\"A\"),Q18,IF(OR(S18=\"F\",S18=\"A\"),Q14,IF(S14=S18,\"\",(IF(S14>S18,Q14,Q18)))))","v":""},{"$f":"IF(OR(S14=\"F\",S14=\"A\"),R18,IF(OR(S18=\"F\",S18=\"A\"),R14,IF(S14=S18,\"\",(IF(S14>S18,R14,R18)))))","v":""},"F",null,6,{"$f":"IF(B18=\"\",\"\",IF(B18=F16,F20,F16))","v":""},null,{"$f":"M17","v":0},{"$f":"IF(AB16=M17,IF(O19=\"F\",\"\",O17),0)","v":0},{"$f":"IF(AB16=M17,IF(O17=\"F\",\"\",O19),0)","v":0},{"$f":"IF(AB16=Q18,IF(S14=\"F\",\"\",S18),0)","v":0},{"$f":"IF(AB16=Q18,IF(S18=\"F\",\"\",S14),0)","v":0},{"$f":"IF(AB16=J18,IF(I14=\"F\",\"\",I18),0)","v":0},{"$f":"IF(AB16=J18,IF(I18=\"F\",\"\",I14),0)","v":0},{"$f":"IF(AB16=F16,IF(E20=\"F\",\"\",E16),0)","v":0},{"$f":"IF(AB16=F16,IF(E16=\"F\",\"\",E20),0)","v":0},{"$f":"IF(AB16=F10,IF(E6=\"F\",\"\",E10),0)","v":0},{"$f":"IF(AB16=F10,IF(E10=\"F\",\"\",E6),0)","v":0},0,0,{"$f":"AM16-AN16","v":0}]
[null,null,"G10",null,null,null,null,null,null,null,null,null,null,null,null,null,null,null,null,null,null,null,null,null,8,{"$f":"IF(F16=\"\",\"\",IF(F16=J14,J18,J14))","v":""},null,{"$f":"M19","v":"BERLIAT REGIS"},{"$f":"IF(AB17=M19,IF(O17=\"F\",\"\",O19),0)","v":0},{"$f":"IF(AB17=M19,IF(O19=\"F\",\"\",O17),0)","v":0},{"$f":"IF(AB17=Q18,IF(S14=\"F\",\"\",S18),0)","v":0},{"$f":"IF(AB17=Q18,IF(S18=\"F\",\"\",S14),0)","v":0},{"$f":"IF(AB17=J18,IF(I14=\"F\",\"\",I18),0)","v":0},{"$f":"IF(AB17=J18,IF(I18=\"F\",\"\",I14),0)","v":0},{"$f":"IF(AB17=F16,IF(E20=\"F\",\"\",E16),0)","v":0},{"$f":"IF(AB17=F16,IF(E16=\"F\",\"\",E20),0)","v":0},{"$f":"IF(AB17=F10,IF(E6=\"F\",\"\",E10),0)","v":0},{"$f":"IF(AB17=F10,IF(E10=\"F\",\"\",E6),0)","v":0},0,0,{"$f":"AM17-AN17","v":0}]
["X",{"$f":"IF(OR(E16=\"F\",E16=\"A\"),F20,IF(OR(E20=\"F\",E20=\"A\"),F16,IF(E16=E20,\"\",(IF(E16>E20,F16,F20)))))","v":""},{"$f":"IF(OR(E16=\"F\",E16=\"A\"),G20,IF(OR(E20=\"F\",E20=\"A\"),G16,IF(E16=E20,\"\",(IF(E16>E20,G16,G20)))))","v":""},null,null,"Match 10 - Billard",null,null,null,null,null,null,"Match 4 - Billard",null,null,null,{"$f":"M19","v":"BERLIAT REGIS"},{"$f":"N19","v":"(6)"}]
[null,null,null,null,null,null,null,null,null,null,"P4",6,{"$f":"IF(IF(ISNA(VLOOKUP(L19,Inscrits!$A$2:$C$25,2,FALSE)),\"\",VLOOKUP(L19,Inscrits!$A$2:$C$25,2,FALSE))=0,\"\",IF(ISNA(VLOOKUP(L19,Inscrits!$A$2:$C$25,2,FALSE)),\"\",VLOOKUP(L19,Inscrits!$A$2:$C$25,2,FALSE)))","v":"BERLIAT REGIS"},{"$f":"IF(IF(ISNA(VLOOKUP(L19,Inscrits!$A$2:$C$25,3,FALSE)),\"\",\"(\"&(VLOOKUP(L19,Inscrits!$A$2:$C$25,3,FALSE))&\")\")=\"()\",\"\",IF(ISNA(VLOOKUP(L19,Inscrits!$A$2:$C$25,3,FALSE)),\"\",\"(\"&(VLOOKUP(L19,Inscrits!$A$2:$C$25,3,FALSE))&\")\"))","v":"(6)"},null,null,"G4"]
[null,null,null,null,null,{"$f":"IF(OR(S4=\"F\",S4=\"A\"),Q4,IF(OR(S8=\"F\",S8=\"A\"),Q8,IF(S4=S8,\"\",(IF(S4<S8,Q4,Q8)))))","v":""},{"$f":"IF(OR(S4=\"F\",S4=\"A\"),R4,IF(OR(S8=\"F\",S8=\"A\"),R8,IF(S4=S8,\"\",(IF(S4<S8,R4,R8)))))","v":""}]
[null,null,null,null,null,null,"P5",null,null,{"$f":"\"(\"&Accueil!G16&\" manches côté perdant)\"","v":"(3 manches côté perdant)"}]

{"sheet":"4","index":6,"n_rows":21,"n_cols":45,"rows_kept":21,"cut":false,"hidden":false,"merged":[[12,1,12,2],[10,20,10,21],[20,9,20,17],[0,9,0,17],[1,42,1,45],[11,42,11,45]]}
[null,null,null,null,null,null,null,null,null,{"$f":"\"(\"&Accueil!D16&\" manches côté gagnant)\"","v":"(3 manches côté gagnant)"}]
[null,null,null,null,null,null,null,null,null,null,null,null,null,null,null,null,null,null,null,null,null,null,null,null,null,null,null,null,null,null,null,null,null,null,null,null,null,null,null,null,null,null,"QUALIFIES"]
[null,null,null,null,null,null,null,null,null,null,"P2",7,{"$f":"IF(IF(ISNA(VLOOKUP(L3,Inscrits!$A$2:$C$25,2,FALSE)),\"\",VLOOKUP(L3,Inscrits!$A$2:$C$25,2,FALSE))=0,\"\",IF(ISNA(VLOOKUP(L3,Inscrits!$A$2:$C$25,2,FALSE)),\"\",VLOOKUP(L3,Inscrits!$A$2:$C$25,2,FALSE)))","v":"BRUN CHRISTOPHE"},{"$f":"IF(IF(ISNA(VLOOKUP(L3,Inscrits!$A$2:$C$25,3,FALSE)),\"\",\"(\"&(VLOOKUP(L3,Inscrits!$A$2:$C$25,3,FALSE))&\")\")=\"()\",\"\",IF(ISNA(VLOOKUP(L3,Inscrits!$A$2:$C$25,3,FALSE)),\"\",\"(\"&(VLOOKUP(L3,Inscrits!$A$2:$C$25,3,FALSE))&\")\"))","v":"(7)"},null,null,"G1",null,null,null,null,null,null,null,null,null,null,null,"G","P","G","P","G","P","G","P","G","P","G","P","Ga",null,null,"NOM","Ga"]
[null,null,null,null,null,null,null,null,null,null,null,null,"Match 1 - Billard",null,null,null,{"$f":"M3","v":"BRUN CHRISTOPHE"},{"$f":"N3","v":"(7)"},null,null,null,null,null,null,1,{"$f":"IF(U6=\"\",\"\",IF(U6=Q4,Q4,Q8))","v":""},null,{"$f":"M3","v":"BRUN CHRISTOPHE"},{"$f":"IF(AB4=M3,IF(O5=\"F\",\"\",O3),0)","v":0},{"$f":"IF(AB4=M3,IF(O3=\"F\",\"\",O5),0)","v":0},{"$f":"IF(AB4=Q4,IF(S8=\"F\",\"\",S4),0)","v":0},{"$f":"IF(AB4=Q4,IF(S4=\"F\",\"\",S8),0)","v":0},{"$f":"IF(AB4=J4,IF(I8=\"F\",\"\",I4),0)","v":0},{"$f":"IF(AB4=J4,IF(I4=\"F\",\"\",I8),0)","v":0},{"$f":"IF(AB4=F6,IF(E10=\"F\",\"\",E6),0)","v":0},{"$f":"IF(AB4=F6,IF(E6=\"F\",\"\",E10),0)","v":0},{"$f":"IF(AB4=F20,IF(E16=\"F\",\"\",E20),0)","v":0},{"$f":"IF(AB4=F20,IF(E20=\"F\",\"\",E16),0)","v":0},{"$f":"SUM(AC4,AE4,AG4,AI4,AK4)","v":0},0,{"$f":"AM4-AN4","v":0},null,null,{"$f":"Z4","v":""},{"$f":"IF(AR4=\"\",\"\",(VLOOKUP(AR4,AB4:AO17,14,FALSE)))","v":""}]
[null,null,null,null,null,null,"G7",null,null,null,null,null,null,null,null,null,null,null,null,null,"G5",null,null,null,3,{"$f":"IF(B8=\"\",\"\",IF(B8=F6,F6,F10))","v":""},null,{"$f":"M5","v":0},{"$f":"IF(AB5=M5,IF(O3=\"F\",\"\",O5),0)","v":0},{"$f":"IF(AB5=M5,IF(O5=\"F\",\"\",O3),0)","v":0},{"$f":"IF(AB5=Q4,IF(S8=\"F\",\"\",S4),0)","v":0},{"$f":"IF(AB5=Q4,IF(S4=\"F\",\"\",S8),0)","v":0},{"$f":"IF(AB5=J4,IF(I8=\"F\",\"\",I4),0)","v":0},{"$f":"IF(AB5=J4,IF(I4=\"F\",\"\",I8),0)","v":0},{"$f":"IF(AB5=F6,IF(E10=\"F\",\"\",E6),0)","v":0},{"$f":"IF(AB5=F6,IF(E6=\"F\",\"\",E10),0)","v":0},{"$f":"IF(AB5=F20,IF(E16=\"F\",\"\",E20),0)","v":0},{"$f":"IF(AB5=F20,IF(E20=\"F\",\"\",E16),0)","v":0},0,0,{"$f":"AM5-AN5","v":0},null,null,{"$f":"Z14","v":""},{"$f":"IF(AR5=\"\",\"\",(VLOOKUP(AR5,AB4:AO17,14,FALSE)))","v":""}]
[null,null,null,null,"F",{"$f":"J8","v":"BLANC 1"},{"$f":"K8","v":"(31)"},null,null,"Match 7 - Billard",null,null,null,null,null,null,"Match 5 - Billard",null,null,null,{"$f":"IF(OR(S4=\"F\",S4=\"A\"),Q8,IF(OR(S8=\"F\",S8=\"A\"),Q4,IF(S4=S8,\"\",(IF(S4>S8,Q4,Q8)))))","v":""},{"$f":"IF(OR(S4=\"F\",S4=\"A\"),R8,IF(OR(S8=\"F\",S8=\"A\"),R4,IF(S4=S8,\"\",(IF(S4>S8,R4,R8)))))","v":""},"G",null,5,{"$f":"IF(B8=\"\",\"\",IF(B8=F6,F10,F6))","v":""},null,{"$f":"M7","v":"BLANC 1"},{"$f":"IF(AB6=M7,IF(O9=\"F\",\"\",O7),0)","v":"F"},{"$f":"IF(AB6=M7,IF(O7=\"F\",\"\",O9),0)","v":""},{"$f":"IF(AB6=Q8,IF(S4=\"F\",\"\",S8),0)","v":0},{"$f":"IF(AB6=Q8,IF(S8=\"F\",\"\",S4),0)","v":0},{"$f":"IF(AB6=J8,IF(I4=\"F\",\"\",I8),0)","v":0},{"$f":"IF(AB6=J8,IF(I8=\"F\",\"\",I4),0)","v":0},{"$f":"IF(AB6=F6,IF(E10=\"F\",\"\",E6),0)","v":"F"},{"$f":"IF(AB6=F6,IF(E6=\"F\",\"\",E10),0)","v":""},{"$f":"IF(AB6=F20,IF(E16=\"F\",\"\",E20),0)","v":0},{"$f":"IF(AB6=F20,IF(E20=\"F\",\"\",E16),0)","v":0},0,0,{"$f":"AM6-AN6","v":0},null,null,{"$f":"Z5","v":""},{"$f":"IF(AR6=\"\",\"\",(VLOOKUP(AR6,AB4:AO17,14,FALSE)))","v":""}]
[null,null,"G9",null,null,null,null,null,null,null,null,23,{"$f":"IF(IF(ISNA(VLOOKUP(L7,Inscrits!$A$2:$C$25,2,FALSE)),\"\",VLOOKUP(L7,Inscrits!$A$2:$C$25,2,FALSE))=0,\"\",IF(ISNA(VLOOKUP(L7,Inscrits!$A$2:$C$25,2,FALSE)),\"\",VLOOKUP(L7,Inscrits!$A$2:$C$25,2,FALSE)))","v":"BLANC 1"},{"$f":"IF(IF(ISNA(VLOOKUP(L7,Inscrits!$A$2:$C$25,3,FALSE)),\"\",\"(\"&(VLOOKUP(L7,Inscrits!$A$2:$C$25,3,FALSE))&\")\")=\"()\",\"\",IF(ISNA(VLOOKUP(L7,Inscrits!$A$2:$C$25,3,FALSE)),\"\",\"(\"&(VLOOKUP(L7,Inscrits!$A$2:$C$25,3,FALSE))&\")\"))","v":"(31)"},"F",null,null,null,null,null,null,null,null,null,7,{"$f":"IF(F6=\"\",\"\",IF(F6=J4,J8,J4))","v":0},null,{"$f":"M9","v":"PILLOT VINCENT"},{"$f":"IF(AB7=M9,IF(O7=\"F\",\"\",O9),0)","v":""},{"$f":"IF(AB7=M9,IF(O9=\"F\",\"\",O7),0)","v":"F"},{"$f":"IF(AB7=Q8,IF(S4=\"F\",\"\",S8),0)","v":0},{"$f":"IF(AB7=Q8,IF(S8=\"F\",\"\",S4),0)","v":0},{"$f":"IF(AB7=J8,IF(I4=\"F\",\"\",I8),0)","v":0},{"$f":"IF(AB7=J8,IF(I8=\"F\",\"\",I4),0)","v":0},{"$f":"IF(AB7=F6,IF(E10=\"F\",\"\",E6),0)","v":0},{"$f":"IF(AB7=F6,IF(E6=\"F\",\"\",E10),0)","v":0},{"$f":"IF(AB7=F20,IF(E16=\"F\",\"\",E20),0)","v":0},{"$f":"IF(AB7=F20,IF(E20=\"F\",\"\",E16),0)","v":0},0,0,{"$f":"AM7-AN7","v":0},null,null,{"$f":"Z15","v":""},{"$f":"IF(AR7=\"\",\"\",(VLOOKUP(AR7,AB4:AO17,14,FALSE)))","v":""}]
["Y",{"$f":"IF(OR(E6=\"F\",E6=\"A\"),F10,IF(OR(E10=\"F\",E10=\"A\"),F6,IF(E6=E10,\"\",(IF(E6>E10,F6,F10)))))","v":""},{"$f":"IF(OR(E6=\"F\",E6=\"A\"),G10,IF(OR(E10=\"F\",E10=\"A\"),G6,IF(E6=E10,\"\",(IF(E6>E10,G6,G10)))))","v":""},null,null,"Match 9 - Billard",null,null,null,{"$f":"IF(OR(AND(O7=\"F\",O9=\"F\"),AND(O7=\"A\",O9=\"A\")),M9,IF(OR(O7=\"F\",O7=\"A\"),M7,IF(OR(O9=\"F\",O9=\"A\"),M9,IF(O7=O9,\"\",(IF(O7<O9,M7,M9))))))","v":"BLANC 1"},{"$f":"IF(OR(AND(O7=\"F\",O9=\"F\"),AND(O7=\"A\",O9=\"A\")),N9,IF(OR(O7=\"F\",O7=\"A\"),N7,IF(OR(O9=\"F\",O9=\"A\"),N9,IF(O7=O9,\"\",(IF(O7<O9,N7,N9))))))","v":"(31)"},null,"Match 2 - Billard",null,null,null,{"$f":"IF(OR(AND(O7=\"F\",O9=\"F\"),AND(O7=\"A\",O9=\"A\")),M7,IF(OR(O7=\"F\",O7=\"A\"),M9,IF(OR(O9=\"F\",O9=\"A\"),M7,IF(O7=O9,\"\",(IF(O7>O9,M7,M9))))))","v":"PILLOT VINCENT"},{"$f":"IF(OR(AND(O7=\"F\",O9=\"F\"),AND(O7=\"A\",O9=\"A\")),N7,IF(OR(O7=\"F\",O7=\"A\"),N9,IF(OR(O9=\"F\",O9=\"A\"),N7,IF(O7=O9,\"\",(IF(O7>O9,N7,N9))))))","v":"(10)"}]
[null,null,null,null,null,null,null,null,null,null,"P2",10,{"$f":"IF(IF(ISNA(VLOOKUP(L9,Inscrits!$A$2:$C$25,2,FALSE)),\"\",VLOOKUP(L9,Inscrits!$A$2:$C$25,2,FALSE))=0,\"\",IF(ISNA(VLOOKUP(L9,Inscrits!$A$2:$C$25,2,FALSE)),\"\",VLOOKUP(L9,Inscrits!$A$2:$C$25,2,FALSE)))","v":"PILLOT VINCENT"},{"$f":"IF(IF(ISNA(VLOOKUP(L9,Inscrits!$A$2:$C$25,3,FALSE)),\"\",\"(\"&(VLOOKUP(L9,Inscrits!$A$2:$C$25,3,FALSE))&\")\")=\"()\",\"\",IF(ISNA(VLOOKUP(L9,Inscrits!$A$2:$C$25,3,FALSE)),\"\",\"(\"&(VLOOKUP(L9,Inscrits!$A$2:$C$25,3,FALSE))&\")\"))","v":"(10)"},null,null,"G2"]
[null,null,null,null,null,{"$f":"IF(OR(S14=\"F\",S14=\"A\"),Q14,IF(OR(S18=\"F\",S18=\"A\"),Q18,IF(S14=S18,\"\",(IF(S14<S18,Q14,Q18)))))","v":""},{"$f":"IF(OR(S14=\"F\",S14=\"A\"),R14,IF(OR(S18=\"F\",S18=\"A\"),R18,IF(S14=S18,\"\",(IF(S14<S18,R14,R18)))))","v":""}]
[null,null,null,null,null,null,"P6",null,null,null,null,null,null,null,null,null,null,null,null,null,"QUALIFIES"]
[null,null,null,null,null,null,null,null,null,null,null,null,null,null,null,null,null,null,null,null,null,null,null,null,null,null,null,null,null,null,null,null,null,null,null,null,null,null,null,null,null,null,"ELIMINES"]
[null,"QUALIFIES",null,null,null,null,null,null,null,null,"P3",15,{"$f":"IF(IF(ISNA(VLOOKUP(L13,Inscrits!$A$2:$C$25,2,FALSE)),\"\",VLOOKUP(L13,Inscrits!$A$2:$C$25,2,FALSE))=0,\"\",IF(ISNA(VLOOKUP(L13,Inscrits!$A$2:$C$25,2,FALSE)),\"\",VLOOKUP(L13,Inscrits!$A$2:$C$25,2,FALSE)))","v":"GOUTTE LYDIE"},{"$f":"IF(IF(ISNA(VLOOKUP(L13,Inscrits!$A$2:$C$25,3,FALSE)),\"\",\"(\"&(VLOOKUP(L13,Inscrits!$A$2:$C$25,3,FALSE))&\")\")=\"()\",\"\",IF(ISNA(VLOOKUP(L13,Inscrits!$A$2:$C$25,3,FALSE)),\"\",\"(\"&(VLOOKUP(L13,Inscrits!$A$2:$C$25,3,FALSE))&\")\"))","v":"(16)"},null,null,"G3",null,null,null,null,null,null,null,null,null,null,null,"G","P","G","P","G","P","G","P","G","P","G","P","Ga",null,null,"NOM","Ga"]
[null,null,null,null,null,null,null,null,null,{"$f":"IF(OR(AND(O13=\"F\",O15=\"F\"),AND(O13=\"A\",O15=\"A\")),M15,IF(OR(O13=\"F\",O13=\"A\"),M13,IF(OR(O15=\"F\",O15=\"A\"),M15,IF(O13=O15,\"\",(IF(O13<O15,M13,M15))))))","v":""},{"$f":"IF(OR(AND(O13=\"F\",O15=\"F\"),AND(O13=\"A\",O15=\"A\")),N15,IF(OR(O13=\"F\",O13=\"A\"),N13,IF(OR(O15=\"F\",O15=\"A\"),N15,IF(O13=O15,\"\",(IF(O13<O15,N13,N15))))))","v":""},null,"Match 3 - Billard",null,null,null,{"$f":"IF(OR(AND(O13=\"F\",O15=\"F\"),AND(O13=\"A\",O15=\"A\")),M13,IF(OR(O13=\"F\",O13=\"A\"),M15,IF(OR(O15=\"F\",O15=\"A\"),M13,IF(O13=O15,\"\",(IF(O13>O15,M13,M15))))))","v":""},{"$f":"IF(OR(AND(O13=\"F\",O15=\"F\"),AND(O13=\"A\",O15=\"A\")),N13,IF(OR(O13=\"F\",O13=\"A\"),N15,IF(OR(O15=\"F\",O15=\"A\"),N13,IF(O13=O15,\"\",(IF(O13>O15,N13,N15))))))","v":""},null,null,null,null,null,null,2,{"$f":"IF(U16=\"\",\"\",IF(U16=Q14,Q14,Q18))","v":""},null,{"$f":"M13","v":"GOUTTE LYDIE"},{"$f":"IF(AB14=M13,IF(O15=\"F\",\"\",O13),0)","v":0},{"$f":"IF(AB14=M13,IF(O13=\"F\",\"\",O15),0)","v":0},{"$f":"IF(AB14=Q14,IF(S18=\"F\",\"\",S14),0)","v":0},{"$f":"IF(AB14=Q14,IF(S14=\"F\",\"\",S18),0)","v":0},{"$f":"IF(AB14=J14,IF(I18=\"F\",\"\",I14),0)","v":0},{"$f":"IF(AB14=J14,IF(I14=\"F\",\"\",I18),0)","v":0},{"$f":"IF(AB14=F16,IF(E20=\"F\",\"\",E16),0)","v":0},{"$f":"IF(AB14=F16,IF(E16=\"F\",\"\",E20),0)","v":0},{"$f":"IF(AB14=F10,IF(E6=\"F\",\"\",E10),0)","v":0},{"$f":"IF(AB14=F10,IF(E10=\"F\",\"\",E6),0)","v":0},{"$f":"SUM(AC14,AE14,AG14,AI14,AK14)","v":0},0,{"$f":"AM14-AN14","v":0},null,null,{"$f":"Z6","v":""},{"$f":"IF(AR14=\"\",\"\",(VLOOKUP(AR14,AB4:AO17,14,FALSE)))","v":""}]
[null,null,null,null,null,null,"G8",null,null,null,null,18,{"$f":"IF(IF(ISNA(VLOOKUP(L15,Inscrits!$A$2:$C$25,2,FALSE)),\"\",VLOOKUP(L15,Inscrits!$A$2:$C$25,2,FALSE))=0,\"\",IF(ISNA(VLOOKUP(L15,Inscrits!$A$2:$C$25,2,FALSE)),\"\",VLOOKUP(L15,Inscrits!$A$2:$C$25,2,FALSE)))","v":"CARDON CECILE"},{"$f":"IF(IF(ISNA(VLOOKUP(L15,Inscrits!$A$2:$C$25,3,FALSE)),\"\",\"(\"&(VLOOKUP(L15,Inscrits!$A$2:$C$25,3,FALSE))&\")\")=\"()\",\"\",IF(ISNA(VLOOKUP(L15,Inscrits!$A$2:$C$25,3,FALSE)),\"\",\"(\"&(VLOOKUP(L15,Inscrits!$A$2:$C$25,3,FALSE))&\")\"))","v":"(19)"},null,null,null,null,null,null,"G6",null,null,null,4,{"$f":"IF(B18=\"\",\"\",IF(B18=F16,F16,F20))","v":""},null,{"$f":"M15","v":"CARDON CECILE"},{"$f":"IF(AB15=M15,IF(O13=\"F\",\"\",O15),0)","v":0},{"$f":"IF(AB15=M15,IF(O15=\"F\",\"\",O13),0)","v":0},{"$f":"IF(AB15=Q14,IF(S18=\"F\",\"\",S14),0)","v":0},{"$f":"IF(AB15=Q14,IF(S14=\"F\",\"\",S18),0)","v":0},{"$f":"IF(AB15=J14,IF(I18=\"F\",\"\",I14),0)","v":0},{"$f":"IF(AB15=J14,IF(I14=\"F\",\"\",I18),0)","v":0},{"$f":"IF(AB15=F16,IF(E20=\"F\",\"\",E16),0)","v":0},{"$f":"IF(AB15=F16,IF(E16=\"F\",\"\",E20),0)","v":0},{"$f":"IF(AB15=F10,IF(E6=\"F\",\"\",E10),0)","v":0},{"$f":"IF(AB15=F10,IF(E10=\"F\",\"\",E6),0)","v":0},0,0,{"$f":"AM15-AN15","v":0},null,null,{"$f":"Z16","v":""},{"$f":"IF(AR15=\"\",\"\",(VLOOKUP(AR15,AB4:AO17,14,FALSE)))","v":""}]
[null,null,null,null,null,{"$f":"J14","v":""},{"$f":"K14","v":""},null,null,"Match 8 - Billard",null,null,null,null,null,null,"Match 6 - Billard",null,null,null,{"$f":"IF(OR(S14=\"F\",S14=\"A\"),Q18,IF(OR(S18=\"F\",S18=\"A\"),Q14,IF(S14=S18,\"\",(IF(S14>S18,Q14,Q18)))))","v":""},{"$f":"IF(OR(S14=\"F\",S14=\"A\"),R18,IF(OR(S18=\"F\",S18=\"A\"),R14,IF(S14=S18,\"\",(IF(S14>S18,R14,R18)))))","v":""},"H",null,6,{"$f":"IF(B18=\"\",\"\",IF(B18=F16,F20,F16))","v":""},null,{"$f":"M17","v":0},{"$f":"IF(AB16=M17,IF(O19=\"F\",\"\",O17),0)","v":0},{"$f":"IF(AB16=M17,IF(O17=\"F\",\"\",O19),0)","v":0},{"$f":"IF(AB16=Q18,IF(S14=\"F\",\"\",S18),0)","v":0},{"$f":"IF(AB16=Q18,IF(S18=\"F\",\"\",S14),0)","v":0},{"$f":"IF(AB16=J18,IF(I14=\"F\",\"\",I18),0)","v":0},{"$f":"IF(AB16=J18,IF(I18=\"F\",\"\",I14),0)","v":0},{"$f":"IF(AB16=F16,IF(E20=\"F\",\"\",E16),0)","v":0},{"$f":"IF(AB16=F16,IF(E16=\"F\",\"\",E20),0)","v":0},{"$f":"IF(AB16=F10,IF(E6=\"F\",\"\",E10),0)","v":0},{"$f":"IF(AB16=F10,IF(E10=\"F\",\"\",E6),0)","v":0},0,0,{"$f":"AM16-AN16","v":0}]
[null,null,"G10",null,null,null,null,null,null,null,null,null,null,null,null,null,null,null,null,null,null,null,null,null,8,{"$f":"IF(F16=\"\",\"\",IF(F16=J14,J18,J14))","v":""},null,{"$f":"M19","v":"BAILLY FABRICE"},{"$f":"IF(AB17=M19,IF(O17=\"F\",\"\",O19),0)","v":0},{"$f":"IF(AB17=M19,IF(O19=\"F\",\"\",O17),0)","v":0},{"$f":"IF(AB17=Q18,IF(S14=\"F\",\"\",S18),0)","v":0},{"$f":"IF(AB17=Q18,IF(S18=\"F\",\"\",S14),0)","v":0},{"$f":"IF(AB17=J18,IF(I14=\"F\",\"\",I18),0)","v":0},{"$f":"IF(AB17=J18,IF(I18=\"F\",\"\",I14),0)","v":0},{"$f":"IF(AB17=F16,IF(E20=\"F\",\"\",E16),0)","v":0},{"$f":"IF(AB17=F16,IF(E16=\"F\",\"\",E20),0)","v":0},{"$f":"IF(AB17=F10,IF(E6=\"F\",\"\",E10),0)","v":0},{"$f":"IF(AB17=F10,IF(E10=\"F\",\"\",E6),0)","v":0},0,0,{"$f":"AM17-AN17","v":0}]
["Z",{"$f":"IF(OR(E16=\"F\",E16=\"A\"),F20,IF(OR(E20=\"F\",E20=\"A\"),F16,IF(E16=E20,\"\",(IF(E16>E20,F16,F20)))))","v":""},{"$f":"IF(OR(E16=\"F\",E16=\"A\"),G20,IF(OR(E20=\"F\",E20=\"A\"),G16,IF(E16=E20,\"\",(IF(E16>E20,G16,G20)))))","v":""},null,null,"Match 10 - Billard",null,null,null,null,null,null,"Match 4 - Billard",null,null,null,{"$f":"M19","v":"BAILLY FABRICE"},{"$f":"N19","v":"(2)"}]
[null,null,null,null,null,null,null,null,null,null,"P4",2,{"$f":"IF(IF(ISNA(VLOOKUP(L19,Inscrits!$A$2:$C$25,2,FALSE)),\"\",VLOOKUP(L19,Inscrits!$A$2:$C$25,2,FALSE))=0,\"\",IF(ISNA(VLOOKUP(L19,Inscrits!$A$2:$C$25,2,FALSE)),\"\",VLOOKUP(L19,Inscrits!$A$2:$C$25,2,FALSE)))","v":"BAILLY FABRICE"},{"$f":"IF(IF(ISNA(VLOOKUP(L19,Inscrits!$A$2:$C$25,3,FALSE)),\"\",\"(\"&(VLOOKUP(L19,Inscrits!$A$2:$C$25,3,FALSE))&\")\")=\"()\",\"\",IF(ISNA(VLOOKUP(L19,Inscrits!$A$2:$C$25,3,FALSE)),\"\",\"(\"&(VLOOKUP(L19,Inscrits!$A$2:$C$25,3,FALSE))&\")\"))","v":"(2)"},null,null,"G4"]
[null,null,null,null,null,{"$f":"IF(OR(S4=\"F\",S4=\"A\"),Q4,IF(OR(S8=\"F\",S8=\"A\"),Q8,IF(S4=S8,\"\",(IF(S4<S8,Q4,Q8)))))","v":""},{"$f":"IF(OR(S4=\"F\",S4=\"A\"),R4,IF(OR(S8=\"F\",S8=\"A\"),R8,IF(S4=S8,\"\",(IF(S4<S8,R4,R8)))))","v":""}]
[null,null,null,null,null,null,"P5",null,null,{"$f":"\"(\"&Accueil!G16&\" manches côté perdant)\"","v":"(3 manches côté perdant)"}]

{"sheet":"Final","index":7,"n_rows":35,"n_cols":35,"rows_kept":35,"cut":false,"hidden":false,"merged":[[1,5,1,7],[1,9,1,11],[1,13,1,15],[0,1,0,3],[1,1,1,3],[0,13,0,15],[0,9,0,11],[0,5,0,7]]}
[null,"1/8 de finale",null,null,null,"1/4 de finale",null,null,null,"1/2 finale",null,null,null,"Finale"]
[null,{"$f":"\"(\"&Accueil!D18&\" manches)\"","v":"(4 manches)"},null,null,null,{"$f":"\"(\"&Accueil!G18&\" manches)\"","v":"(4 manches)"},null,null,null,{"$f":"\"(\"&Accueil!D20&\" manches)\"","v":"(4 manches)"},null,null,null,{"$f":"\"(\"&Accueil!G20&\" manches)\"","v":"(5 manches)"}]
[null,"Match 1 - Billard",null,null,null,null,null,null,null,null,null,null,null,null,null,null,null,null,null,null,null,"JOUEURS","1/8","1/4","1/2","Finale","GA Final",null,"JOUEURS","GA Poules",null,"JOUEURS","GA Poules","GA Final","GA TOTAL"]
["A",{"$f":"IF('1'!U6=0,\"\",'1'!U6)","v":""},{"$f":"IF('1'!V6=0,\"\",'1'!V6)","v":""},null,null,null,null,null,null,null,null,null,null,null,null,null,null,null,null,null,null,{"$f":"B4","v":""},{"$f":"IF(AND(D4=\"A\",D5=\"A\"),0,IF(D4=\"A\",-D5,IF(D5=\"A\",D4,D4-D5)))","v":0},{"$f":"IF(F5=V4,IF(AND(H5=\"A\",H7=\"A\"),0,IF(OR(W4>0,D5=\"A\"),IF(H5=\"A\",-H7,IF(H7=\"A\",H5,H5-H7)),0)),0)","v":0},{"$f":"IF(J6=V4,IF(AND(L6=\"A\",L12=\"A\"),0,IF(OR(X4>0,H7=\"A\"),IF(L6=\"A\",-L12,IF(L12=\"A\",L6,L6-L12)),0)),0)","v":0},{"$f":"IF(N9=V4,IF(AND(P9=\"A\",P21=\"A\"),0,IF(OR(Y4>0,L12=\"A\"),IF(P9=\"A\",-P21,IF(P21=\"A\",P9,P9-P21)),0)),0)","v":0},{"$f":"SUM(W4:Z4)","v":0},null,{"$f":"'1'!AR4","v":""},{"$f":"'1'!AS4","v":""},null,{"$f":"IF(Inscrits!B2=0,\"\",Inscrits!B2)","v":"BENABDESSELAM YASSINE"},{"$f":"VLOOKUP(AF4,$AC$4:$AD$35,2,FALSE)","v":{"$error":"#N/A"}},{"$f":"VLOOKUP(AF4,$V$4:$AA$35,6,FALSE)","v":{"$error":"#N/A"}},{"$f":"AG4+AH4","v":{"$error":"#N/A"}}]
["W",{"$f":"IF('3'!B8=0,\"\",'3'!B8)","v":""},{"$f":"IF('3'!C8=0,\"\",'3'!C8)","v":""},null,null,{"$f":"IF(AND(D4=\"A\",D5=\"A\"),B4,IF(D4=\"A\",B5,IF(D5=\"A\",B4,IF(D4=D5,\"\",(IF(D4>D5,B4,B5))))))","v":""},{"$f":"IF(AND(D4=\"A\",D5=\"A\"),C4,IF(D4=\"A\",C5,IF(D5=\"A\",C4,IF(D4=D5,\"\",(IF(D4>D5,C4,C5))))))","v":""},null,null,null,null,null,null,null,null,null,null,null,null,null,null,{"$f":"B5","v":""},{"$f":"IF(AND(D4=\"A\",D5=\"A\"),0,IF(D5=\"A\",-D4,IF(D4=\"A\",D5,D5-D4)))","v":0},{"$f":"IF(F5=V5,IF(AND(H5=\"A\",H7=\"A\"),0,IF(OR(W5>0,D4=\"A\"),IF(H5=\"A\",-H7,IF(H7=\"A\",H5,H5-H7)),0)),0)","v":0},{"$f":"IF(J6=V5,IF(AND(L6=\"A\",L12=\"A\"),0,IF(OR(X5>0,H7=\"A\"),IF(L6=\"A\",-L12,IF(L12=\"A\",L6,L6-L12)),0)),0)","v":0},{"$f":"IF(N9=V5,IF(AND(P9=\"A\",P21=\"A\"),0,IF(OR(Y5>0,L12=\"A\"),IF(P9=\"A\",-P21,IF(P21=\"A\",P9,P9-P21)),0)),0)","v":0},{"$f":"SUM(W5:Z5)","v":0},null,{"$f":"'1'!AR5","v":""},{"$f":"'1'!AS5","v":""},null,{"$f":"IF(Inscrits!B3=0,\"\",Inscrits!B3)","v":"BAILLY FABRICE"},{"$f":"VLOOKUP(AF5,$AC$4:$AD$35,2,FALSE)","v":{"$error":"#N/A"}},{"$f":"VLOOKUP(AF5,$V$4:$AA$35,6,FALSE)","v":{"$error":"#N/A"}},{"$error":"#N/A"}]
[null,"Match 2 - Billard",null,null,null,"Match 9 - Billard",null,null,null,{"$f":"IF(AND(H5=\"A\",H7=\"A\"),F5,IF(H5=\"A\",F7,IF(H7=\"A\",F5,IF(H5=H7,\"\",(IF(H5>H7,F5,F7))))))","v":""},{"$f":"IF(AND(H5=\"A\",H7=\"A\"),G5,IF(H5=\"A\",G7,IF(H7=\"A\",G5,IF(H5=H7,\"\",(IF(H5>H7,G5,G7))))))","v":""},null,null,null,null,null,null,null,null,null,null,{"$f":"B7","v":""},{"$f":"IF(AND(D7=\"A\",D8=\"A\"),0,IF(D7=\"A\",-D8,IF(D8=\"A\",D7,D7-D8)))","v":0},{"$f":"IF(F7=V6,IF(AND(H5=\"A\",H7=\"A\"),0,IF(OR(W6>0,D8=\"A\"),IF(H7=\"A\",-H5,IF(H5=\"A\",H7,H7-H5)),0)),0)","v":0},{"$f":"IF(J6=V6,IF(AND(L6=\"A\",L12=\"A\"),0,IF(OR(X6>0,H5=\"A\"),IF(L6=\"A\",-L12,IF(L12=\"A\",L6,L6-L12)),0)),0)","v":0},{"$f":"IF(N9=V6,IF(AND(P9=\"A\",P21=\"A\"),0,IF(OR(Y6>0,L12=\"A\"),IF(P9=\"A\",-P21,IF(P21=\"A\",P9,P9-P21)),0)),0)","v":0},0,null,{"$f":"'1'!AR6","v":""},{"$f":"'1'!AS6","v":""},null,{"$f":"IF(Inscrits!B4=0,\"\",Inscrits!B4)","v":"LAMRANI MEHDI"},{"$error":"#N/A"},{"$error":"#N/A"},{"$error":"#N/A"}]
["B",{"$f":"IF('1'!U16=0,\"\",'1'!U16)","v":""},{"$f":"IF('1'!V16=0,\"\",'1'!V16)","v":""},null,null,{"$f":"IF(AND(D7=\"A\",D8=\"A\"),B7,IF(D7=\"A\",B8,IF(D8=\"A\",B7,IF(D7=D8,\"\",(IF(D7>D8,B7,B8))))))","v":""},{"$f":"IF(AND(D7=\"A\",D8=\"A\"),C7,IF(D7=\"A\",C8,IF(D8=\"A\",C7,IF(D7=D8,\"\",(IF(D7>D8,C7,C8))))))","v":""},null,null,null,null,null,null,null,null,null,null,null,null,null,null,{"$f":"B8","v":""},{"$f":"IF(AND(D7=\"A\",D8=\"A\"),0,IF(D8=\"A\",-D7,IF(D7=\"A\",D8,D8-D7)))","v":0},{"$f":"IF(F7=V7,IF(AND(H5=\"A\",H7=\"A\"),0,IF(OR(W7>0,D7=\"A\"),IF(H7=\"A\",-H5,IF(H5=\"A\",H7,H7-H5)),0)),0)","v":0},{"$f":"IF(J6=V7,IF(AND(L6=\"A\",L12=\"A\"),0,IF(OR(X7>0,H5=\"A\"),IF(L6=\"A\",-L12,IF(L12=\"A\",L6,L6-L12)),0)),0)","v":0},{"$f":"IF(N9=V7,IF(AND(P9=\"A\",P21=\"A\"),0,IF(OR(Y7>0,L12=\"A\"),IF(P9=\"A\",-P21,IF(P21=\"A\",P9,P9-P21)),0)),0)","v":0},0,null,{"$f":"'1'!AR7","v":""},{"$f":"'1'!AS7","v":""},null,{"$f":"IF(Inscrits!B5=0,\"\",Inscrits!B5)","v":"IMTIASZ ASHH"},{"$error":"#N/A"},{"$error":"#N/A"},{"$error":"#N/A"}]
["Z",{"$f":"IF('4'!B18=0,\"\",'4'!B18)","v":""},{"$f":"IF('4'!C18=0,\"\",'4'!C18)","v":""},null,null,null,null,null,null,null,null,null,null,null,null,null,null,null,null,null,null,{"$f":"B10","v":""},{"$f":"IF(AND(D10=\"A\",D11=\"A\"),0,IF(D10=\"A\",-D11,IF(D11=\"A\",D10,D10-D11)))","v":0},{"$f":"IF(F11=V8,IF(AND(H11=\"A\",H13=\"A\"),0,IF(OR(W8>0,D11=\"A\"),IF(H11=\"A\",-H13,IF(H13=\"A\",H11,H11-H13)),0)),0)","v":0},{"$f":"IF(J12=V8,IF(AND(L6=\"A\",L12=\"A\"),0,IF(OR(X8>0,H13=\"A\"),IF(L12=\"A\",-L6,IF(L6=\"A\",L12,L12-L6)),0)),0)","v":0},{"$f":"IF(N9=V8,IF(AND(P9=\"A\",P21=\"A\"),0,IF(OR(Y8>0,L6=\"A\"),IF(P9=\"A\",-P21,IF(P21=\"A\",P9,P9-P21)),0)),0)","v":0},0,null,{"$f":"'1'!AR14","v":""},{"$f":"'1'!AS14","v":""},null,{"$f":"IF(Inscrits!B6=0,\"\",Inscrits!B6)","v":"DELORME STEPHANE"},{"$error":"#N/A"},{"$error":"#N/A"},{"$error":"#N/A"}]
[null,"Match 3 - Billard",null,null,null,null,null,null,null,"Match 13 - Billard",null,null,null,{"$f":"IF(AND(L6=\"A\",L12=\"A\"),J6,IF(L6=\"A\",J12,IF(L12=\"A\",J6,IF(L6=L12,\"\",(IF(L6>L12,J6,J12))))))","v":""},{"$f":"IF(AND(L6=\"A\",L12=\"A\"),K6,IF(L6=\"A\",K12,IF(L12=\"A\",K6,IF(L6=L12,\"\",(IF(L6>L12,K6,K12))))))","v":""},null,null,null,null,null,null,{"$f":"B11","v":""},{"$f":"IF(AND(D10=\"A\",D11=\"A\"),0,IF(D11=\"A\",-D10,IF(D10=\"A\",D11,D11-D10)))","v":0},{"$f":"IF(F11=V9,IF(AND(H11=\"A\",H13=\"A\"),0,IF(OR(W9>0,D10=\"A\"),IF(H11=\"A\",-H13,IF(H13=\"A\",H11,H11-H13)),0)),0)","v":0},{"$f":"IF(J12=V9,IF(AND(L6=\"A\",L12=\"A\"),0,IF(OR(X9>0,H13=\"A\"),IF(L12=\"A\",-L6,IF(L6=\"A\",L12,L12-L6)),0)),0)","v":0},{"$f":"IF(N9=V9,IF(AND(P9=\"A\",P21=\"A\"),0,IF(OR(Y9>0,L6=\"A\"),IF(P9=\"A\",-P21,IF(P21=\"A\",P9,P9-P21)),0)),0)","v":0},0,null,{"$f":"'1'!AR15","v":""},{"$f":"'1'!AS15","v":""},null,{"$f":"IF(Inscrits!B7=0,\"\",Inscrits!B7)","v":"BERLIAT REGIS"},{"$error":"#N/A"},{"$error":"#N/A"},{"$error":"#N/A"}]
["C",{"$f":"IF('2'!U6=0,\"\",'2'!U6)","v":""},{"$f":"IF('2'!V6=0,\"\",'2'!V6)","v":""},null,null,null,null,null,null,null,null,null,null,null,null,null,null,null,null,null,null,{"$f":"B13","v":""},{"$f":"IF(AND(D13=\"A\",D14=\"A\"),0,IF(D13=\"A\",-D14,IF(D14=\"A\",D13,D13-D14)))","v":0},{"$f":"IF(F13=V10,IF(AND(H11=\"A\",H13=\"A\"),0,IF(OR(W10>0,D14=\"A\"),IF(H13=\"A\",-H11,IF(H11=\"A\",H13,H13-H11)),0)),0)","v":0},{"$f":"IF(J12=V10,IF(AND(L6=\"A\",L12=\"A\"),0,IF(OR(X10>0,H11=\"A\"),IF(L12=\"A\",-L6,IF(L6=\"A\",L12,L12-L6)),0)),0)","v":0},{"$f":"IF(N9=V10,IF(AND(P9=\"A\",P21=\"A\"),0,IF(OR(Y10>0,L6=\"A\"),IF(P9=\"A\",-P21,IF(P21=\"A\",P9,P9-P21)),0)),0)","v":0},0,null,{"$f":"'1'!AR16","v":0},{"$f":"'1'!AS16","v":0},null,{"$f":"IF(Inscrits!B8=0,\"\",Inscrits!B8)","v":"BRUN CHRISTOPHE"},{"$error":"#N/A"},{"$error":"#N/A"},{"$error":"#N/A"}]
["Y",{"$f":"IF('4'!B8=0,\"\",'4'!B8)","v":""},{"$f":"IF('4'!C8=0,\"\",'4'!C8)","v":""},null,null,{"$f":"IF(AND(D10=\"A\",D11=\"A\"),B10,IF(D10=\"A\",B11,IF(D11=\"A\",B10,IF(D10=D11,\"\",(IF(D10>D11,B10,B11))))))","v":""},{"$f":"IF(AND(D10=\"A\",D11=\"A\"),C10,IF(D10=\"A\",C11,IF(D11=\"A\",C10,IF(D10=D11,\"\",(IF(D10>D11,C10,C11))))))","v":""},null,null,null,null,null,null,null,null,null,null,null,null,null,null,{"$f":"B14","v":""},{"$f":"IF(AND(D13=\"A\",D14=\"A\"),0,IF(D14=\"A\",-D13,IF(D13=\"A\",D14,D14-D13)))","v":0},{"$f":"IF(F13=V11,IF(AND(H11=\"A\",H13=\"A\"),0,IF(OR(W11>0,D13=\"A\"),IF(H13=\"A\",-H11,IF(H11=\"A\",H13,H13-H11)),0)),0)","v":0},{"$f":"IF(J12=V11,IF(AND(L6=\"A\",L12=\"A\"),0,IF(OR(X11>0,H11=\"A\"),IF(L12=\"A\",-L6,IF(L6=\"A\",L12,L12-L6)),0)),0)","v":0},{"$f":"IF(N9=V11,IF(AND(P9=\"A\",P21=\"A\"),0,IF(OR(Y11>0,L6=\"A\"),IF(P9=\"A\",-P21,IF(P21=\"A\",P9,P9-P21)),0)),0)","v":0},0,null,{"$f":"'1'!AR17","v":0},{"$f":"'1'!AS17","v":0},null,{"$f":"IF(Inscrits!B9=0,\"\",Inscrits!B9)","v":"FADILI YOUSSEF"},{"$error":"#N/A"},{"$error":"#N/A"},{"$error":"#N/A"}]
[null,"Match 4 - Billard",null,null,null,"Match 10 - Billard",null,null,null,{"$f":"IF(AND(H11=\"A\",H13=\"A\"),F11,IF(H11=\"A\",F13,IF(H13=\"A\",F11,IF(H11=H13,\"\",(IF(H11>H13,F11,F13))))))","v":""},{"$f":"IF(AND(H11=\"A\",H13=\"A\"),G11,IF(H11=\"A\",G13,IF(H13=\"A\",G11,IF(H11=H13,\"\",(IF(H11>H13,G11,G13))))))","v":""},null,null,null,null,null,null,null,null,null,null,{"$f":"B16","v":""},{"$f":"IF(AND(D16=\"A\",D17=\"A\"),0,IF(D16=\"A\",-D17,IF(D17=\"A\",D16,D16-D17)))","v":0},{"$f":"IF(F17=V12,IF(AND(H17=\"A\",H19=\"A\"),0,IF(OR(W12>0,D17=\"A\"),IF(H17=\"A\",-H19,IF(H19=\"A\",H17,H17-H19)),0)),0)","v":0},{"$f":"IF(J18=V12,IF(AND(L18=\"A\",L24=\"A\"),0,IF(OR(X12>0,H19=\"A\"),IF(L18=\"A\",-L24,IF(L24=\"A\",L18,L18-L24)),0)),0)","v":0},{"$f":"IF(N21=V12,IF(AND(P9=\"A\",P21=\"A\"),0,IF(OR(Y12>0,L24=\"A\"),IF(P21=\"A\",-P9,IF(P9=\"A\",P21,P21-P9)),0)),0)","v":0},0,null,{"$f":"'2'!AR4","v":""},{"$f":"'2'!AS4","v":""},null,{"$f":"IF(Inscrits!B10=0,\"\",Inscrits!B10)","v":"ORENES LERMA JACKY"},{"$error":"#N/A"},{"$error":"#N/A"},{"$error":"#N/A"}]
["D",{"$f":"IF('2'!U16=0,\"\",'2'!U16)","v":""},{"$f":"IF('2'!V16=0,\"\",'2'!V16)","v":""},null,null,{"$f":"IF(AND(D13=\"A\",D14=\"A\"),B13,IF(D13=\"A\",B14,IF(D14=\"A\",B13,IF(D13=D14,\"\",(IF(D13>D14,B13,B14))))))","v":""},{"$f":"IF(AND(D13=\"A\",D14=\"A\"),C13,IF(D13=\"A\",C14,IF(D14=\"A\",C13,IF(D13=D14,\"\",(IF(D13>D14,C13,C14))))))","v":""},null,null,null,null,null,null,null,null,null,null,null,null,null,null,{"$f":"B17","v":""},{"$f":"IF(AND(D16=\"A\",D17=\"A\"),0,IF(D17=\"A\",-D16,IF(D16=\"A\",D17,D17-D16)))","v":0},{"$f":"IF(F17=V13,IF(AND(H17=\"A\",H19=\"A\"),0,IF(OR(W13>0,D16=\"A\"),IF(H17=\"A\",-H19,IF(H19=\"A\",H17,H17-H19)),0)),0)","v":0},{"$f":"IF(J18=V13,IF(AND(L18=\"A\",L24=\"A\"),0,IF(OR(X13>0,H19=\"A\"),IF(L18=\"A\",-L24,IF(L24=\"A\",L18,L18-L24)),0)),0)","v":0},{"$f":"IF(N21=V13,IF(AND(P9=\"A\",P21=\"A\"),0,IF(OR(Y13>0,L24=\"A\"),IF(P21=\"A\",-P9,IF(P9=\"A\",P21,P21-P9)),0)),0)","v":0},0,null,{"$f":"'2'!AR5","v":""},{"$f":"'2'!AS5","v":""},null,{"$f":"IF(Inscrits!B11=0,\"\",Inscrits!B11)","v":"PILLOT VINCENT"},{"$error":"#N/A"},{"$error":"#N/A"},{"$error":"#N/A"}]
["X",{"$f":"IF('3'!B18=0,\"\",'3'!B18)","v":""},{"$f":"IF('3'!C18=0,\"\",'3'!C18)","v":""},null,null,null,null,null,null,null,null,null,null,null,null,null,null,null,null,null,null,{"$f":"B19","v":""},{"$f":"IF(AND(D19=\"A\",D20=\"A\"),0,IF(D19=\"A\",-D20,IF(D20=\"A\",D19,D19-D20)))","v":0},{"$f":"IF(F19=V14,IF(AND(H17=\"A\",H19=\"A\"),0,IF(OR(W14>0,D20=\"A\"),IF(H19=\"A\",-H17,IF(H17=\"A\",H19,H19-H17)),0)),0)","v":0},{"$f":"IF(J18=V14,IF(AND(L18=\"A\",L24=\"A\"),0,IF(OR(X14>0,H17=\"A\"),IF(L18=\"A\",-L24,IF(L24=\"A\",L18,L18-L24)),0)),0)","v":0},{"$f":"IF(N21=V14,IF(AND(P9=\"A\",P21=\"A\"),0,IF(OR(Y14>0,L24=\"A\"),IF(P21=\"A\",-P9,IF(P9=\"A\",P21,P21-P9)),0)),0)","v":0},0,null,{"$f":"'2'!AR6","v":""},{"$f":"'2'!AS6","v":""},null,{"$f":"IF(Inscrits!B12=0,\"\",Inscrits!B12)","v":"PHONGSY PHOXAY"},{"$error":"#N/A"},{"$error":"#N/A"},{"$error":"#N/A"}]
[null,"Match 5 - Billard",null,null,null,null,null,null,null,null,null,null,null,"Match 15 - Billard",null,null,null,{"$f":"IF(AND(P9=\"A\",P21=\"A\"),N9,IF(P9=\"A\",N21,IF(P21=\"A\",N9,IF(P9=P21,\"\",(IF(P9>P21,N9,N21))))))","v":""},{"$f":"IF(AND(P9=\"F\",P21=\"F\"),O9,IF(P9=\"F\",O21,IF(P21=\"F\",O9,IF(P9=P21,\"\",(IF(P9>P21,O9,O21))))))","v":""},null,null,{"$f":"B20","v":""},{"$f":"IF(AND(D19=\"A\",D20=\"A\"),0,IF(D20=\"A\",-D19,IF(D19=\"A\",D20,D20-D19)))","v":0},{"$f":"IF(F19=V15,IF(AND(H17=\"A\",H19=\"A\"),0,IF(OR(W15>0,D19=\"A\"),IF(H19=\"A\",-H17,IF(H17=\"A\",H19,H19-H17)),0)),0)","v":0},{"$f":"IF(J18=V15,IF(AND(L18=\"A\",L24=\"A\"),0,IF(OR(X15>0,H17=\"A\"),IF(L18=\"A\",-L24,IF(L24=\"A\",L18,L18-L24)),0)),0)","v":0},{"$f":"IF(N21=V15,IF(AND(P9=\"A\",P21=\"A\"),0,IF(OR(Y15>0,L24=\"A\"),IF(P21=\"A\",-P9,IF(P9=\"A\",P21,P21-P9)),0)),0)","v":0},0,null,{"$f":"'2'!AR7","v":""},{"$f":"'2'!AS7","v":""},null,{"$f":"IF(Inscrits!B13=0,\"\",Inscrits!B13)","v":"SCANDELLA CEDRIC"},{"$error":"#N/A"},{"$error":"#N/A"},{"$error":"#N/A"}]
["E",{"$f":"IF('3'!U6=0,\"\",'3'!U6)","v":""},{"$f":"IF('3'!V6=0,\"\",'3'!V6)","v":""},null,null,null,null,null,null,null,null,null,null,null,null,null,null,null,null,null,null,{"$f":"B22","v":""},{"$f":"IF(AND(D22=\"A\",D23=\"A\"),0,IF(D22=\"A\",-D23,IF(D23=\"A\",D22,D22-D23)))","v":0},{"$f":"IF(F23=V16,IF(AND(H23=\"A\",H25=\"A\"),0,IF(OR(W16>0,D23=\"A\"),IF(H23=\"A\",-H25,IF(H25=\"A\",H23,H23-H25)),0)),0)","v":0},{"$f":"IF(J24=V16,IF(AND(L18=\"A\",L24=\"A\"),0,IF(OR(X16>0,H25=\"A\"),IF(L24=\"A\",-L18,IF(L18=\"A\",L24,L24-L18)),0)),0)","v":0},{"$f":"IF(N21=V16,IF(AND(P9=\"A\",P21=\"A\"),0,IF(OR(Y16>0,L18=\"A\"),IF(P21=\"A\",-P9,IF(P9=\"A\",P21,P21-P9)),0)),0)","v":0},0,null,{"$f":"'2'!AR14","v":""},{"$f":"'2'!AS14","v":""},null,{"$f":"IF(Inscrits!B14=0,\"\",Inscrits!B14)","v":"NAVEL ANGELIQUE"},{"$error":"#N/A"},{"$error":"#N/A"},{"$error":"#N/A"}]
["U",{"$f":"IF('2'!B8=0,\"\",'2'!B8)","v":""},{"$f":"IF('2'!C8=0,\"\",'2'!C8)","v":""},null,null,{"$f":"IF(AND(D16=\"A\",D17=\"A\"),B16,IF(D16=\"A\",B17,IF(D17=\"A\",B16,IF(D16=D17,\"\",(IF(D16>D17,B16,B17))))))","v":""},{"$f":"IF(AND(D16=\"A\",D17=\"A\"),C16,IF(D16=\"A\",C17,IF(D17=\"A\",C16,IF(D16=D17,\"\",(IF(D16>D17,C16,C17))))))","v":""},null,null,null,null,null,null,null,null,null,null,null,null,null,null,{"$f":"B23","v":""},{"$f":"IF(AND(D22=\"A\",D23=\"A\"),0,IF(D23=\"A\",-D22,IF(D22=\"A\",D23,D23-D22)))","v":0},{"$f":"IF(F23=V17,IF(AND(H23=\"A\",H25=\"A\"),0,IF(OR(W17>0,D22=\"A\"),IF(H23=\"A\",-H25,IF(H25=\"A\",H23,H23-H25)),0)),0)","v":0},{"$f":"IF(J24=V17,IF(AND(L18=\"A\",L24=\"A\"),0,IF(OR(X17>0,H25=\"A\"),IF(L24=\"A\",-L18,IF(L18=\"A\",L24,L24-L18)),0)),0)","v":0},{"$f":"IF(N21=V17,IF(AND(P9=\"A\",P21=\"A\"),0,IF(OR(Y17>0,L18=\"A\"),IF(P21=\"A\",-P9,IF(P9=\"A\",P21,P21-P9)),0)),0)","v":0},0,null,{"$f":"'2'!AR15","v":""},{"$f":"'2'!AS15","v":""},null,{"$f":"IF(Inscrits!B15=0,\"\",Inscrits!B15)","v":"HASIMOVIC VLADIMIR"},{"$error":"#N/A"},{"$error":"#N/A"},{"$error":"#N/A"}]
[null,"Match 6 - Billard",null,null,null,"Match 11 - Billard",null,null,null,{"$f":"IF(AND(H17=\"A\",H19=\"A\"),F17,IF(H17=\"A\",F19,IF(H19=\"A\",F17,IF(H17=H19,\"\",(IF(H17>H19,F17,F19))))))","v":""},{"$f":"IF(AND(H17=\"A\",H19=\"A\"),G17,IF(H17=\"A\",G19,IF(H19=\"A\",G17,IF(H17=H19,\"\",(IF(H17>H19,G17,G19))))))","v":""},null,null,null,null,null,null,null,null,null,null,{"$f":"B25","v":""},{"$f":"IF(AND(D25=\"A\",D26=\"A\"),0,IF(D25=\"A\",-D26,IF(D26=\"A\",D25,D25-D26)))","v":0},{"$f":"IF(F25=V18,IF(AND(H23=\"A\",H25=\"A\"),0,IF(OR(W18>0,D26=\"A\"),IF(H25=\"A\",-H23,IF(H23=\"A\",H25,H25-H23)),0)),0)","v":0},{"$f":"IF(J24=V18,IF(AND(L18=\"A\",L24=\"A\"),0,IF(OR(X18>0,H23=\"A\"),IF(L24=\"A\",-L18,IF(L18=\"A\",L24,L24-L18)),0)),0)","v":0},{"$f":"IF(N21=V18,IF(AND(P9=\"A\",P21=\"A\"),0,IF(OR(Y18>0,L18=\"A\"),IF(P21=\"A\",-P9,IF(P9=\"A\",P21,P21-P9)),0)),0)","v":0},0,null,{"$f":"'2'!AR16","v":0},{"$f":"'2'!AS16","v":0},null,{"$f":"IF(Inscrits!B16=0,\"\",Inscrits!B16)","v":"GOUTTE LYDIE"},{"$error":"#N/A"},{"$error":"#N/A"},{"$error":"#N/A"}]
["F",{"$f":"IF('3'!U16=0,\"\",'3'!U16)","v":""},{"$f":"IF('3'!V16=0,\"\",'3'!V16)","v":""},null,null,{"$f":"IF(AND(D19=\"A\",D20=\"A\"),B19,IF(D19=\"A\",B20,IF(D20=\"A\",B19,IF(D19=D20,\"\",(IF(D19>D20,B19,B20))))))","v":""},{"$f":"IF(AND(D19=\"A\",D20=\"A\"),C19,IF(D19=\"A\",C20,IF(D20=\"A\",C19,IF(D19=D20,\"\",(IF(D19>D20,C19,C20))))))","v":""},null,null,null,null,null,null,null,null,null,null,null,null,null,null,{"$f":"B26","v":""},{"$f":"IF(AND(D25=\"A\",D26=\"A\"),0,IF(D26=\"A\",-D25,IF(D25=\"A\",D26,D26-D25)))","v":0},{"$f":"IF(F25=V19,IF(AND(H23=\"A\",H25=\"A\"),0,IF(OR(W19>0,D25=\"A\"),IF(H25=\"A\",-H23,IF(H23=\"A\",H25,H25-H23)),0)),0)","v":0},{"$f":"IF(J24=V19,IF(AND(L18=\"A\",L24=\"A\"),0,IF(OR(X19>0,H23=\"A\"),IF(L24=\"A\",-L18,IF(L18=\"A\",L24,L24-L18)),0)),0)","v":0},{"$f":"IF(N21=V19,IF(AND(P9=\"A\",P21=\"A\"),0,IF(OR(Y19>0,L18=\"A\"),IF(P21=\"A\",-P9,IF(P9=\"A\",P21,P21-P9)),0)),0)","v":0},0,null,{"$f":"'2'!AR17","v":0},{"$f":"'2'!AS17","v":0},null,{"$f":"IF(Inscrits!B17=0,\"\",Inscrits!B17)","v":"BERLIAT PATRICIA"},{"$error":"#N/A"},{"$error":"#N/A"},{"$error":"#N/A"}]
["T",{"$f":"IF('1'!B18=0,\"\",'1'!B18)","v":""},{"$f":"IF('1'!C18=0,\"\",'1'!C18)","v":""},null,null,null,null,null,null,null,null,null,null,null,null,null,null,null,null,null,null,{"$f":"'1'!AR14","v":""},null,null,null,null,0,null,{"$f":"'3'!AR4","v":""},{"$f":"'3'!AS4","v":""},null,{"$f":"IF(Inscrits!B19=0,\"\",Inscrits!B19)","v":"CARDON CECILE"},{"$error":"#N/A"},{"$error":"#N/A"},{"$error":"#N/A"}]
[null,"Match 7 - Billard",null,null,null,null,null,null,null,"Match 14 - Billard",null,null,null,{"$f":"IF(AND(L18=\"A\",L24=\"A\"),J18,IF(L18=\"A\",J24,IF(L24=\"A\",J18,IF(L18=L24,\"\",(IF(L18>L24,J18,J24))))))","v":""},{"$f":"IF(AND(L18=\"A\",L24=\"A\"),K18,IF(L18=\"A\",K24,IF(L24=\"A\",K18,IF(L18=L24,\"\",(IF(L18>L24,K18,K24))))))","v":""},null,null,null,null,null,null,{"$f":"'1'!AR15","v":""},null,null,null,null,0,null,{"$f":"'3'!AR5","v":""},{"$f":"'3'!AS5","v":""},null,{"$f":"IF(Inscrits!B20=0,\"\",Inscrits!B20)","v":"GOGORA JACKIE"},{"$error":"#N/A"},{"$error":"#N/A"},{"$error":"#N/A"}]
["G",{"$f":"IF('4'!U6=0,\"\",'4'!U6)","v":""},{"$f":"IF('4'!V6=0,\"\",'4'!V6)","v":""},null,null,null,null,null,null,null,null,null,null,null,null,null,null,null,null,null,null,{"$f":"'1'!AR16","v":0},null,null,null,null,0,null,{"$f":"'3'!AR6","v":""},{"$f":"'3'!AS6","v":""},null,{"$f":"IF(Inscrits!B21=0,\"\",Inscrits!B21)","v":"ROLET LILIAN"},{"$error":"#N/A"},{"$error":"#N/A"},{"$error":"#N/A"}]
["S",{"$f":"IF('1'!B8=0,\"\",'1'!B8)","v":""},{"$f":"IF('1'!C8=0,\"\",'1'!C8)","v":""},null,null,{"$f":"IF(AND(D22=\"A\",D23=\"A\"),B22,IF(D22=\"A\",B23,IF(D23=\"A\",B22,IF(D22=D23,\"\",(IF(D22>D23,B22,B23))))))","v":""},{"$f":"IF(AND(D22=\"A\",D23=\"A\"),C22,IF(D22=\"A\",C23,IF(D23=\"A\",C22,IF(D22=D23,\"\",(IF(D22>D23,C22,C23))))))","v":""},null,null,null,null,null,null,null,null,null,null,null,null,null,null,{"$f":"'1'!AR17","v":0},null,null,null,null,0,null,{"$f":"'3'!AR7","v":""},{"$f":"'3'!AS7","v":""},null,{"$f":"IF(Inscrits!#REF!=0,\"\",Inscrits!#REF!)","v":{"$error":"#REF!"}},{"$error":"#REF!"},{"$error":"#REF!"},{"$error":"#REF!"}]
[null,"Match 8 - Billard",null,null,null,"Match 12 - Billard",null,null,null,{"$f":"IF(AND(H23=\"A\",H25=\"A\"),F23,IF(H23=\"A\",F25,IF(H25=\"A\",F23,IF(H23=H25,\"\",(IF(H23>H25,F23,F25))))))","v":""},{"$f":"IF(AND(H23=\"A\",H25=\"A\"),G23,IF(H23=\"A\",G25,IF(H25=\"A\",G23,IF(H23=H25,\"\",(IF(H23>H25,G23,G25))))))","v":""},null,null,null,null,null,null,null,null,null,null,{"$f":"'2'!AR14","v":""},null,null,null,null,0,null,{"$f":"'3'!AR14","v":""},{"$f":"'3'!AS14","v":""},null,{"$f":"IF(Inscrits!B22=0,\"\",Inscrits!B22)","v":"VALLET STEPHANE"},{"$error":"#N/A"},{"$error":"#N/A"},{"$error":"#N/A"}]
["H",{"$f":"IF('4'!U16=0,\"\",'4'!U16)","v":""},{"$f":"IF('4'!V16=0,\"\",'4'!V16)","v":""},null,null,{"$f":"IF(AND(D25=\"A\",D26=\"A\"),B25,IF(D25=\"A\",B26,IF(D26=\"A\",B25,IF(D25=D26,\"\",(IF(D25>D26,B25,B26))))))","v":""},{"$f":"IF(AND(D25=\"A\",D26=\"A\"),C25,IF(D25=\"A\",C26,IF(D26=\"A\",C25,IF(D25=D26,\"\",(IF(D25>D26,C25,C26))))))","v":""},null,null,null,null,null,null,null,null,null,null,null,null,null,null,{"$f":"'2'!AR15","v":""},null,null,null,null,0,null,{"$f":"'3'!AR15","v":""},{"$f":"'3'!AS15","v":""},null,{"$f":"IF(Inscrits!#REF!=0,\"\",Inscrits!#REF!)","v":{"$error":"#REF!"}},{"$error":"#REF!"},{"$error":"#REF!"},{"$error":"#REF!"}]
["V",{"$f":"IF('2'!B18=0,\"\",'2'!B18)","v":""},{"$f":"IF('2'!C18=0,\"\",'2'!C18)","v":""},null,null,null,null,null,null,null,null,null,null,null,null,null,null,null,null,null,null,{"$f":"'2'!AR16","v":0},null,null,null,null,0,null,{"$f":"'3'!AR16","v":0},{"$f":"'3'!AS16","v":0},null,{"$f":"IF(Inscrits!#REF!=0,\"\",Inscrits!#REF!)","v":{"$error":"#REF!"}},{"$error":"#REF!"},{"$error":"#REF!"},{"$error":"#REF!"}]
[null,null,null,null,null,null,null,null,null,null,null,null,null,null,null,null,null,null,null,null,null,{"$f":"'2'!AR17","v":0},null,null,null,null,0,null,{"$f":"'3'!AR17","v":0},{"$f":"'3'!AS17","v":0},null,{"$f":"IF(Inscrits!B25=0,\"\",Inscrits!B25)","v":"BLANC 2"},{"$error":"#N/A"},{"$error":"#N/A"},{"$error":"#N/A"}]
[null,null,null,null,null,null,null,null,null,null,null,null,null,null,null,null,null,null,null,null,null,{"$f":"'3'!AR14","v":""},null,null,null,null,0,null,{"$f":"'4'!AR4","v":""},{"$f":"'4'!AS4","v":""},null,{"$f":"IF(Inscrits!#REF!=0,\"\",Inscrits!#REF!)","v":{"$error":"#REF!"}},{"$error":"#REF!"},{"$error":"#REF!"},{"$error":"#REF!"}]
[null,null,null,null,null,null,null,null,null,null,null,null,null,null,null,null,null,null,null,null,null,{"$f":"'3'!AR15","v":""},null,null,null,null,0,null,{"$f":"'4'!AR5","v":""},{"$f":"'4'!AS5","v":""},null,{"$f":"IF(Inscrits!#REF!=0,\"\",Inscrits!#REF!)","v":{"$error":"#REF!"}},{"$error":"#REF!"},{"$error":"#REF!"},{"$error":"#REF!"}]
[null,null,null,null,null,null,null,null,null,null,null,null,null,null,null,null,null,null,null,null,null,{"$f":"'3'!AR16","v":0},null,null,null,null,0,null,{"$f":"'4'!AR6","v":""},{"$f":"'4'!AS6","v":""},null,{"$f":"IF(Inscrits!#REF!=0,\"\",Inscrits!#REF!)","v":{"$error":"#REF!"}},{"$error":"#REF!"},{"$error":"#REF!"},{"$error":"#REF!"}]
[null,null,null,null,null,null,null,null,null,null,null,null,null,null,null,null,null,null,null,null,null,{"$f":"'3'!AR17","v":0},null,null,null,null,0,null,{"$f":"'4'!AR7","v":""},{"$f":"'4'!AS7","v":""},null,{"$f":"IF(Inscrits!#REF!=0,\"\",Inscrits!#REF!)","v":{"$error":"#REF!"}},{"$error":"#REF!"},{"$error":"#REF!"},{"$error":"#REF!"}]
[null,null,null,null,null,null,null,null,null,null,null,null,null,null,null,null,null,null,null,null,null,{"$f":"'4'!AR14","v":""},null,null,null,null,0,null,{"$f":"'4'!AR14","v":""},{"$f":"'4'!AS14","v":""},null,{"$f":"IF(Inscrits!#REF!=0,\"\",Inscrits!#REF!)","v":{"$error":"#REF!"}},{"$error":"#REF!"},{"$error":"#REF!"},{"$error":"#REF!"}]
[null,null,null,null,null,null,null,null,null,null,null,null,null,null,null,null,null,null,null,null,null,{"$f":"'4'!AR15","v":""},null,null,null,null,0,null,{"$f":"'4'!AR15","v":""},{"$f":"'4'!AS15","v":""},null,{"$f":"IF(Inscrits!#REF!=0,\"\",Inscrits!#REF!)","v":{"$error":"#REF!"}},{"$error":"#REF!"},{"$error":"#REF!"},{"$error":"#REF!"}]
[null,null,null,null,null,null,null,null,null,null,null,null,null,null,null,null,null,null,null,null,null,{"$f":"'4'!AR16","v":0},null,null,null,null,0,null,{"$f":"'4'!AR16","v":0},{"$f":"'4'!AS16","v":0},null,{"$f":"IF(Inscrits!#REF!=0,\"\",Inscrits!#REF!)","v":{"$error":"#REF!"}},{"$error":"#REF!"},{"$error":"#REF!"},{"$error":"#REF!"}]
[null,null,null,null,null,null,null,null,null,null,null,null,null,null,null,null,null,null,null,null,null,{"$f":"'4'!AR17","v":0},null,null,null,null,0,null,{"$f":"'4'!AR17","v":0},{"$f":"'4'!AS17","v":0},null,{"$f":"IF(Inscrits!#REF!=0,\"\",Inscrits!#REF!)","v":{"$error":"#REF!"}},{"$error":"#REF!"},{"$error":"#REF!"},{"$error":"#REF!"}]

{"sheet":"Classement","index":8,"n_rows":25,"n_cols":12,"rows_kept":25,"cut":false,"hidden":false,"merged":[]}
[null,null,"Formules Initiales","Nom & Prénom","Place","Points","GA","CF","RF","Club","Licence","Division"]
[null,null,1,{"$f":"Final!R15","v":""},null,{"$f":"IF(ISNA(IF(LEFT(Division,2)=\"R1\",VLOOKUP(E2,Points!$A$2:$D$36,2,FALSE),IF(LEFT(Division,2)=\"R2\",VLOOKUP(E2,Points!$A$2:$D$36,3,FALSE),IF(LEFT(Division,2)=\"R3\",VLOOKUP(E2,Points!$A$2:$D$36,4,FALSE),\"DIV ???\")))),0,IF(LEFT(Division,2)=\"R1\",VLOOKUP(E2,Points!$A$2:$D$36,2,FALSE),IF(LEFT(Division,2)=\"R2\",VLOOKUP(E2,Points!$A$2:$D$36,3,FALSE),IF(LEFT(Division,2)=\"R3\",VLOOKUP(E2,Points!$A$2:$D$36,4,FALSE),\"DIV ???\"))))","v":0},{"$f":"IF(ISERROR(VLOOKUP(D2,Final!$AF$4:$AI$35,4,FALSE)),\"\",VLOOKUP(D2,Final!$AF$4:$AI$35,4,FALSE))","v":""},null,null,{"$f":"IF(ISNA(VLOOKUP(D2,Inscrits!B:E,3,FALSE)),\"\",VLOOKUP(D2,Inscrits!B:E,3,FALSE))","v":""},{"$f":"IF(ISNA(VLOOKUP(D2,Inscrits!B:E,4,FALSE)),\"\",VLOOKUP(D2,Inscrits!B:E,4,FALSE))","v":""},{"$f":"IF(NB_JOUEURS_UP>7,IF(LEN(Division)=2,\"R\"&RIGHT(Division,1)-1&\"\",IF(LEN(Division)=3,IF(RIGHT(LEFT(Division,2),1)=\"2\",\"R1\",IF(Nb_R2=1,\"R2\",\"R\"&RIGHT(LEFT(Division,2),1)-1&\"\"&RIGHT(Division,1)&\"\")),IF(LEN(Division)=4,IF(RIGHT(LEFT(Division,2),1)=\"2\",\"R1\",\"R\"&RIGHT(LEFT(Division,2),1)-1&\"\"&RIGHT(LEFT(Division,3),1)&\"\"),\"?\"))),Division)","v":"R1"}]
[null,null,2,{"$f":"IF(Final!P21=\"A\",Final!N21,IF(Final!P9=\"A\",Final!N9,IF(Final!P9<Final!P21,Final!N9,Final!N21)))","v":""},null,{"$f":"IF(ISNA(IF(LEFT(Division,2)=\"R1\",VLOOKUP(E3,Points!$A$2:$D$36,2,FALSE),IF(LEFT(Division,2)=\"R2\",VLOOKUP(E3,Points!$A$2:$D$36,3,FALSE),IF(LEFT(Division,2)=\"R3\",VLOOKUP(E3,Points!$A$2:$D$36,4,FALSE),\"DIV ???\")))),0,IF(LEFT(Division,2)=\"R1\",VLOOKUP(E3,Points!$A$2:$D$36,2,FALSE),IF(LEFT(Division,2)=\"R2\",VLOOKUP(E3,Points!$A$2:$D$36,3,FALSE),IF(LEFT(Division,2)=\"R3\",VLOOKUP(E3,Points!$A$2:$D$36,4,FALSE),\"DIV ???\"))))","v":0},{"$f":"IF(ISERROR(VLOOKUP(D3,Final!$AF$4:$AI$35,4,FALSE)),\"\",VLOOKUP(D3,Final!$AF$4:$AI$35,4,FALSE))","v":""},null,null,{"$f":"IF(ISNA(VLOOKUP(D3,Inscrits!B:E,3,FALSE)),\"\",VLOOKUP(D3,Inscrits!B:E,3,FALSE))","v":""},{"$f":"IF(ISNA(VLOOKUP(D3,Inscrits!B:E,4,FALSE)),\"\",VLOOKUP(D3,Inscrits!B:E,4,FALSE))","v":""},"R1"]
[null,null,3,{"$f":"IF(Final!L12=\"A\",Final!J12,IF(Final!L6=\"A\",Final!J6,IF(Final!L6<Final!L12,Final!J6,Final!J12)))","v":""},null,{"$f":"IF(ISNA(IF(LEFT(Division,2)=\"R1\",VLOOKUP(E4,Points!$A$2:$D$36,2,FALSE),IF(LEFT(Division,2)=\"R2\",VLOOKUP(E4,Points!$A$2:$D$36,3,FALSE),IF(LEFT(Division,2)=\"R3\",VLOOKUP(E4,Points!$A$2:$D$36,4,FALSE),\"DIV ???\")))),0,IF(LEFT(Division,2)=\"R1\",VLOOKUP(E4,Points!$A$2:$D$36,2,FALSE),IF(LEFT(Division,2)=\"R2\",VLOOKUP(E4,Points!$A$2:$D$36,3,FALSE),IF(LEFT(Division,2)=\"R3\",VLOOKUP(E4,Points!$A$2:$D$36,4,FALSE),\"DIV ???\"))))","v":0},{"$f":"IF(ISERROR(VLOOKUP(D4,Final!$AF$4:$AI$35,4,FALSE)),\"\",VLOOKUP(D4,Final!$AF$4:$AI$35,4,FALSE))","v":""},null,null,{"$f":"IF(ISNA(VLOOKUP(D4,Inscrits!B:E,3,FALSE)),\"\",VLOOKUP(D4,Inscrits!B:E,3,FALSE))","v":""},{"$f":"IF(ISNA(VLOOKUP(D4,Inscrits!B:E,4,FALSE)),\"\",VLOOKUP(D4,Inscrits!B:E,4,FALSE))","v":""},"R1"]
[null,null,4,{"$f":"IF(Final!L24=\"A\",Final!J24,IF(Final!L18=\"A\",Final!J18,IF(Final!L18<Final!L24,Final!J18,Final!J24)))","v":""},null,{"$f":"IF(ISNA(IF(LEFT(Division,2)=\"R1\",VLOOKUP(E5,Points!$A$2:$D$36,2,FALSE),IF(LEFT(Division,2)=\"R2\",VLOOKUP(E5,Points!$A$2:$D$36,3,FALSE),IF(LEFT(Division,2)=\"R3\",VLOOKUP(E5,Points!$A$2:$D$36,4,FALSE),\"DIV ???\")))),0,IF(LEFT(Division,2)=\"R1\",VLOOKUP(E5,Points!$A$2:$D$36,2,FALSE),IF(LEFT(Division,2)=\"R2\",VLOOKUP(E5,Points!$A$2:$D$36,3,FALSE),IF(LEFT(Division,2)=\"R3\",VLOOKUP(E5,Points!$A$2:$D$36,4,FALSE),\"DIV ???\"))))","v":0},{"$f":"IF(ISERROR(VLOOKUP(D5,Final!$AF$4:$AI$35,4,FALSE)),\"\",VLOOKUP(D5,Final!$AF$4:$AI$35,4,FALSE))","v":""},null,null,{"$f":"IF(ISNA(VLOOKUP(D5,Inscrits!B:E,3,FALSE)),\"\",VLOOKUP(D5,Inscrits!B:E,3,FALSE))","v":""},{"$f":"IF(ISNA(VLOOKUP(D5,Inscrits!B:E,4,FALSE)),\"\",VLOOKUP(D5,Inscrits!B:E,4,FALSE))","v":""},"R1"]
[null,null,8,{"$f":"IF(Final!H25=\"A\",Final!F25,IF(Final!H23=\"A\",Final!F23,IF(Final!H23<Final!H25,Final!F23,Final!F25)))","v":""},null,{"$f":"IF(ISNA(IF(LEFT(Division,2)=\"R1\",VLOOKUP(E6,Points!$A$2:$D$36,2,FALSE),IF(LEFT(Division,2)=\"R2\",VLOOKUP(E6,Points!$A$2:$D$36,3,FALSE),IF(LEFT(Division,2)=\"R3\",VLOOKUP(E6,Points!$A$2:$D$36,4,FALSE),\"DIV ???\")))),0,IF(LEFT(Division,2)=\"R1\",VLOOKUP(E6,Points!$A$2:$D$36,2,FALSE),IF(LEFT(Division,2)=\"R2\",VLOOKUP(E6,Points!$A$2:$D$36,3,FALSE),IF(LEFT(Division,2)=\"R3\",VLOOKUP(E6,Points!$A$2:$D$36,4,FALSE),\"DIV ???\"))))","v":0},{"$f":"IF(ISERROR(VLOOKUP(D6,Final!$AF$4:$AI$35,4,FALSE)),\"\",VLOOKUP(D6,Final!$AF$4:$AI$35,4,FALSE))","v":""},null,null,{"$f":"IF(ISNA(VLOOKUP(D6,Inscrits!B:E,3,FALSE)),\"\",VLOOKUP(D6,Inscrits!B:E,3,FALSE))","v":""},{"$f":"IF(ISNA(VLOOKUP(D6,Inscrits!B:E,4,FALSE)),\"\",VLOOKUP(D6,Inscrits!B:E,4,FALSE))","v":""},"R1"]
[null,null,5,{"$f":"IF(Final!H7=\"A\",Final!F7,IF(Final!H5=\"A\",Final!F5,IF(Final!H5<Final!H7,Final!F5,Final!F7)))","v":""},null,{"$f":"IF(ISNA(IF(LEFT(Division,2)=\"R1\",VLOOKUP(E7,Points!$A$2:$D$36,2,FALSE),IF(LEFT(Division,2)=\"R2\",VLOOKUP(E7,Points!$A$2:$D$36,3,FALSE),IF(LEFT(Division,2)=\"R3\",VLOOKUP(E7,Points!$A$2:$D$36,4,FALSE),\"DIV ???\")))),0,IF(LEFT(Division,2)=\"R1\",VLOOKUP(E7,Points!$A$2:$D$36,2,FALSE),IF(LEFT(Division,2)=\"R2\",VLOOKUP(E7,Points!$A$2:$D$36,3,FALSE),IF(LEFT(Division,2)=\"R3\",VLOOKUP(E7,Points!$A$2:$D$36,4,FALSE),\"DIV ???\"))))","v":0},{"$f":"IF(ISERROR(VLOOKUP(D7,Final!$AF$4:$AI$35,4,FALSE)),\"\",VLOOKUP(D7,Final!$AF$4:$AI$35,4,FALSE))","v":""},null,null,{"$f":"IF(ISNA(VLOOKUP(D7,Inscrits!B:E,3,FALSE)),\"\",VLOOKUP(D7,Inscrits!B:E,3,FALSE))","v":""},{"$f":"IF(ISNA(VLOOKUP(D7,Inscrits!B:E,4,FALSE)),\"\",VLOOKUP(D7,Inscrits!B:E,4,FALSE))","v":""},"R1"]
[null,null,6,{"$f":"IF(Final!H13=\"A\",Final!F13,IF(Final!H11=\"A\",Final!F11,IF(Final!H11<Final!H13,Final!F11,Final!F13)))","v":""},null,{"$f":"IF(ISNA(IF(LEFT(Division,2)=\"R1\",VLOOKUP(E8,Points!$A$2:$D$36,2,FALSE),IF(LEFT(Division,2)=\"R2\",VLOOKUP(E8,Points!$A$2:$D$36,3,FALSE),IF(LEFT(Division,2)=\"R3\",VLOOKUP(E8,Points!$A$2:$D$36,4,FALSE),\"DIV ???\")))),0,IF(LEFT(Division,2)=\"R1\",VLOOKUP(E8,Points!$A$2:$D$36,2,FALSE),IF(LEFT(Division,2)=\"R2\",VLOOKUP(E8,Points!$A$2:$D$36,3,FALSE),IF(LEFT(Division,2)=\"R3\",VLOOKUP(E8,Points!$A$2:$D$36,4,FALSE),\"DIV ???\"))))","v":0},{"$f":"IF(ISERROR(VLOOKUP(D8,Final!$AF$4:$AI$35,4,FALSE)),\"\",VLOOKUP(D8,Final!$AF$4:$AI$35,4,FALSE))","v":""},null,null,{"$f":"IF(ISNA(VLOOKUP(D8,Inscrits!B:E,3,FALSE)),\"\",VLOOKUP(D8,Inscrits!B:E,3,FALSE))","v":""},{"$f":"IF(ISNA(VLOOKUP(D8,Inscrits!B:E,4,FALSE)),\"\",VLOOKUP(D8,Inscrits!B:E,4,FALSE))","v":""},"R1"]
[null,null,7,{"$f":"IF(Final!H19=\"A\",Final!F19,IF(Final!H17=\"A\",Final!F17,IF(Final!H17<Final!H19,Final!F17,Final!F19)))","v":""},null,{"$f":"IF(ISNA(IF(LEFT(Division,2)=\"R1\",VLOOKUP(E9,Points!$A$2:$D$36,2,FALSE),IF(LEFT(Division,2)=\"R2\",VLOOKUP(E9,Points!$A$2:$D$36,3,FALSE),IF(LEFT(Division,2)=\"R3\",VLOOKUP(E9,Points!$A$2:$D$36,4,FALSE),\"DIV ???\")))),0,IF(LEFT(Division,2)=\"R1\",VLOOKUP(E9,Points!$A$2:$D$36,2,FALSE),IF(LEFT(Division,2)=\"R2\",VLOOKUP(E9,Points!$A$2:$D$36,3,FALSE),IF(LEFT(Division,2)=\"R3\",VLOOKUP(E9,Points!$A$2:$D$36,4,FALSE),\"DIV ???\"))))","v":0},{"$f":"IF(ISERROR(VLOOKUP(D9,Final!$AF$4:$AI$35,4,FALSE)),\"\",VLOOKUP(D9,Final!$AF$4:$AI$35,4,FALSE))","v":""},null,null,{"$f":"IF(ISNA(VLOOKUP(D9,Inscrits!B:E,3,FALSE)),\"\",VLOOKUP(D9,Inscrits!B:E,3,FALSE))","v":""},{"$f":"IF(ISNA(VLOOKUP(D9,Inscrits!B:E,4,FALSE)),\"\",VLOOKUP(D9,Inscrits!B:E,4,FALSE))","v":""},"R1"]
[null,null,11,{"$f":"IF(Final!D11=\"A\",Final!B11,IF(Final!D10=\"A\",Final!B10,IF(Final!D10<Final!D11,Final!B10,Final!B11)))","v":""},null,{"$f":"IF(ISNA(IF(LEFT(Division,2)=\"R1\",VLOOKUP(E10,Points!$A$2:$D$36,2,FALSE),IF(LEFT(Division,2)=\"R2\",VLOOKUP(E10,Points!$A$2:$D$36,3,FALSE),IF(LEFT(Division,2)=\"R3\",VLOOKUP(E10,Points!$A$2:$D$36,4,FALSE),\"DIV ???\")))),0,IF(LEFT(Division,2)=\"R1\",VLOOKUP(E10,Points!$A$2:$D$36,2,FALSE),IF(LEFT(Division,2)=\"R2\",VLOOKUP(E10,Points!$A$2:$D$36,3,FALSE),IF(LEFT(Division,2)=\"R3\",VLOOKUP(E10,Points!$A$2:$D$36,4,FALSE),\"DIV ???\"))))","v":0},{"$f":"IF(ISERROR(VLOOKUP(D10,Final!$AF$4:$AI$35,4,FALSE)),\"\",VLOOKUP(D10,Final!$AF$4:$AI$35,4,FALSE))","v":""},null,null,{"$f":"IF(ISNA(VLOOKUP(D10,Inscrits!B:E,3,FALSE)),\"\",VLOOKUP(D10,Inscrits!B:E,3,FALSE))","v":""},{"$f":"IF(ISNA(VLOOKUP(D10,Inscrits!B:E,4,FALSE)),\"\",VLOOKUP(D10,Inscrits!B:E,4,FALSE))","v":""},"R1"]
[null,null,9,{"$f":"IF(Final!D5=\"A\",Final!B5,IF(Final!D4=\"A\",Final!B4,IF(Final!D4<Final!D5,Final!B4,Final!B5)))","v":""},null,{"$f":"IF(ISNA(IF(LEFT(Division,2)=\"R1\",VLOOKUP(E11,Points!$A$2:$D$36,2,FALSE),IF(LEFT(Division,2)=\"R2\",VLOOKUP(E11,Points!$A$2:$D$36,3,FALSE),IF(LEFT(Division,2)=\"R3\",VLOOKUP(E11,Points!$A$2:$D$36,4,FALSE),\"DIV ???\")))),0,IF(LEFT(Division,2)=\"R1\",VLOOKUP(E11,Points!$A$2:$D$36,2,FALSE),IF(LEFT(Division,2)=\"R2\",VLOOKUP(E11,Points!$A$2:$D$36,3,FALSE),IF(LEFT(Division,2)=\"R3\",VLOOKUP(E11,Points!$A$2:$D$36,4,FALSE),\"DIV ???\"))))","v":0},{"$f":"IF(ISERROR(VLOOKUP(D11,Final!$AF$4:$AI$35,4,FALSE)),\"\",VLOOKUP(D11,Final!$AF$4:$AI$35,4,FALSE))","v":""},null,null,{"$f":"IF(ISNA(VLOOKUP(D11,Inscrits!B:E,3,FALSE)),\"\",VLOOKUP(D11,Inscrits!B:E,3,FALSE))","v":""},{"$f":"IF(ISNA(VLOOKUP(D11,Inscrits!B:E,4,FALSE)),\"\",VLOOKUP(D11,Inscrits!B:E,4,FALSE))","v":""},"R1"]
[null,null,16,{"$f":"IF(Final!D26=\"A\",Final!B26,IF(Final!D25=\"A\",Final!B25,IF(Final!D25<Final!D26,Final!B25,Final!B26)))","v":""},null,{"$f":"IF(ISNA(IF(LEFT(Division,2)=\"R1\",VLOOKUP(E12,Points!$A$2:$D$36,2,FALSE),IF(LEFT(Division,2)=\"R2\",VLOOKUP(E12,Points!$A$2:$D$36,3,FALSE),IF(LEFT(Division,2)=\"R3\",VLOOKUP(E12,Points!$A$2:$D$36,4,FALSE),\"DIV ???\")))),0,IF(LEFT(Division,2)=\"R1\",VLOOKUP(E12,Points!$A$2:$D$36,2,FALSE),IF(LEFT(Division,2)=\"R2\",VLOOKUP(E12,Points!$A$2:$D$36,3,FALSE),IF(LEFT(Division,2)=\"R3\",VLOOKUP(E12,Points!$A$2:$D$36,4,FALSE),\"DIV ???\"))))","v":0},{"$f":"IF(ISERROR(VLOOKUP(D12,Final!$AF$4:$AI$35,4,FALSE)),\"\",VLOOKUP(D12,Final!$AF$4:$AI$35,4,FALSE))","v":""},null,null,{"$f":"IF(ISNA(VLOOKUP(D12,Inscrits!B:E,3,FALSE)),\"\",VLOOKUP(D12,Inscrits!B:E,3,FALSE))","v":""},{"$f":"IF(ISNA(VLOOKUP(D12,Inscrits!B:E,4,FALSE)),\"\",VLOOKUP(D12,Inscrits!B:E,4,FALSE))","v":""},"R1"]
[null,null,14,{"$f":"IF(Final!D20=\"A\",Final!B20,IF(Final!D19=\"A\",Final!B19,IF(Final!D19<Final!D20,Final!B19,Final!B20)))","v":""},null,{"$f":"IF(ISNA(IF(LEFT(Division,2)=\"R1\",VLOOKUP(E13,Points!$A$2:$D$36,2,FALSE),IF(LEFT(Division,2)=\"R2\",VLOOKUP(E13,Points!$A$2:$D$36,3,FALSE),IF(LEFT(Division,2)=\"R3\",VLOOKUP(E13,Points!$A$2:$D$36,4,FALSE),\"DIV ???\")))),0,IF(LEFT(Division,2)=\"R1\",VLOOKUP(E13,Points!$A$2:$D$36,2,FALSE),IF(LEFT(Division,2)=\"R2\",VLOOKUP(E13,Points!$A$2:$D$36,3,FALSE),IF(LEFT(Division,2)=\"R3\",VLOOKUP(E13,Points!$A$2:$D$36,4,FALSE),\"DIV ???\"))))","v":0},{"$f":"IF(ISERROR(VLOOKUP(D13,Final!$AF$4:$AI$35,4,FALSE)),\"\",VLOOKUP(D13,Final!$AF$4:$AI$35,4,FALSE))","v":""},null,null,{"$f":"IF(ISNA(VLOOKUP(D13,Inscrits!B:E,3,FALSE)),\"\",VLOOKUP(D13,Inscrits!B:E,3,FALSE))","v":""},{"$f":"IF(ISNA(VLOOKUP(D13,Inscrits!B:E,4,FALSE)),\"\",VLOOKUP(D13,Inscrits!B:E,4,FALSE))","v":""},"R1"]
[null,null,12,{"$f":"IF(Final!D14=\"A\",Final!B14,IF(Final!D13=\"A\",Final!B13,IF(Final!D13<Final!D14,Final!B13,Final!B14)))","v":""},null,{"$f":"IF(ISNA(IF(LEFT(Division,2)=\"R1\",VLOOKUP(E14,Points!$A$2:$D$36,2,FALSE),IF(LEFT(Division,2)=\"R2\",VLOOKUP(E14,Points!$A$2:$D$36,3,FALSE),IF(LEFT(Division,2)=\"R3\",VLOOKUP(E14,Points!$A$2:$D$36,4,FALSE),\"DIV ???\")))),0,IF(LEFT(Division,2)=\"R1\",VLOOKUP(E14,Points!$A$2:$D$36,2,FALSE),IF(LEFT(Division,2)=\"R2\",VLOOKUP(E14,Points!$A$2:$D$36,3,FALSE),IF(LEFT(Division,2)=\"R3\",VLOOKUP(E14,Points!$A$2:$D$36,4,FALSE),\"DIV ???\"))))","v":0},{"$f":"IF(ISERROR(VLOOKUP(D14,Final!$AF$4:$AI$35,4,FALSE)),\"\",VLOOKUP(D14,Final!$AF$4:$AI$35,4,FALSE))","v":""},null,null,{"$f":"IF(ISNA(VLOOKUP(D14,Inscrits!B:E,3,FALSE)),\"\",VLOOKUP(D14,Inscrits!B:E,3,FALSE))","v":""},{"$f":"IF(ISNA(VLOOKUP(D14,Inscrits!B:E,4,FALSE)),\"\",VLOOKUP(D14,Inscrits!B:E,4,FALSE))","v":""},"R1"]
[null,null,13,{"$f":"IF(Final!D17=\"A\",Final!B17,IF(Final!D16=\"A\",Final!B16,IF(Final!D16<Final!D17,Final!B16,Final!B17)))","v":""},null,{"$f":"IF(ISNA(IF(LEFT(Division,2)=\"R1\",VLOOKUP(E15,Points!$A$2:$D$36,2,FALSE),IF(LEFT(Division,2)=\"R2\",VLOOKUP(E15,Points!$A$2:$D$36,3,FALSE),IF(LEFT(Division,2)=\"R3\",VLOOKUP(E15,Points!$A$2:$D$36,4,FALSE),\"DIV ???\")))),0,IF(LEFT(Division,2)=\"R1\",VLOOKUP(E15,Points!$A$2:$D$36,2,FALSE),IF(LEFT(Division,2)=\"R2\",VLOOKUP(E15,Points!$A$2:$D$36,3,FALSE),IF(LEFT(Division,2)=\"R3\",VLOOKUP(E15,Points!$A$2:$D$36,4,FALSE),\"DIV ???\"))))","v":0},{"$f":"IF(ISERROR(VLOOKUP(D15,Final!$AF$4:$AI$35,4,FALSE)),\"\",VLOOKUP(D15,Final!$AF$4:$AI$35,4,FALSE))","v":""},null,null,{"$f":"IF(ISNA(VLOOKUP(D15,Inscrits!B:E,3,FALSE)),\"\",VLOOKUP(D15,Inscrits!B:E,3,FALSE))","v":""},{"$f":"IF(ISNA(VLOOKUP(D15,Inscrits!B:E,4,FALSE)),\"\",VLOOKUP(D15,Inscrits!B:E,4,FALSE))","v":""},"R1"]
[null,null,10,{"$f":"IF(Final!D8=\"A\",Final!B8,IF(Final!D7=\"A\",Final!B7,IF(Final!D7<Final!D8,Final!B7,Final!B8)))","v":""},null,{"$f":"IF(ISNA(IF(LEFT(Division,2)=\"R1\",VLOOKUP(E16,Points!$A$2:$D$36,2,FALSE),IF(LEFT(Division,2)=\"R2\",VLOOKUP(E16,Points!$A$2:$D$36,3,FALSE),IF(LEFT(Division,2)=\"R3\",VLOOKUP(E16,Points!$A$2:$D$36,4,FALSE),\"DIV ???\")))),0,IF(LEFT(Division,2)=\"R1\",VLOOKUP(E16,Points!$A$2:$D$36,2,FALSE),IF(LEFT(Division,2)=\"R2\",VLOOKUP(E16,Points!$A$2:$D$36,3,FALSE),IF(LEFT(Division,2)=\"R3\",VLOOKUP(E16,Points!$A$2:$D$36,4,FALSE),\"DIV ???\"))))","v":0},{"$f":"IF(ISERROR(VLOOKUP(D16,Final!$AF$4:$AI$35,4,FALSE)),\"\",VLOOKUP(D16,Final!$AF$4:$AI$35,4,FALSE))","v":""},null,null,{"$f":"IF(ISNA(VLOOKUP(D16,Inscrits!B:E,3,FALSE)),\"\",VLOOKUP(D16,Inscrits!B:E,3,FALSE))","v":""},{"$f":"IF(ISNA(VLOOKUP(D16,Inscrits!B:E,4,FALSE)),\"\",VLOOKUP(D16,Inscrits!B:E,4,FALSE))","v":""},"R1"]
[null,null,15,{"$f":"IF(Final!D23=\"A\",Final!B23,IF(Final!D22=\"A\",Final!B22,IF(Final!D22<Final!D23,Final!B22,Final!B23)))","v":""},null,{"$f":"IF(ISNA(IF(LEFT(Division,2)=\"R1\",VLOOKUP(E17,Points!$A$2:$D$36,2,FALSE),IF(LEFT(Division,2)=\"R2\",VLOOKUP(E17,Points!$A$2:$D$36,3,FALSE),IF(LEFT(Division,2)=\"R3\",VLOOKUP(E17,Points!$A$2:$D$36,4,FALSE),\"DIV ???\")))),0,IF(LEFT(Division,2)=\"R1\",VLOOKUP(E17,Points!$A$2:$D$36,2,FALSE),IF(LEFT(Division,2)=\"R2\",VLOOKUP(E17,Points!$A$2:$D$36,3,FALSE),IF(LEFT(Division,2)=\"R3\",VLOOKUP(E17,Points!$A$2:$D$36,4,FALSE),\"DIV ???\"))))","v":0},{"$f":"IF(ISERROR(VLOOKUP(D17,Final!$AF$4:$AI$35,4,FALSE)),\"\",VLOOKUP(D17,Final!$AF$4:$AI$35,4,FALSE))","v":""},null,null,{"$f":"IF(ISNA(VLOOKUP(D17,Inscrits!B:E,3,FALSE)),\"\",VLOOKUP(D17,Inscrits!B:E,3,FALSE))","v":""},{"$f":"IF(ISNA(VLOOKUP(D17,Inscrits!B:E,4,FALSE)),\"\",VLOOKUP(D17,Inscrits!B:E,4,FALSE))","v":""},"R1"]
[null,null,18,{"$f":"'1'!AR15","v":""},null,{"$f":"IF(ISNA(IF(LEFT(Division,2)=\"R1\",VLOOKUP(E18,Points!$A$2:$D$36,2,FALSE),IF(LEFT(Division,2)=\"R2\",VLOOKUP(E18,Points!$A$2:$D$36,3,FALSE),IF(LEFT(Division,2)=\"R3\",VLOOKUP(E18,Points!$A$2:$D$36,4,FALSE),\"DIV ???\")))),0,IF(LEFT(Division,2)=\"R1\",VLOOKUP(E18,Points!$A$2:$D$36,2,FALSE),IF(LEFT(Division,2)=\"R2\",VLOOKUP(E18,Points!$A$2:$D$36,3,FALSE),IF(LEFT(Division,2)=\"R3\",VLOOKUP(E18,Points!$A$2:$D$36,4,FALSE),\"DIV ???\"))))","v":0},{"$f":"IF(ISERROR(VLOOKUP(D18,Final!$AF$4:$AI$35,4,FALSE)),\"\",VLOOKUP(D18,Final!$AF$4:$AI$35,4,FALSE))","v":""},null,null,{"$f":"IF(ISNA(VLOOKUP(D18,Inscrits!B:E,3,FALSE)),\"\",VLOOKUP(D18,Inscrits!B:E,3,FALSE))","v":""},{"$f":"IF(ISNA(VLOOKUP(D18,Inscrits!B:E,4,FALSE)),\"\",VLOOKUP(D18,Inscrits!B:E,4,FALSE))","v":""},"R1"]
[null,null,17,{"$f":"'1'!AR14","v":""},null,{"$f":"IF(ISNA(IF(LEFT(Division,2)=\"R1\",VLOOKUP(E19,Points!$A$2:$D$36,2,FALSE),IF(LEFT(Division,2)=\"R2\",VLOOKUP(E19,Points!$A$2:$D$36,3,FALSE),IF(LEFT(Division,2)=\"R3\",VLOOKUP(E19,Points!$A$2:$D$36,4,FALSE),\"DIV ???\")))),0,IF(LEFT(Division,2)=\"R1\",VLOOKUP(E19,Points!$A$2:$D$36,2,FALSE),IF(LEFT(Division,2)=\"R2\",VLOOKUP(E19,Points!$A$2:$D$36,3,FALSE),IF(LEFT(Division,2)=\"R3\",VLOOKUP(E19,Points!$A$2:$D$36,4,FALSE),\"DIV ???\"))))","v":0},{"$f":"IF(ISERROR(VLOOKUP(D19,Final!$AF$4:$AI$35,4,FALSE)),\"\",VLOOKUP(D19,Final!$AF$4:$AI$35,4,FALSE))","v":""},null,null,{"$f":"IF(ISNA(VLOOKUP(D19,Inscrits!B:E,3,FALSE)),\"\",VLOOKUP(D19,Inscrits!B:E,3,FALSE))","v":""},{"$f":"IF(ISNA(VLOOKUP(D19,Inscrits!B:E,4,FALSE)),\"\",VLOOKUP(D19,Inscrits!B:E,4,FALSE))","v":""},"R1"]
[null,null,19,{"$f":"'2'!AR14","v":""},null,{"$f":"IF(ISNA(IF(LEFT(Division,2)=\"R1\",VLOOKUP(E20,Points!$A$2:$D$36,2,FALSE),IF(LEFT(Division,2)=\"R2\",VLOOKUP(E20,Points!$A$2:$D$36,3,FALSE),IF(LEFT(Division,2)=\"R3\",VLOOKUP(E20,Points!$A$2:$D$36,4,FALSE),\"DIV ???\")))),0,IF(LEFT(Division,2)=\"R1\",VLOOKUP(E20,Points!$A$2:$D$36,2,FALSE),IF(LEFT(Division,2)=\"R2\",VLOOKUP(E20,Points!$A$2:$D$36,3,FALSE),IF(LEFT(Division,2)=\"R3\",VLOOKUP(E20,Points!$A$2:$D$36,4,FALSE),\"DIV ???\"))))","v":0},{"$f":"IF(ISERROR(VLOOKUP(D20,Final!$AF$4:$AI$35,4,FALSE)),\"\",VLOOKUP(D20,Final!$AF$4:$AI$35,4,FALSE))","v":""},null,null,{"$f":"IF(ISNA(VLOOKUP(D20,Inscrits!B:E,3,FALSE)),\"\",VLOOKUP(D20,Inscrits!B:E,3,FALSE))","v":""},{"$f":"IF(ISNA(VLOOKUP(D20,Inscrits!B:E,4,FALSE)),\"\",VLOOKUP(D20,Inscrits!B:E,4,FALSE))","v":""},"R1"]
[null,null,23,{"$f":"'4'!AR14","v":""},null,{"$f":"IF(ISNA(IF(LEFT(Division,2)=\"R1\",VLOOKUP(E21,Points!$A$2:$D$36,2,FALSE),IF(LEFT(Division,2)=\"R2\",VLOOKUP(E21,Points!$A$2:$D$36,3,FALSE),IF(LEFT(Division,2)=\"R3\",VLOOKUP(E21,Points!$A$2:$D$36,4,FALSE),\"DIV ???\")))),0,IF(LEFT(Division,2)=\"R1\",VLOOKUP(E21,Points!$A$2:$D$36,2,FALSE),IF(LEFT(Division,2)=\"R2\",VLOOKUP(E21,Points!$A$2:$D$36,3,FALSE),IF(LEFT(Division,2)=\"R3\",VLOOKUP(E21,Points!$A$2:$D$36,4,FALSE),\"DIV ???\"))))","v":0},{"$f":"IF(ISERROR(VLOOKUP(D21,Final!$AF$4:$AI$35,4,FALSE)),\"\",VLOOKUP(D21,Final!$AF$4:$AI$35,4,FALSE))","v":""},null,null,{"$f":"IF(ISNA(VLOOKUP(D21,Inscrits!B:E,3,FALSE)),\"\",VLOOKUP(D21,Inscrits!B:E,3,FALSE))","v":""},{"$f":"IF(ISNA(VLOOKUP(D21,Inscrits!B:E,4,FALSE)),\"\",VLOOKUP(D21,Inscrits!B:E,4,FALSE))","v":""},"R1"]
[null,null,20,{"$f":"'2'!AR15","v":""},null,{"$f":"IF(ISNA(IF(LEFT(Division,2)=\"R1\",VLOOKUP(E22,Points!$A$2:$D$36,2,FALSE),IF(LEFT(Division,2)=\"R2\",VLOOKUP(E22,Points!$A$2:$D$36,3,FALSE),IF(LEFT(Division,2)=\"R3\",VLOOKUP(E22,Points!$A$2:$D$36,4,FALSE),\"DIV ???\")))),0,IF(LEFT(Division,2)=\"R1\",VLOOKUP(E22,Points!$A$2:$D$36,2,FALSE),IF(LEFT(Division,2)=\"R2\",VLOOKUP(E22,Points!$A$2:$D$36,3,FALSE),IF(LEFT(Division,2)=\"R3\",VLOOKUP(E22,Points!$A$2:$D$36,4,FALSE),\"DIV ???\"))))","v":0},{"$f":"IF(ISERROR(VLOOKUP(D22,Final!$AF$4:$AI$35,4,FALSE)),\"\",VLOOKUP(D22,Final!$AF$4:$AI$35,4,FALSE))","v":""},null,null,{"$f":"IF(ISNA(VLOOKUP(D22,Inscrits!B:E,3,FALSE)),\"\",VLOOKUP(D22,Inscrits!B:E,3,FALSE))","v":""},{"$f":"IF(ISNA(VLOOKUP(D22,Inscrits!B:E,4,FALSE)),\"\",VLOOKUP(D22,Inscrits!B:E,4,FALSE))","v":""},"R1"]
[null,null,21,{"$f":"'3'!AR14","v":""},null,{"$f":"IF(ISNA(IF(LEFT(Division,2)=\"R1\",VLOOKUP(E23,Points!$A$2:$D$36,2,FALSE),IF(LEFT(Division,2)=\"R2\",VLOOKUP(E23,Points!$A$2:$D$36,3,FALSE),IF(LEFT(Division,2)=\"R3\",VLOOKUP(E23,Points!$A$2:$D$36,4,FALSE),\"DIV ???\")))),0,IF(LEFT(Division,2)=\"R1\",VLOOKUP(E23,Points!$A$2:$D$36,2,FALSE),IF(LEFT(Division,2)=\"R2\",VLOOKUP(E23,Points!$A$2:$D$36,3,FALSE),IF(LEFT(Division,2)=\"R3\",VLOOKUP(E23,Points!$A$2:$D$36,4,FALSE),\"DIV ???\"))))","v":0},{"$f":"IF(ISERROR(VLOOKUP(D23,Final!$AF$4:$AI$35,4,FALSE)),\"\",VLOOKUP(D23,Final!$AF$4:$AI$35,4,FALSE))","v":""},null,null,{"$f":"IF(ISNA(VLOOKUP(D23,Inscrits!B:E,3,FALSE)),\"\",VLOOKUP(D23,Inscrits!B:E,3,FALSE))","v":""},{"$f":"IF(ISNA(VLOOKUP(D23,Inscrits!B:E,4,FALSE)),\"\",VLOOKUP(D23,Inscrits!B:E,4,FALSE))","v":""},"R1"]
[null,null,22,{"$f":"'3'!AR15","v":""},null,{"$f":"IF(ISNA(IF(LEFT(Division,2)=\"R1\",VLOOKUP(E24,Points!$A$2:$D$36,2,FALSE),IF(LEFT(Division,2)=\"R2\",VLOOKUP(E24,Points!$A$2:$D$36,3,FALSE),IF(LEFT(Division,2)=\"R3\",VLOOKUP(E24,Points!$A$2:$D$36,4,FALSE),\"DIV ???\")))),0,IF(LEFT(Division,2)=\"R1\",VLOOKUP(E24,Points!$A$2:$D$36,2,FALSE),IF(LEFT(Division,2)=\"R2\",VLOOKUP(E24,Points!$A$2:$D$36,3,FALSE),IF(LEFT(Division,2)=\"R3\",VLOOKUP(E24,Points!$A$2:$D$36,4,FALSE),\"DIV ???\"))))","v":0},{"$f":"IF(ISERROR(VLOOKUP(D24,Final!$AF$4:$AI$35,4,FALSE)),\"\",VLOOKUP(D24,Final!$AF$4:$AI$35,4,FALSE))","v":""},null,null,{"$f":"IF(ISNA(VLOOKUP(D24,Inscrits!B:E,3,FALSE)),\"\",VLOOKUP(D24,Inscrits!B:E,3,FALSE))","v":""},{"$f":"IF(ISNA(VLOOKUP(D24,Inscrits!B:E,4,FALSE)),\"\",VLOOKUP(D24,Inscrits!B:E,4,FALSE))","v":""},"R1"]
[null,null,24,{"$f":"'4'!AR15","v":""},null,{"$f":"IF(ISNA(IF(LEFT(Division,2)=\"R1\",VLOOKUP(E25,Points!$A$2:$D$36,2,FALSE),IF(LEFT(Division,2)=\"R2\",VLOOKUP(E25,Points!$A$2:$D$36,3,FALSE),IF(LEFT(Division,2)=\"R3\",VLOOKUP(E25,Points!$A$2:$D$36,4,FALSE),\"DIV ???\")))),0,IF(LEFT(Division,2)=\"R1\",VLOOKUP(E25,Points!$A$2:$D$36,2,FALSE),IF(LEFT(Division,2)=\"R2\",VLOOKUP(E25,Points!$A$2:$D$36,3,FALSE),IF(LEFT(Division,2)=\"R3\",VLOOKUP(E25,Points!$A$2:$D$36,4,FALSE),\"DIV ???\"))))","v":0},{"$f":"IF(ISERROR(VLOOKUP(D25,Final!$AF$4:$AI$35,4,FALSE)),\"\",VLOOKUP(D25,Final!$AF$4:$AI$35,4,FALSE))","v":""},null,null,{"$f":"IF(ISNA(VLOOKUP(D25,Inscrits!B:E,3,FALSE)),\"\",VLOOKUP(D25,Inscrits!B:E,3,FALSE))","v":""},{"$f":"IF(ISNA(VLOOKUP(D25,Inscrits!B:E,4,FALSE)),\"\",VLOOKUP(D25,Inscrits!B:E,4,FALSE))","v":""},"R1"]

{"sheet":"Feuil1","index":9,"n_rows":1317,"n_cols":3,"rows_kept":1317,"cut":false,"hidden":false,"merged":[]}
["Licence","Nom Prenom","Nom Club"]
["163282F","AARAB LAHOUSINE","CLUB CHAMBERIEN DE BILLARD"]
["164727B","ABBO SEBASTIAN","CLUB CHAMBERIEN DE BILLARD"]
["113202Y","ABDOULZABAR CARIME","GROUPE SPORTIF LUGDUNUM"]
["124158I","ABISSET ANTHONY","LES SQUALES"]
["151373L","ABLONDI LAURENT","CERCLE DES CHEFS D ATELIER"]
["015873N","ABOUAF DANIEL","ACADEMIE BILLARD OUEST LYONNAIS"]
["011023Z","ABRAM CHARLES","BILLARD CLUB MOULINS"]
["153509H","ABRIAL NICOLE","AMICALE BILLARD CLUB DE DAVEZIEUX"]
["163731T","ACCARD ROBERT","ACADEMIE ANNECIENNE DE BILLARD"]
["152956G","ACCETTOLA ELIO","ACADEMIE DE BILLARD DE CHASSIEU"]
["016009T","ACHARD LOUIS","ACAD. DE BILLARD DE SAINT-ETIENNE"]
["020465D","ACHARD PATRICK","ACADEMIE DE BILLARD DE HAUTE LOIRE"]
["161258F","ADON MARC OLIVIER","ACADEMIE DE BILLARD DE LA VALSERINE"]
["144036W","AGEORGES PIERRE ANDRE","ACADEMIE BILLARD OUEST LYONNAIS"]
["163554B","AGNEL FLORENT","LES SQUALES"]
["PS004238G","AIOUAZ MEINEL","CLUB OMNISPORTS DE SAINT FONS"]
["153575E","ALBASINI RENE","VALENCE BILLARD CLUB"]
["160649T","ALLEGRE GUY","ASS. SPORTIVE MUNICIPALE ST ETIENNE"]
["122424Q","ALONSO LUCIEN","A.B. DE BOURGOIN-JALLIEU"]
["152592L","ALTISEN ELIOS","GROUPE SPORTIF LUGDUNUM"]
["PS004239H","AMABLE JADENE","CLUB OMNISPORTS DE SAINT FONS"]
["157089Z","AMORETTI JACQUES","VALENCE BILLARD CLUB"]
["100896Q","ANDRE PASCAL","BILLARD CLUB DE LA PLAINE DU FOREZ"]
["156263B","ANDRIBET MARC","CERCLE DES CHEFS D ATELIER"]
["153556J","ANDRIEU EVELYNE","BILLARD CLUB GRENOBLOIS"]
["153555H","ANDRIEU JEAN PIERRE","BILLARD CLUB GRENOBLOIS"]
["159829C","ANGELO NATHANAEL","CHARLEMAGNE SNOOKER CLUB"]
["121510M","ANNEIX JACQUES","BILLARD CLUB BOURBON"]
["164360C","ANNEQUIN JEAN FRANCOIS","CERCLE DES CHEFS D ATELIER"]
["164835T","ANTOLINEZ LUIS","ACADEMIE ANNECIENNE DE BILLARD"]
["160875P","ARCIDIACONO ANTOINE","GROUPE SPORTIF LUGDUNUM"]
["015777V","ARMAND BRUNO","VALENCE BILLARD CLUB"]
["015866G","ARMAND JEAN LOUIS","BILLARD CLUB ROMANAIS PEAGEOIS"]
["152479N","ARMANDI JEAN CLAUDE","BILLARD CLUB BOURBON"]
["159063V","ARNAUD JEAN PHILIPPE","BILLARD CLUB DE CLARAFOND ARCINE"]
["100971N","ARNAUD PHILIPPE","CLUB DE BILLARD MONTBRISONNAIS"]
["162532Q","ARTICO JOEL","BILLARD STELLA THONON"]
["164726A","ASTIC JULIAN","BILLARD CLUB ROMANAIS PEAGEOIS"]
["149077Q","AUBERT LIBERTO","BILLARD CLUB MOULINS"]
["130057F","AUBERT PIERRE","ACADEMIE ANNECIENNE DE BILLARD"]
["022383X","AUBERT ROUECHE ERIC","CLUB OMNISPORTS DE SAINT FONS"]
["140567L","AUBRY DOMINIQUE","ACADEMIE DE BILLARD D AUBENAS"]
["136248I","AUDIN GUY","ACADEMIE ANNECIENNE DE BILLARD"]
["148023V","AUFFRET MARCEL","BILLARD STELLA THONON"]
["161664X","AUGAGNEUR GABRIEL","CERCLE DES CHEFS D ATELIER"]
["016143X","AUGAGNEUR JEAN PAUL","ASS. SPORTIVE MUNICIPALE ST ETIENNE"]
["015881V","AURAND LOUIS","BILLARD CLUB PONTOIS"]
["163952J","AUVITY SEBASTIEN","EIGHT'S POOL GAME"]
["100953V","AVEDISSIAN HENRI","ACADEMIE DE BILLARD DE CHASSIEU"]
["147114G","AVET BERNARD","BILLARD CLUB AIXOIS"]
["PS004240J","AYDIN NAZIFE","CLUB OMNISPORTS DE SAINT FONS"]
["PS004241K","AZEVEDO ALVES DIOGO","CLUB OMNISPORTS DE SAINT FONS"]
["126989F","AZUELOS MAXIME","CLUB CHAMBERIEN DE BILLARD"]
["PS004300Z","BAAROUBA SYRINE","CLUB OMNISPORTS DE SAINT FONS"]
["159062T","BABEL STEPHANIE","BILLARD CLUB DE CLARAFOND ARCINE"]
["137597F","BACCAM BOUNLIENG","NIGHT BILLARD CLUB"]
["146104K","BACCAM HELENE","NIGHT BILLARD CLUB"]
["159789J","BACHELET DANIEL","A.B. DE BOURGOIN-JALLIEU"]
["016416K","BAILLY CLAUDE","CLUB CHAMBERIEN DE BILLARD"]
["126039R","BAILLY FABRICE","BILLARD CLUB LYONNAIS 8 POOL"]
["015869J","BAIZET CHRISTIAN","BILLARD CLUB ROMANAIS PEAGEOIS"]
["145368C","BALEYDIER HENRI","CLUB DE BILLARD MONTBRISONNAIS"]
["160643M","BALHAND SEBASTIEN","CLUB CHAMBERIEN DE BILLARD"]
["143441Z","BANCILHON JEAN","BILLARD CLUB ROMANAIS PEAGEOIS"]
["160730G","BAPST CHRISTIAN","SAINT CHAMOND BILLARD CLUB"]
["138977H","BARBIER YANN","Licenciés indépendants 42"]
["159354L","BARGE EMMANUEL","LES SQUALES"]
["164274J","BARIZZA DANIEL","CLUB CHAMBERIEN DE BILLARD"]
["140811V","BARRALON FREDERIC","BILLARD CLUB DE SAINT-GALMIER"]
["132960W","BARRAUD PIERRE","BILLARD CLUB DE VILLEFRANCHE"]
["151506F","BARROIS ALAIN","CLUB CHAMBERIEN DE BILLARD"]
["149764M","BARSE BRUNO","BILLARD CLUB VICHY"]
["147501C","BASTIDA ROBERT","LE TAPIS VERT ROANNAIS"]
["015826S","BATAILLE RAYMOND","BILLARD CLUB PONTOIS"]
["160876Q","BAUDIN LILIANE","GROUPE SPORTIF LUGDUNUM"]
["161105P","BAUMANN CLAUDE","LE TAPIS VERT ROANNAIS"]
["016085R","BAUP PASCAL","ACADEMIE ANNECIENNE DE BILLARD"]
["015996G","BAVUSO FRANCOIS","ACAD. DE BILLARD DE SAINT-ETIENNE"]
["163988Y","BAYA FOUAD","ASSOCIATION DU LAKE PUB 74"]
["164579Q","BAYARD AURELIO","CERCLE DES CHEFS D ATELIER"]
["132971H","BAYET BENOIT","CLUB DE BILLARD MONTBRISONNAIS"]
["137591Z","BAYET BRUNO","CLUB DE BILLARD MONTBRISONNAIS"]
["150876W","BEAUCLAIR JEAN RENE","ACADEMIE DE BILLARD DE LA VALSERINE"]
["158185Q","BEAUD CHRISTOPHE","CLUB CHAMBERIEN DE BILLARD"]
["149841W","BEAUFILS JEAN PATRICK","CLUB CHAMBERIEN DE BILLARD"]
["160179H","BECCHIA CLAUDE","ACADEMIE ANNECIENNE DE BILLARD"]
["144173D","BEE JEAN LUC","B.S.CLERMONTOIS"]
["PS004305E","BEKADA KAYLA","CLUB OMNISPORTS DE SAINT FONS"]
["130046U","BELBECIR MOURAD","BILLARD CLUB 109"]
["157793P","BELGUERMI NICOLAS","ACAD. DE BILLARD DE SAINT-ETIENNE"]
["162798E","BELLEGY LUCIEN","CLUB DE BILLARD MONTBRISONNAIS"]
["162814X","BELLET SYLVAIN","CHARLEMAGNE SNOOKER CLUB"]
["132940C","BEN ALLAL YASSINE","BILLARD CLUB 109"]
["163592S","BENABDESSELAM YASSINE","BILLARD CLUB LYONNAIS 8 POOL"]
["162934C","BENITA CLAUDE","CLUB CHAMBERIEN DE BILLARD"]
["137590Y","BENOIT LUCIEN","CLUB DE BILLARD MONTBRISONNAIS"]
["135834K","BERARD HERVE","BILLARD CLUB 109"]
["156508S","BERCHE JEAN LUC","BILLARD CLUB ISSOIRE"]
["164513T","BERENGER MATHIEU","VALENCE BILLARD CLUB"]
["137610S","BERENGUER MANUEL","ACADEMIE DE BILLARD DE CHASSIEU"]
["143524E","BERGALLOU ANOUAR","ACADEMIE DE BILLARD DE LA VALSERINE"]
["016488E","BERGER CHRISTIAN","BILLARD CLUB DE SAINT-GALMIER"]
["127290U","BERGER MICHEL","VALENCE BILLARD CLUB"]
["164020H","BERGERET LAURE","BILLARD CLUB DE BOURG EN BRESSE"]
["155901H","BERGNES LENNY","BILLARD CLUB PONTOIS"]
["149474X","BERLIAT PATRICIA","BILLARD CLUB PONTOIS"]
["137600I","BERLIAT REGIS","BILLARD CLUB PONTOIS"]
["165571T","BERLIOZ MAXENCE","ACADEMIE ANNECIENNE DE BILLARD"]
["142693F","BERNARD ALAIN","CLUB DE BILLARD MONTBRISONNAIS"]
["164764R","BERNARD MAZZURCO MICHEL","LES SQUALES"]
["163974H","BERNARD SERGE","B.S.CLERMONTOIS"]
["156134L","BERNE MARC","AMICALE BILLARD CLUB DE DAVEZIEUX"]
["100867N","BERNILLON MARCEL","CLUB OMNISPORTS DE SAINT FONS"]
["153217Q","BERRAHOU SOLANGE","ACADEMIE DE BILLARD DE LA VALSERINE"]
["125035B","BERRIN RENAUD","CERCLE DES CHEFS D ATELIER"]
["015900O","BERRUYER ROGER","BILLARD CLUB ROMANAIS PEAGEOIS"]
["113203Z","BERTE EMMANUEL","GROUPE SPORTIF LUGDUNUM"]
["015959V","BERTHELIER PATRICK","LE TAPIS VERT ROANNAIS"]
["151771T","BERTHET JACQUES","CERCLE DES CHEFS D ATELIER"]
["100869P","BERTHIER DOMINIQUE","CLUB OMNISPORTS DE SAINT FONS"]
["016073F","BERTHOLON GERARD","ACAD. DE BILLARD DE SAINT-ETIENNE"]
["PS004242L","BERTHOME LUCIE","CLUB OMNISPORTS DE SAINT FONS"]
["129026O","BERTOTTO CHRISTIAN","BILLARD CLUB ISSOIRE"]
["160731H","BERTRAND ADRIEN","ACADEMIE DE BILLARD DE CHASSIEU"]
["149988F","BESNIER ALAIN","GROUPE SPORTIF LUGDUNUM"]
["159641Y","BESSE DANIEL","BILLARD CLUB GRENOBLOIS"]
["136247H","BESSE YVES","ACADEMIE ANNECIENNE DE BILLARD"]
["107766W","BESSON JEAN BAPTISTE","CERCLE DES CHEFS D ATELIER"]
["150947Y","BESSON JEROME","BILLARD CLUB DE CLARAFOND ARCINE"]
["100973P","BETTES JEAN LOUIS","BILLARD CLUB ROMANAIS PEAGEOIS"]
["136030Y","BEZIER RENAUD","ACADEMIE BILLARD OUEST LYONNAIS"]
["138321B","BIALORUCKI ANTOINE","CHARLEMAGNE SNOOKER CLUB"]
["153987C","BIBIER COCATRIX MICHEL","ACADEMIE ANNECIENNE DE BILLARD"]
["164109E","BIED CHARRETON OSCAR","ACAD. DE BILLARD DE SAINT-ETIENNE"]
["137839N","BIENNE CYRIL","CHARLEMAGNE SNOOKER CLUB"]
["157066Z","BIGNANI PATRICK","ACADEMIE DE BILLARD D AUBENAS"]
["100915J","BILLARD JEAN LOUIS","CLUB CHAMBERIEN DE BILLARD"]
["150687Q","BITTON HUBERT","GROUPE SPORTIF LUGDUNUM"]
["112458I","BLANC FRANCIS","ACADEMIE BILLARD OUEST LYONNAIS"]
["112490O","BLANCHARD CLAUDE","ACADEMIE ANNECIENNE DE BILLARD"]
["138188Y","BLANCHET PATRICK","BLACKBALL BILLARD CLUB BESAYES 26"]
["136202O","BLANCHIN GERARD","LE TAPIS VERT ROANNAIS"]
["014638A","BLETON CLAUDE","CERCLE DES CHEFS D ATELIER"]
["163788F","BLONDELLE CLEMENT","BILLARD CLUB 8 POOL EVIAN"]
["016219V","BLONDOT YVES","ACADEMIE ANNECIENNE DE BILLARD"]
["133632S","BLUET JEAN MARIE","ACADEMIE DE BILLARD DE CHASSIEU"]
["100009N","BOBEE GREGORY","BILLARD CLUB DE SAINT-GALMIER"]
["156521G","BOCHARD PHILIPPE","BILLARD CLUB ISSOIRE"]
["156787W","BODEREAU AMELIE","VEYRE-MONTON BILLARD CLUB"]
["152681H","BODEREAU JOHANNY","VEYRE-MONTON BILLARD CLUB"]
["016378Y","BOISSIERAS JEAN","GROUPE SPORTIF LUGDUNUM"]
["143741N","BOISSIERE VINCENT","BILLARD CLUB GRENOBLOIS"]
["015787F","BOISSOU ROBERT","CLUB CHAMBERIEN DE BILLARD"]
["146112S","BONDOUY FREDERIK","ACADEMIE DE BILLARD D AUBENAS"]
["145637L","BONNAMOUR ETIENNE","CLUB DE BILLARD MONTBRISONNAIS"]
["160605W","BONNARD MARTINE","ACADEMIE DE BILLARD DE CHASSIEU"]
["150753M","BONNEAU LIONEL","ACADEMIE ANNECIENNE DE BILLARD"]
["015796O","BONNEFOI RICHARD","CLUB OMNISPORTS DE SAINT FONS"]
["148303Z","BONNEFOND CHRISTIAN","ACADEMIE BILLARD OUEST LYONNAIS"]
["157880J","BONTOUX SYLVIE","EIGHT'S POOL GAME"]
["147937B","BORDET ANDRE","CERCLE DES CHEFS D ATELIER"]
["148330D","BORDET JOSETTE","CERCLE DES CHEFS D ATELIER"]
["163047A","BORDET LEO","ACADEMIE DE BILLARD DE CHASSIEU"]
["156534W","BORGEAT CHRISTIANE","ACADEMIE DE BILLARD DE LA VALSERINE"]
["PS004124H","BORIE BASTIEN","CLUB DE BILLARD MONTBRISONNAIS"]
["016337J","BORNET PHILIPPE","CERCLE DES CHEFS D ATELIER"]
["016111R","BORY PHILIPPE","CLUB DE BILLARD MONTBRISONNAIS"]
["133771B","BOSIA JULIEN","BILLARD CLUB DE GAILLARD"]
["154029Y","BOSQUET HENRI","VALENCE BILLARD CLUB"]
["015843J","BOTTON JACKY","BILLARD CLUB PONTOIS"]
["PS004243M","BOUCHERBA ANISSA","CLUB OMNISPORTS DE SAINT FONS"]
["011105D","BOUDAILLIER PIERRE","B.S.CLERMONTOIS"]
["160877R","BOULADE COLETTE","GROUPE SPORTIF LUGDUNUM"]
["157063W","BOULAND DANIEL","ACADEMIE ANNECIENNE DE BILLARD"]
["130420E","BOURDIC CLAUDE","A.B. DE BOURGOIN-JALLIEU"]
["152907D","BOURDIER JACQUES","BILLARD CLUB VICHY"]
["011141N","BOURDIN JACQUES","BILLARD CLUB MONTLUCONNAIS"]
["145359T","BOURDON DENIS","CLUB DE BILLARD MONTBRISONNAIS"]
["016056O","BOURGEOIS GERARD","BILLARD STELLA THONON"]
["021913V","BOURHIS JEAN","BILLARD CLUB PONTOIS"]
["164876N","BOURJA MOUNIR","BILLARD CLUB LYONNAIS 8 POOL"]
["016222Y","BOURLIER MAX","ACADEMIE ANNECIENNE DE BILLARD"]
["153570Z","BOURNAT MICHEL","VALENCE BILLARD CLUB"]
["164110F","BOURQUARD CATHERINE","ACAD. DE BILLARD DE SAINT-ETIENNE"]
["156432K","BOURREAU JEAN LUC","LE TAPIS VERT ROANNAIS"]
["155880K","BOUTET MAYEUL","BILLARD CLUB VICHY"]
["117186E","BOUTIN ANDRE","ACADEMIE BILLARD OUEST LYONNAIS"]
["160878S","BOUVAIST JEAN MARC","GROUPE SPORTIF LUGDUNUM"]
["160879T","BOUVAIST MARTINE","GROUPE SPORTIF LUGDUNUM"]
["164853N","BOUVAT DANIEL","LA CARAMBOLE LISSILOISE"]
["015703Z","BOUVET ANDRE","ACADEMIE BILLARD OUEST LYONNAIS"]
["132936Y","BOUVIER CHRISTIAN","VALENCE BILLARD CLUB"]
["157649H","BOUVIER NATHALIE","BILLARD CLUB MOULINS"]
["135457X","BOUVIER PIERRE ADOLPHE","ACADEMIE BILLARD OUEST LYONNAIS"]
["162644M","BOUZOUZOU HAMID","BILLARD CLUB 109"]
["145377L","BOYER BERNARD","BILLARD CLUB ROMANAIS PEAGEOIS"]
["142216W","BOYER THIERRY","CERCLE DES CHEFS D ATELIER"]
["127310O","BRACEIRO JOSE","LES SQUALES"]
["165433T","BRAGARD MARIE","CERCLE DES CHEFS D ATELIER"]
["157930N","BRAGARD MARTIN","CERCLE DES CHEFS D ATELIER"]
["PS004306F","BRAIK YANIS","CLUB OMNISPORTS DE SAINT FONS"]
["135588Y","BRAYAT KEVIN","BIG BEN BLACKBALL"]
["016411F","BRAYER DENIS","ACADEMIE ANNECIENNE DE BILLARD"]
["164854P","BREDA CLAUDE","LA CARAMBOLE LISSILOISE"]
["112866A","BREDA YVES","BILLARD CLUB AIXOIS"]
["162580S","BREGRE LILOU","BIG BEN BLACKBALL"]
["162579R","BREGRE MAELYS","BIG BEN BLACKBALL"]
["159347D","BREGRE SEBASTIEN","BIG BEN BLACKBALL"]
["135920S","BRENDEL CHRISTIAN","BILLARD CLUB DE BOURG EN BRESSE"]
["100921P","BRICHET CHRISTIAN","ACADEMIE ANNECIENNE DE BILLARD"]
["135925X","BRISSE THIERRY","ACADEMIE DE BILLARD DE HAUTE LOIRE"]
["112484I","BROC AIME","ACADEMIE DE BILLARD DE HAUTE LOIRE"]
["161067Y","BROCARD GILLES","CERCLE DES CHEFS D ATELIER"]
["163160Y","BROCHAND EVELYNE","CERCLE DES CHEFS D ATELIER"]
["015727X","BROCHAND PATRICK","CERCLE DES CHEFS D ATELIER"]
["152651A","BROCHIER PATRICK","ACADEMIE DE BILLARD DE CHASSIEU"]
["155902J","BRUN CHRISTOPHE","BILLARD CLUB PONTOIS"]
["155127R","BRUNET GILLES","SAINT CHAMOND BILLARD CLUB"]
["163037P","BRUNET MARC","B.S.CLERMONTOIS"]
["156980F","BRUNET MAURICE","BILLARD CLUB DE BOURG EN BRESSE"]
["150014J","BRUNETAUD ALAIN","BILLARD CLUB AIXOIS"]
["165439A","BRUSINI TONY","ACADEMIE ANNECIENNE DE BILLARD"]
["100972O","BRUYAS ANTOINE","ACAD. DE BILLARD DE SAINT-ETIENNE"]
["165236E","BRUYERE KEVIN","AMICALE BILLARD CLUB DE DAVEZIEUX"]
["165008G","BUFFERNE CALVIN","AMICALE BILLARD CLUB DE DAVEZIEUX"]
["152401D","BUGIS ANDRE","BILLARD CLUB AIXOIS"]
["152593M","BUISSON JACQUES","GROUPE SPORTIF LUGDUNUM"]
["155923G","BUISSONNIERE DUSTIN","BILLARD CLUB VICHY"]
["132193J","BUREAU BENJAMIN","BILLARD CLUB LYONNAIS 8 POOL"]
["163857F","BURLET FRANCK","BILLARD CLUB 109"]
["164855Q","BURLET JEAN PAUL","LA CARAMBOLE LISSILOISE"]
["119288A","BUSSONNET JACKY","BILLARD CLUB VICHY"]
["015748S","CABANES PHILIPPE","BILLARD CLUB PONTOIS"]
["150869N","CABANET FLORENCE","NIGHT BILLARD CLUB"]
["127650Q","CABARET MICHEL","BILLARD CLUB GRENOBLOIS"]
["161384S","CADET DAVID CHRISTOPHER","BILLARD CLUB LYONNAIS 8 POOL"]
["106232W","CADILLON MICHEL","GROUPE SPORTIF LUGDUNUM"]
["112460K","CADORE JEAN LUC","ACADEMIE BILLARD OUEST LYONNAIS"]
["155631P","CADOUX DAMIEN","ASSOCIATION DU LAKE PUB 74"]
["156463T","CAESTEKER MARCEL","BILLARD CLUB ISSOIRE"]
["011036M","CAILLAT ANDRE","BILLARD CLUB MOULINS"]
["159763F","CAILLON ANNE CLAIRE","ACADEMIE DE BILLARD DE CHASSIEU"]
["164301N","CAILLOT GILLES","CERCLE DES CHEFS D ATELIER"]
["156114P","CALISTRI LIONEL","GROUPE SPORTIF LUGDUNUM"]
["161059P","CALYAKA ABDURRAHMAN","SAINT CHAMOND BILLARD CLUB"]
["012125J","CAMBERLIN FABIEN","CLUB DE BILLARD MONTBRISONNAIS"]
["164856R","CAMOUT GILBERT","LA CARAMBOLE LISSILOISE"]
["PS004307G","CANILLAS LYA","CLUB OMNISPORTS DE SAINT FONS"]
["122563Z","CAO VAN TRUONG JULIEN","GROUPE SPORTIF LUGDUNUM"]
["152780Q","CARAVATI PASCAL","BILLARD CLUB ROMANAIS PEAGEOIS"]
["164576M","CARDON CECILE","BILLARD CLUB LYONNAIS 8 POOL"]
["153644E","CARDOT MICHEL","ACADEMIE DE BILLARD DE CHASSIEU"]
["159396G","CARENZI ROLLAND","BILLARD CLUB AIXOIS"]
["162480J","CARLIER QUENTIN","BLACKBALL BILLARD CLUB BESAYES 26"]
["015983T","CARNAT ROBERT","LE TAPIS VERT ROANNAIS"]
["107379Z","CARNIATO LORENZO","BILLARD CLUB 8 POOL EVIAN"]
["152673Z","CARRERES MANUEL","LE TAPIS VERT ROANNAIS"]
["158097V","CARRET THALLER EVELYNE","CERCLE DES CHEFS D ATELIER"]
["145222M","CARRIER JULIEN","ASSOCIATION DU LAKE PUB 74"]
["156554S","CARRION TORRES ALBERTO","CERCLE DES CHEFS D ATELIER"]
["015822O","CARRON GERARD","GROUPE SPORTIF LUGDUNUM"]
["134297H","CAS MICHEL","BILLARD CLUB GRENOBLOIS"]
["161272W","CASSESE ARTHUR","VALENCE BILLARD CLUB"]
["108521X","CASSIS MAXIME","BILLARD CLUB GRENOBLOIS"]
["163092Z","CATIL DAVID","LES SQUALES"]
["122482W","CATTIN LOUIS","ACADEMIE BILLARD OUEST LYONNAIS"]
["136167F","CAUBERGS JEAN CLAUDE","ACADEMIE DE BILLARD D AUBENAS"]
["153472S","CAUCHY ALAIN","BILLARD CLUB MOULINS"]
["143750W","CELETTE MICHEL","BILLARD CLUB GRENOBLOIS"]
["104768O","CENDRIER DAVID","ASSOCIATION DU LAKE PUB 74"]
["141633L","CERVERA IRIS","BILLARD CLUB GRENOBLOIS"]
["107387H","CHABRAY DANIEL","BILLARD CLUB ROMANAIS PEAGEOIS"]
["016247X","CHADELAUD JEAN MICHEL","BILLARD CLUB ALBERTVILLE"]
["148985Q","CHAIR MOURAD","NIGHT BILLARD CLUB"]
["015728Y","CHALAND JEAN","CERCLE DES CHEFS D ATELIER"]
["145364Y","CHAMBON PIERRE","CLUB DE BILLARD MONTBRISONNAIS"]
["100904Y","CHAMONAZ VANESSA","BILLARD CLUB PONTOIS"]
["164180G","CHANAVAT LORENE","CLUB DE BILLARD MONTBRISONNAIS"]
["149865X","CHANNAUX PATRCK","BILLARD CLUB DE SAINT-GALMIER"]
["150082H","CHANTREAU DIDIER","ACADEMIE ANNECIENNE DE BILLARD"]
["100834G","CHAPATON DOMINIQUE","BILLARD CLUB 109"]
["157328J","CHAPDANIEL CHRISTIAN","GROUPE SPORTIF LUGDUNUM"]
["015813F","CHAPEAUX EMILE","BILLARD CLUB DE VILLEFRANCHE"]
["143193L","CHAPON JEAN MARIE","ACADEMIE DE BILLARD DE LA VALSERINE"]
["163543P","CHAPPERT ADRIEN LUDOVIC","CLUB CHAMBERIEN DE BILLARD"]
["104469B","CHAPUIS ERIC","ACADEMIE BILLARD OUEST LYONNAIS"]
["163984T","CHAPUIS MAXIME","BLACKBALL BILLARD CLUB BESAYES 26"]
["150688R","CHAPUT FRANCOIS","CERCLE DES CHEFS D ATELIER"]
["150746E","CHARDON JACQUES","ACADEMIE ANNECIENNE DE BILLARD"]
["153323F","CHASSAGNE JACQUES","B.S.CLERMONTOIS"]
["157824Y","CHASTAGNER PHILIPPE","CERCLE DES CHEFS D ATELIER"]
["150950B","CHATENOUD ARNAUD","BILLARD CLUB DE CLARAFOND ARCINE"]
["163675H","CHAUMAZ SERGE","ACADEMIE ANNECIENNE DE BILLARD"]
["016054M","CHAUSSAT JEAN MARC","ACAD. DE BILLARD DE SAINT-ETIENNE"]
["137566A","CHAUVET IVAN","BILLARD CLUB ISSOIRE"]
["PS004121E","CHAZAL CORENTIN","CLUB DE BILLARD MONTBRISONNAIS"]
["163547T","CHEFDEBIEN DIDIER","CERCLE DES CHEFS D ATELIER"]
["139524I","CHEMIN PIERRE","CLUB CHAMBERIEN DE BILLARD"]
["131290Q","CHERPIN GUY","LE TAPIS VERT ROANNAIS"]
["PS004310K","CHETOUANE MELISSA","CLUB OMNISPORTS DE SAINT FONS"]
["114665F","CHEUNG LANDRY","BILLARD CLUB 109"]
["128996K","CHIEZE MIREILLE","NIGHT BILLARD CLUB"]
["160807Q","CHOPIN TANGUY","ASSOCIATION DU LAKE PUB 74"]
["016074G","CHOSSANDE ERIC","CERCLE DES CHEFS D ATELIER"]
["015704A","CHOUVET RENE","ACADEMIE BILLARD OUEST LYONNAIS"]
["122570G","CIVRAIS CHRISTIAN","LE TAPIS VERT ROANNAIS"]
["158186R","CLARET GEORGES","CLUB CHAMBERIEN DE BILLARD"]
["015712I","CLARET NOEL","CERCLE DES CHEFS D ATELIER"]
["164749A","CLAUDON PIERRE YVES","LES SQUALES"]
["143279T","CLEMENT GERARD","CERCLE DES CHEFS D ATELIER"]
["150689S","CLEMENT JEAN LOUP","CERCLE DES CHEFS D ATELIER"]
["155702R","CLERMONT PASCAL","CLUB OMNISPORTS DE SAINT FONS"]
["107706O","CLUZEL JACQUES","BILLARD CLUB GRENOBLOIS"]
["122770Y","COCHEZ FREDERIC","VEYRE-MONTON BILLARD CLUB"]
["015888C","COEURET JACQUES","A.B. DE BOURGOIN-JALLIEU"]
["146267R","COFFY JEROME","BILLARD CLUB PONTOIS"]
["147331S","COLLET JEAN CLAUDE","LE TAPIS VERT ROANNAIS"]
["138974E","COLLIER LOIC","LES SQUALES"]
["164210P","COMBAZ ALBAN","ACADEMIE ANNECIENNE DE BILLARD"]
["153539Q","COMBAZ GUY","CLUB CHAMBERIEN DE BILLARD"]
["100977T","COMBY CHANTAL","LA CARAMBOLE LISSILOISE"]
["149125S","COMTE MICHEL","ACADEMIE ANNECIENNE DE BILLARD"]
["137433X","CONSTANTIN JACQUES","BILLARD STELLA THONON"]
["010957L","CONTAMINE ALAIN","BILLARD CLUB MONTLUCONNAIS"]
["160166T","CORBY JEAN CLAUDE","BILLARD CLUB AIXOIS"]
["137585T","CORNET ANTOINE","BILLARD CLUB AMICALE CHAPELON"]
["016154I","CORNET ROGER","ACADEMIE BILLARD OUEST LYONNAIS"]
["107696E","CORREIA MARC","ACADEMIE ANNECIENNE DE BILLARD"]
["140814Y","CORVAISIER DOMINIQUE","CLUB OMNISPORTS DE SAINT FONS"]
["145351L","COSNARD SEBASTIEN","BILLARD CLUB DE GAILLARD"]
["131320U","COSNIER ROMAIN","BIG BEN BLACKBALL"]
["159237J","COSTA GERARD","BILLARD CLUB AIXOIS"]
["150468C","COTTIN EMMANUEL","SAINT CHAMOND BILLARD CLUB"]
["145627B","COUCHAUD GERARD","CLUB DE BILLARD MONTBRISONNAIS"]
["107402W","COUDARD MICKAEL","LES SQUALES"]
["145345F","COUMERT OLIVIER","CERCLE DES CHEFS D ATELIER"]
["015890E","COUQUET CHRISTOPHE","CERCLE DES CHEFS D ATELIER"]
["PS003236S","COUREUR BRUYER HECTOR","CLUB OMNISPORTS DE SAINT FONS"]
["152649Y","COURVOISIER MYRIAM","ACADEMIE DE BILLARD DE CHASSIEU"]
["133106M","COUSTENOBLE CHRISTOPHE","BILLARD STELLA THONON"]
["129879J","COUTAREL YVES","ACADEMIE BILLARD OUEST LYONNAIS"]
["164857S","CREPEL BENOIT","LA CARAMBOLE LISSILOISE"]
["119734E","CROIX GERARD","ACADEMIE DE BILLARD DE CHASSIEU"]
["144305F","CROS DAVID","LES SQUALES"]
["015729Z","CRUAT MARCEL","CERCLE DES CHEFS D ATELIER"]
["122400S","CUBIZOLLES ALAIN","VEYRE-MONTON BILLARD CLUB"]
["131904G","CUBIZOLLES EVA","VEYRE-MONTON BILLARD CLUB"]
["107701J","CUCCO FREDERIC","BILLARD CLUB PONTOIS"]
["016165T","CUNY ALAIN","AMICALE BILLARD CLUB DE DAVEZIEUX"]
["142704Q","CUNY BERNARD","CLUB OMNISPORTS DE SAINT FONS"]
["131284K","CURT ALAIN","BILLARD CLUB ALBERTVILLE"]
["156083F","CUZIN JACQUES","ACADEMIE BILLARD OUEST LYONNAIS"]
["164887A","DA CONCECAO GABRIEL","CERCLE DES CHEFS D ATELIER"]
["143275P","DA ENCARNACAO JOSE","BILLARD CLUB 109"]
["146345R","DA SILVA JOSEPH","VEYRE-MONTON BILLARD CLUB"]
["164181H","DA SILVA NOHAM","CLUB DE BILLARD MONTBRISONNAIS"]
["PS004314P","DA VEIGA SEMEDO BORGES LENNY","CLUB OMNISPORTS DE SAINT FONS"]
["113580M","DAGNIAUX DANIEL","BILLARD STELLA THONON"]
["015758C","DALLOYEAU CHRISTIAN","BILLARD STELLA THONON"]
["105671H","DAMIER NICOLAS","BILLARD CLUB ROMANAIS PEAGEOIS"]
["015730A","DANANCIER DOMINIQUE","CERCLE DES CHEFS D ATELIER"]
["153582M","DANCETTE CHRISTIAN","CLUB OMNISPORTS DE SAINT FONS"]
["137609R","DANIEL ANDRE","ACADEMIE DE BILLARD DE CHASSIEU"]
["127265V","DANIS MARIE EVE","ACAD. DE BILLARD DE SAINT-ETIENNE"]
["137613V","DARAKDJIAN CLAUDE","VALENCE BILLARD CLUB"]
["162917J","DAUBERT PATRICE","BILLARD CLUB DE VILLEFRANCHE"]
["016194W","DAVID PATRICK","Licenciés indépendants 69"]
["146972C","DE ALMEIDA DUARTE FREDERICO","BILLARD CLUB DE CLARAFOND ARCINE"]
["158189V","DE BORTOLI PATRICK","CLUB CHAMBERIEN DE BILLARD"]
["141464Y","DE DOMENICO ROBERTO","BILLARD STELLA THONON"]
["164276L","DE KEYSER JEAN PIERRE","CLUB CHAMBERIEN DE BILLARD"]
["157224W","DE L ESPINAY JEAN MARC","CERCLE DES CHEFS D ATELIER"]
["164858T","DE LA SERNA CESAR","LA CARAMBOLE LISSILOISE"]
["156719X","DE MENA CAMILLE","CERCLE DES CHEFS D ATELIER"]
["154022Q","DE SAINT ROMAIN PIERRE","VALENCE BILLARD CLUB"]
["145373H","DEBENOIT FRANCK","CLUB OMNISPORTS DE SAINT FONS"]
["155357R","DEBRAY SERGE","ACADEMIE ANNECIENNE DE BILLARD"]
["153544W","DECALF JEAN","CLUB CHAMBERIEN DE BILLARD"]
["123379J","DECHAMPS WILLIAM","VALENCE BILLARD CLUB"]
["123645P","DECLERIEUX YOAN","BILLARD CLUB LYONNAIS 8 POOL"]
["107336I","DECOMBE JEAN PIERRE","BILLARD CLUB DE VILLEFRANCHE"]
["164577N","DECOUZON JEAN FRANCOIS","BILLARD CLUB LYONNAIS 8 POOL"]
["015771P","DECROUX BERNARD","VALENCE BILLARD CLUB"]
["016486C","DEFOSSE MICHEL","LE TAPIS VERT ROANNAIS"]
["152400C","DEFRANOUX FRANCIS","BILLARD CLUB AIXOIS"]
["164717Q","DEGUILHEN ROMAIN","ACADEMIE DE BILLARD D AUBENAS"]
["110372C","DEJONGHE JEAN MICHEL","BILLARD CLUB VICHY"]
["163771M","DEL MEDICO REMI","CLUB CHAMBERIEN DE BILLARD"]
["015805X","DELANGE GUY","BILLARD CLUB DE VILLEFRANCHE"]
["140563H","DELATTRE SERGE","A.B. DE BOURGOIN-JALLIEU"]
["163951H","DELENNE JEAN FRANCOIS","EIGHT'S POOL GAME"]
["147555L","DELEPAUT ANDRE","BILLARD CLUB DE GAILLARD"]
["132952O","DELLA BOSCA PAOLO","BILLARD CLUB 109"]
["122491F","DELORME ANDRE","ASS. SPORTIVE MUNICIPALE ST ETIENNE"]
["117149T","DELORME JOSEPH","ASS. SPORTIVE MUNICIPALE ST ETIENNE"]
["127292W","DELORME STEPHANE","BILLARD CLUB ROMANAIS PEAGEOIS"]
["163504X","DELORME STEPHANE","BILLARD CLUB LYONNAIS 8 POOL"]
["127765B","DELOUCHE ANTOINE","VEYRE-MONTON BILLARD CLUB"]
["149078R","DEMARTY ALAIN","BILLARD CLUB MOULINS"]
["144452W","DEMELLAYER ALEXIS","CHARLEMAGNE SNOOKER CLUB"]
["164728C","DEMELLIER STEPHANE","CLUB CHAMBERIEN DE BILLARD"]
["157695H","DEMONET ANTOINE","CLUB DE BILLARD MONTBRISONNAIS"]
["129874E","DEMONET DAVID","CHARLEMAGNE SNOOKER CLUB"]
["140693H","DENIAU GEORGES","ACADEMIE ANNECIENNE DE BILLARD"]
["159156W","DENIS DANIEL","AMIC.SPOR.MONTMARAULTOISE BILLARD"]
["146999G","DENNI THIERRY","GROUPE SPORTIF LUGDUNUM"]
["160681D","DEODATI PIERRE","BILLARD CLUB ROMANAIS PEAGEOIS"]
["012951D","DEPOND DOMINIQUE","CERCLE DES CHEFS D ATELIER"]
["159235G","DEPUYDT EDDY","THE BLACK 8 POOL"]
["164042G","DERANCOURT JEROME","CERCLE DES CHEFS D ATELIER"]
["122086Q","DEROUALLIERE JEAN MARC","BILLARD CLUB PONTOIS"]
["100919N","DEROUEN PHILIPPE","ACADEMIE ANNECIENNE DE BILLARD"]
["124159J","DERVILLERS VINCENT","LE BLACKBALL MARSANNAIS"]
["162869G","DESBAR MAXIME","BILLARD CLUB ROMANAIS PEAGEOIS"]
["135458Y","DESMIDT FRANCOIS","CERCLE DES CHEFS D ATELIER"]
["010959N","DESPREZ SERGE","BILLARD CLUB MONTLUCONNAIS"]
["015939B","DESRAYAUD CHRISTOPHE","GROUPE SPORTIF LUGDUNUM"]
["131551R","DESSERLE GUY","LE TAPIS VERT ROANNAIS"]
["016132M","DESSERT STEPHANE","ACAD. DE BILLARD DE SAINT-ETIENNE"]
["132887B","DEVANNE FREDERIC","BILLARD CLUB GRENOBLOIS"]
["112586G","DEVAUX GEORGES","BILLARD CLUB MOULINS"]
["161668B","DEVEAUX AMANCE","CERCLE DES CHEFS D ATELIER"]
["144035V","DEVEDEUX MARC","ACADEMIE BILLARD OUEST LYONNAIS"]
["117134E","DEVERGNE JEAN","CLUB CHAMBERIEN DE BILLARD"]
["164102X","DEVILLARD KARINE","BILLARD CLUB GRENOBLOIS"]
["149951Q","DEZEMPTE MICHEL","BILLARD CLUB DE VILLEFRANCHE"]
["155784F","DI BELLA STEPHANIE","NIGHT BILLARD CLUB"]
["157320A","DI DONATO JEAN","ACAD. DE BILLARD DE SAINT-ETIENNE"]
["011026C","DIDIER JEAN PAUL","BILLARD CLUB MOULINS"]
["163277A","DIEBLING JACQUES","ACADEMIE ANNECIENNE DE BILLARD"]
["153291W","DIEF GERARD","ACADEMIE BILLARD OUEST LYONNAIS"]
["159765H","DOMAS SOPHIE","ACADEMIE DE BILLARD DE CHASSIEU"]
["108968C","DOMINGO XAVIER","BILLARD CLUB ROMANAIS PEAGEOIS"]
["113208E","DOMINICI ALBERT","BILLARD CLUB DE SAINT-GALMIER"]
["146971B","DONATO LAURENT","ACADEMIE DE BILLARD DE LA VALSERINE"]
["153339Y","DONNAT JACKY","CERCLE DES CHEFS D ATELIER"]
["145229T","DONSBECK CLAUDE","ACADEMIE DE BILLARD DE LA VALSERINE"]
["015743N","DORIER ALAIN","BILLARD CLUB ROMANAIS PEAGEOIS"]
["164758K","DORIOZ JEAN","BILLARD CLUB DE GAILLARD"]
["139158G","DORTET ALAIN","BILLARD CLUB VICHY"]
["PS004316R","DOUHAINI LARA","CLUB OMNISPORTS DE SAINT FONS"]
["156425C","DREME BERNARD","ACADEMIE DE BILLARD DE CHASSIEU"]
["163953K","DREUMONT PHILIPPE","EIGHT'S POOL GAME"]
["160880V","DREVON JEANINE","GROUPE SPORTIF LUGDUNUM"]
["137579N","DREYFUS REMY","ACADEMIE BILLARD OUEST LYONNAIS"]
["016189R","DRIOT JACKY","CLUB DE BILLARD MONTBRISONNAIS"]
["146968Y","DUARTE JOSE","ACADEMIE DE BILLARD DE LA VALSERINE"]
["100928W","DUBART JACQUES","LES SQUALES"]
["119305R","DUBOIS GABY","BILLARD CLUB MONTLUCONNAIS"]
["164834S","DUBOWYJ MICHEL","ACADEMIE DE BILLARD DE CHASSIEU"]
["156212W","DUBROEUCQ PHILIPPE","CHARLEMAGNE SNOOKER CLUB"]
["162910B","DUBUISSON EMMA","ACADEMIE DE BILLARD DE LA VALSERINE"]
["164712K","DUBUY RENAUD","LES SQUALES"]
["130105B","DUDIT FABIEN","BILLARD CLUB DE BOURG EN BRESSE"]
["165440B","DUFILS LUDOVIC","ACADEMIE ANNECIENNE DE BILLARD"]
["165358M","DUFOUR ROLAND","CLUB OMNISPORTS DE SAINT FONS"]
["130059H","DUGAS GERARD","BILLARD CLUB AIXOIS"]
["143434S","DUHEM SYLVAIN","BILLARD CLUB ROMANAIS PEAGEOIS"]
["154985M","DUJOUX JEAN YVES","B.S.CLERMONTOIS"]
["160881W","DUMAS YVES","GROUPE SPORTIF LUGDUNUM"]
["147111D","DUMONT ALAIN","BILLARD CLUB AIXOIS"]
["145217H","DUMONT ALEXIS","LES SQUALES"]
["147330R","DUMOULIN LAURENT","LE TAPIS VERT ROANNAIS"]
["156788X","DUPAS GILLES","ASS. SPORTIVE MUNICIPALE ST ETIENNE"]
["102703D","DUPERIER DANIEL","BILLARD CLUB GRENOBLOIS"]
["015992C","DUPLOMB GUY","VALENCE BILLARD CLUB"]
["139528M","DUPONT GERARD","ACADEMIE BILLARD OUEST LYONNAIS"]
["122306C","DUPRE RAMBAUD FREDERIC","LES SQUALES"]
["149436F","DUPRE RAMBAUD NATAEL","LES SQUALES"]
["164682C","DUPUIS DOMINIQUE","GROUPE SPORTIF LUGDUNUM"]
["164184L","DUPUY THIERRY","CLUB DE BILLARD MONTBRISONNAIS"]
["129878I","DUQUENNE RICHARD","LA CARAMBOLE LISSILOISE"]
["125811X","DURAND JEREMY","AMICALE BILLARD CLUB DE DAVEZIEUX"]
["101757T","DURAND MICHEL","AMICALE BILLARD CLUB DE DAVEZIEUX"]
["105704O","DURET CHRISTOPHE","CLUB CHAMBERIEN DE BILLARD"]
["164769X","DUTREUIL BERNARD","CLUB DE BILLARD MONTBRISONNAIS"]
["152674A","DUVERGER CHRISTIAN","LE TAPIS VERT ROANNAIS"]
["162776F","DUVILLARD VINCENT","CHARLEMAGNE SNOOKER CLUB"]
["112524W","DUVOISIN BAPTISTE","BILLARD CLUB 109"]
["016181J","ECHASSOUX PAUL","CERCLE DES CHEFS D ATELIER"]
["PS004244N","EL AHMADI ZAIDANE","CLUB OMNISPORTS DE SAINT FONS"]
["160859X","ELAMRI JAAFAR","BILLARD CLUB 8 POOL EVIAN"]
["129881L","ELION MAURICE","ACADEMIE ANNECIENNE DE BILLARD"]
["PS004319V","ER RADIOULI YASEMINE","CLUB OMNISPORTS DE SAINT FONS"]
["155523X","ESPINOSA SEBASTIEN","BILLARD CLUB PONTOIS"]
["122469J","ETAIX ROBERT","ACADEMIE BILLARD OUEST LYONNAIS"]
["129027P","FACHE JEAN PAUL","BILLARD CLUB ISSOIRE"]
["159685W","FADILI YOUSSEF","BILLARD CLUB LYONNAIS 8 POOL"]
["160682E","FALLOT EYMERIC","VALENCE BILLARD CLUB"]
["146110Q","FANZONE JEAN CLAUDE","BILLARD CLUB GRENOBLOIS"]
["159612R","FAOUEN PATRICK","ACADEMIE BILLARD OUEST LYONNAIS"]
["016166U","FAURE COMTE HENRI","AMICALE BILLARD CLUB DE DAVEZIEUX"]
["157172P","FAURE ELIE","B.S.CLERMONTOIS"]
["161148L","FAURE GILLES","ACADEMIE ANNECIENNE DE BILLARD"]
["146947A","FAVENTIN JACQUES","BILLARD CLUB DE VILLEFRANCHE"]
["016064W","FAVIER MICHEL","LA CARAMBOLE LISSILOISE"]
["162697V","FAYOLLE GUY","A.B. DE BOURGOIN-JALLIEU"]
["129870A","FAYOT MICHAEL","Licenciés indépendants 69"]
["159809F","FELIX RENE","ACADEMIE DE BILLARD DE CHASSIEU"]
["163075F","FERNANDES BENJAMIN","ACADEMIE DE BILLARD DE CHASSIEU"]
["126053F","FERNANDES PASCAL","A.B. DE BOURGOIN-JALLIEU"]
["129892W","FERNANDEZ ALPHONSE","BILLARD CLUB GRENOBLOIS"]
["160181K","FERNANDEZ HERRERA GUY","CLUB OMNISPORTS DE SAINT FONS"]
["011128A","FERNANDEZ JOSE","B.S.CLERMONTOIS"]
["104537R","FERON PATRICK","CERCLE DES CHEFS D ATELIER"]
["117218K","FERRATON MICHEL","ACAD. DE BILLARD DE SAINT-ETIENNE"]
["016108O","FERRE JEAN PAUL","BILLARD CLUB SAINT ROMANAIS"]
["129896A","FERREOL EMILE","BILLARD CLUB DE SAINT-GALMIER"]
["100873T","FERRIOL DOMINIQUE","BILLARD CLUB DE VILLEFRANCHE"]
["156703E","FESQUET EMILIE","BILLARD CLUB PONTOIS"]
["152575S","FETTIG SEVERINE","SAINT CHAMOND BILLARD CLUB"]
["119746Q","FEUILLASTRE ALAIN","CLUB DE BILLARD MONTBRISONNAIS"]
["PS004245P","FIAD ALAN","CLUB OMNISPORTS DE SAINT FONS"]
["PS004246Q","FIAD EDDI","CLUB OMNISPORTS DE SAINT FONS"]
["145520Y","FILIPPINI PATRICK","VALENCE BILLARD CLUB"]
["016070C","FLEURY MICHEL","CLUB OMNISPORTS DE SAINT FONS"]
["160972V","FLORET DOMINIQUE","LA CARAMBOLE LISSILOISE"]
["015524C","FLORIAN DENIS","CLUB DE BILLARD MONTBRISONNAIS"]
["142709V","FLUTTAZ JEAN LOUIS","ACADEMIE ANNECIENNE DE BILLARD"]
["013137H","FONGARNAND DIDIER","B.S.CLERMONTOIS"]
["129018G","FORCE STEPHANE","B.S.CLERMONTOIS"]
["137718W","FORISSIER LOUIS","BILLARD CLUB DE SAINT-GALMIER"]
["154341M","FORTE INOUK","ACAD. DE BILLARD DE SAINT-ETIENNE"]
["156793C","FORTE LOIC","ACAD. DE BILLARD DE SAINT-ETIENNE"]
["154340L","FORTE YORI","ACAD. DE BILLARD DE SAINT-ETIENNE"]
["160912E","FOULTIER JACKY","AMIC.SPOR.MONTMARAULTOISE BILLARD"]
["121518U","FOURNIER CLAUDIUS","BILLARD CLUB MOULINS"]
["153988D","FOURNIER JEAN","ACADEMIE ANNECIENNE DE BILLARD"]
["153997N","FOURNIER PIERRE","ACADEMIE BILLARD OUEST LYONNAIS"]
["104920K","FOURRE NICOLAS","VEYRE-MONTON BILLARD CLUB"]
["137719X","FRAGNE MARCEL","BILLARD CLUB DE SAINT-GALMIER"]
["145120O","FRAIX STEVE","CLUB CHAMBERIEN DE BILLARD"]
["145114I","FRANCE FERNAND","BILLARD CLUB DE SAINT-GALMIER"]
["156122Y","FRANCOIS DIDIER","CLUB CHAMBERIEN DE BILLARD"]
["145514S","FRAPPA DIDIER","AMICALE BILLARD CLUB DE DAVEZIEUX"]
["159648F","FRECHET JULIEN","BILLARD CLUB GRENOBLOIS"]
["163600B","FRIZON JONATHAN","ACADEMIE DE BILLARD DE LA VALSERINE"]
["131653P","FROMENT ALAIN","AMIC.SPOR.MONTMARAULTOISE BILLARD"]
["145221L","FUENTES CHRISTINE","ACADEMIE DE BILLARD DE LA VALSERINE"]
["136034C","FUENTES RICARDO","ACADEMIE DE BILLARD DE LA VALSERINE"]
["160882X","FURTAK ROLAND","GROUPE SPORTIF LUGDUNUM"]
["164309X","GAGNOT EMILE","CERCLE DES CHEFS D ATELIER"]
["160892H","GAL JEAN BAPTISTE","ACADEMIE ANNECIENNE DE BILLARD"]
["013178W","GALLAND GREGORY","ACADEMIE BILLARD OUEST LYONNAIS"]
["015760E","GALLO MICHEL","BILLARD CLUB GRENOBLOIS"]
["140821F","GALLON JEAN CLAUDE","Licenciés indépendants 63"]
["149257L","GALLOT RUDY","CLUB DE BILLARD MONTBRISONNAIS"]
["157702Q","GALTIER JEAN LUC","ACADEMIE DE BILLARD DE LA VALSERINE"]
["155163F","GAMET DOMINIQUE","ACADEMIE ANNECIENNE DE BILLARD"]
["163297X","GAPAILLARD ALAIN","ACADEMIE DE BILLARD DE LA VALSERINE"]
["147000H","GARCIA JUAN","GROUPE SPORTIF LUGDUNUM"]
["164021J","GARMON HORTENSE","BILLARD CLUB DE BOURG EN BRESSE"]
["145371F","GARNIER NICOLAS","BILLARD CLUB DE BOURG EN BRESSE"]
["139477N","GARNIER PATRICE","CERCLE DES CHEFS D ATELIER"]
["015912A","GASS MICHEL","CERCLE DES CHEFS D ATELIER"]
["156797G","GATTINO PATRICK","ACAD. DE BILLARD DE SAINT-ETIENNE"]
["100870Q","GAUCHER JEAN FRANCOIS","CLUB OMNISPORTS DE SAINT FONS"]
["164151A","GAUDRY PHILIPPE","CERCLE DES CHEFS D ATELIER"]
["149126T","GAUZE GILBERT","ACADEMIE ANNECIENNE DE BILLARD"]
["155794R","GEINDRE BENJAMIN","BIG BEN BLACKBALL"]
["159122J","GELIBERT ALEXIS","ACADEMIE DE BILLARD DE LA VALSERINE"]
["159123K","GELIBERT MARGAUX","ACADEMIE DE BILLARD DE LA VALSERINE"]
["147332T","GELOFFIER MAURICE","LE TAPIS VERT ROANNAIS"]
["155838P","GENAUDET FLORIAN","BILLARD CLUB 8 POOL EVIAN"]
["132972I","GENEVRIER GERARD","BILLARD CLUB SAINT ROMANAIS"]
["PS004247R","GENNARO MAELYS","CLUB OMNISPORTS DE SAINT FONS"]
["147547C","GERARD DANIEL","BILLARD CLUB DE GAILLARD"]
["145518W","GERLAT MAGALY","LES SQUALES"]
["160893J","GHESQUIER FRANCK","ACADEMIE ANNECIENNE DE BILLARD"]
["156213X","GHOMINEJAD KEYVAN","CHARLEMAGNE SNOOKER CLUB"]
["153804D","GIACOMARRA ENZO","CHARLEMAGNE SNOOKER CLUB"]
["157758B","GIEN DOMINIQUE","ACADEMIE BILLARD OUEST LYONNAIS"]
["147591A","GILARDIN JACQUES","BILLARD CLUB MOULINS"]
["149637Z","GILARDIN SEBASTIEN","BILLARD CLUB MOULINS"]
["157321B","GILLET FREDERIC","ACAD. DE BILLARD DE SAINT-ETIENNE"]
["134037H","GILLON JEAN CLAUDE","BILLARD CLUB MOULINS"]
["149917D","GIRARD FREDERIC","BILLARD CLUB 8 POOL EVIAN"]
["163345Z","GIRARDON ROLAND","LA CARAMBOLE LISSILOISE"]
["124121X","GIRAUD JACQUES","CERCLE DES CHEFS D ATELIER"]
["122780I","GIRAUD ROBERT","ACADEMIE BILLARD OUEST LYONNAIS"]
["124119V","GIROD GERARD","ACADEMIE BILLARD OUEST LYONNAIS"]
["134035F","GIRON STEPHANIE","B.S.CLERMONTOIS"]
["164781K","GIUDICELLI MATTEO","CERCLE DES CHEFS D ATELIER"]
["153957V","GODET PATRICK","ACADEMIE ANNECIENNE DE BILLARD"]
["164148X","GODINOT THIERRY","CERCLE DES CHEFS D ATELIER"]
["162474C","GOGORA JACKIE","BILLARD CLUB LYONNAIS 8 POOL"]
["147619F","GOLDBACH ERIC","ACADEMIE DE BILLARD D AUBENAS"]
["163117B","GOMBERT MARTIN","BILLARD CLUB ROMANAIS PEAGEOIS"]
["165155R","GOMIS MALAIKA","CERCLE DES CHEFS D ATELIER"]
["143533N","GONZALEZ BORIS","ACADEMIE BILLARD OUEST LYONNAIS"]
["153015W","GORLIER ROLAND","CERCLE DES CHEFS D ATELIER"]
["155699N","GOSSUIN JUSTINE","BILLARD CLUB DE CLARAFOND ARCINE"]
["153660X","GOSTIAUX JEAN","CERCLE DES CHEFS D ATELIER"]
["145344E","GOSTIAUX LOUIS","CERCLE DES CHEFS D ATELIER"]
["160444W","GOSTIAUX LUCIEN","CERCLE DES CHEFS D ATELIER"]
["151767P","GOSTIAUX MEZIANE","CERCLE DES CHEFS D ATELIER"]
["153303J","GOUBET LIONEL","ACADEMIE BILLARD OUEST LYONNAIS"]
["107633T","GOURDIN MICHEL","CLUB OMNISPORTS DE SAINT FONS"]
["016318Q","GOUTALOY SYLVAIN","CERCLE DES CHEFS D ATELIER"]
["155903K","GOUTTE LYDIE","BILLARD CLUB PONTOIS"]
["160060D","GOYENETCHE RAMUNTCHO","ACADEMIE DE BILLARD DE CHASSIEU"]
["159850A","GOYENETCHE STEPHANE","ACADEMIE DE BILLARD DE CHASSIEU"]
["132521Z","GRACI BUSI RAYMOND","ACADEMIE DE BILLARD DE CHASSIEU"]
["156718W","GRANGE JEAN PAUL","LE TAPIS VERT ROANNAIS"]
["122484Y","GRANGETTE JACQUES","ACADEMIE BILLARD OUEST LYONNAIS"]
["015731B","GRANJON CHRISTIAN","ACADEMIE BILLARD OUEST LYONNAIS"]
["138328I","GREGOIRE PHILIPPE","BILLARD CLUB ROMANAIS PEAGEOIS"]
["136412Q","GRESLE JEAN MICHEL","BILLARD CLUB MONTLUCONNAIS"]
["155129T","GRI ALEXANDRE","SAINT CHAMOND BILLARD CLUB"]
["159157X","GRIFFON GILLES","AMIC.SPOR.MONTMARAULTOISE BILLARD"]
["146269T","GRIMM PATRICK","ACADEMIE DE BILLARD DE LA VALSERINE"]
["145370E","GRIOT GILBERT","CLUB DE BILLARD MONTBRISONNAIS"]
["164183K","GROIZARD GENEVIEVE","CLUB DE BILLARD MONTBRISONNAIS"]
["145231V","GROS ERIC","ASSOCIATION DU LAKE PUB 74"]
["137714S","GROS MARC","ACADEMIE BILLARD OUEST LYONNAIS"]
["150176K","GROS MARCEL","ACADEMIE DE BILLARD DE CHASSIEU"]
["136093J","GROSJEAN JEAN","BILLARD CLUB AIXOIS"]
["143892I","GROSJEAN THIERRY","CLUB CHAMBERIEN DE BILLARD"]
["156507R","GRUET BERNARD","BILLARD CLUB ISSOIRE"]
["016410E","GUENET LAURENT","ACADEMIE BILLARD OUEST LYONNAIS"]
["164162M","GUERIN LUCAS","LES SQUALES"]
["156824L","GUERRIERI VITTORIO","ASS. SPORTIVE MUNICIPALE ST ETIENNE"]
["010669J","GUIHEUX DENIS","BILLARD CLUB GRENOBLOIS"]
["105785R","GUILBAUD JEAN CLAUDE","BLACKBALL BILLARD CLUB BESAYES 26"]
["105784Q","GUILBAUD ROMAIN","BLACKBALL BILLARD CLUB BESAYES 26"]
["145124S","GUILLAUMOND ALAIN","SAINT CHAMOND BILLARD CLUB"]
["153545X","GUILLEMIN CLAUDE","CLUB CHAMBERIEN DE BILLARD"]
["122797Z","GUILLERMIN GILBERT","CLUB OMNISPORTS DE SAINT FONS"]
["132533L","GUILLOT CLAUDE","BILLARD CLUB DE LA PLAINE DU FOREZ"]
["140689D","GUILLOT PIERRE","CLUB DE BILLARD MONTBRISONNAIS"]
["162475D","GUILLOT SAMUEL","THE BLACK 8 POOL"]
["016128I","GUILLOUD JEAN JACQUES","ACADEMIE DE BILLARD DE CHASSIEU"]
["157542R","GUIOT JEAN","AMICALE BILLARD CLUB DE DAVEZIEUX"]
["163507A","GUIRI BAHAEDDINE","BILLARD CLUB DE SAINT-GALMIER"]
["156663L","HAAS DOMINIQUE","BILLARD CLUB DE SAINT-GALMIER"]
["155834K","HAINAUT DAVID","ACADEMIE DE BILLARD DE LA VALSERINE"]
["016294S","HALIMI SIMON","ACADEMIE DE BILLARD D AUBENAS"]
["155628L","HALLIER FLORIAN","ASSOCIATION DU LAKE PUB 74"]
["145227R","HANNOU RACHID","BILLARD CLUB DE GAILLARD"]
["147113F","HANTZ MICHEL","BILLARD CLUB AIXOIS"]
["158395T","HARE ROBERT","BILLARD CLUB MONTLUCONNAIS"]
["164578P","HASIMOVIC VLADIMIR","BILLARD CLUB LYONNAIS 8 POOL"]
["PS004321X","HASSAINE MELYNE","CLUB OMNISPORTS DE SAINT FONS"]
["150748G","HAUET DOMINIQUE","ACADEMIE ANNECIENNE DE BILLARD"]
["119307T","HAYEM PATRICK","BILLARD CLUB MOULINS"]
["015926O","HEBERT ALAIN","BILLARD CLUB ROMANAIS PEAGEOIS"]
["163670C","HEDOUIN HENRI","BILLARD CLUB AIXOIS"]
["015815H","HELIN ALAIN","BILLARD CLUB DE VILLEFRANCHE"]
["162919L","HENRIQUES VICTOR","BILLARD CLUB DE VILLEFRANCHE"]
["137571F","HERREMAN FRANCOIS","LES SQUALES"]
["152190Z","HERRY MIREILLE","NIGHT BILLARD CLUB"]
["163677K","HERVY CHRISTIAN","ACADEMIE ANNECIENNE DE BILLARD"]
["137050E","HILAIRE JIMMY","ACADEMIE BILLARD OUEST LYONNAIS"]
["164721V","HILAIRE NICOLAS","ACADEMIE DE BILLARD D AUBENAS"]
["158397W","HISIGER CHARLOTTE","NIGHT BILLARD CLUB"]
["156933E","HISIGER KELLY","NIGHT BILLARD CLUB"]
["142694G","HOGG JEAN CLAUDE","CLUB DE BILLARD MONTBRISONNAIS"]
["112520S","HONG LAMHONG ALEXANDRE","CLUB OMNISPORTS DE SAINT FONS"]
["100883D","HONG LAMHONG PIERRE","SAINT CHAMOND BILLARD CLUB"]
["163190F","HORARD BRIEUC","LES SQUALES"]
["153143K","HOSROFIAN EDMOND","CLUB OMNISPORTS DE SAINT FONS"]
["PS004248S","HOUAS MAELYSSE","CLUB OMNISPORTS DE SAINT FONS"]
["164787R","HOWLETT THIERRY","GROUPE SPORTIF LUGDUNUM"]
["016152G","HOYER GILLES","CLUB OMNISPORTS DE SAINT FONS"]
["159168J","HUE PHILIPPE","BILLARD CLUB AIXOIS"]
["015717N","ICARD ANDRE","ACADEMIE DE BILLARD DE CHASSIEU"]
["160576P","IGLESIA PIERRE","BLACKBALL BILLARD CLUB BESAYES 26"]
["160860Y","IMBERT EVEN","EIGHT'S POOL GAME"]
["137708M","IMBERT JEAN PAUL","LA CARAMBOLE LISSILOISE"]
["159700M","IMTIASZ ASHH","BILLARD CLUB LYONNAIS 8 POOL"]
["159866S","ISMALAJ YLBER","BILLARD CLUB 109"]
["131907J","IZOULET SIMON","THE BLACK 8 POOL"]
["146254E","JACOB BERNARD","CLUB CHAMBERIEN DE BILLARD"]
["119290C","JACOBERGER FABIEN","BILLARD CLUB VICHY"]
["102689P","JACOBY HENRIK","ASSOCIATION DU LAKE PUB 74"]
["163728Q","JACOULOT CHRISTIAN","ACADEMIE DE BILLARD DE CHASSIEU"]
["149406Y","JACQUEMART MICKAEL","BIG BEN BLACKBALL"]
["120201D","JACQUEMOND OLIVIER","BILLARD CLUB DE SAINT-GALMIER"]
["162800G","JACQUIN JEROME","CLUB DE BILLARD MONTBRISONNAIS"]
["162801H","JACQUIN LOUIS","CLUB DE BILLARD MONTBRISONNAIS"]
["150692W","JALLAS ANNE CATHERINE","CERCLE DES CHEFS D ATELIER"]
["150719A","JALLAS EMMANUEL","CERCLE DES CHEFS D ATELIER"]
["164683D","JANIO ALAIN","GROUPE SPORTIF LUGDUNUM"]
["101069H","JANOIR ERIC","BILLARD CLUB 109"]
["156124A","JAPIOT HUBERT","ACADEMIE DE BILLARD DE CHASSIEU"]
["015878S","JARDIN GERARD","BILLARD CLUB AIXOIS"]
["139455R","JARRET ANDRE","ACADEMIE DE BILLARD DE CHASSIEU"]
["159482A","JEANTET JEAN CLAUDE","ACADEMIE DE BILLARD DE LA VALSERINE"]
["136095L","JOFFRE MARC","AMICALE BILLARD CLUB DE DAVEZIEUX"]
["160742V","JOUBERT ERIC","BILLARD CLUB MONTLUCONNAIS"]
["163877C","JOUBERT LAURENCE","ACAD. DE BILLARD DE SAINT-ETIENNE"]
["119738I","JOURDAN CAMILLE","LES SQUALES"]
["146988V","JOURDAN OLIVIER","LES SQUALES"]
["101070I","JOUVE SAMUEL","BILLARD CLUB 109"]
["163954L","JUILLET ALEXI","EIGHT'S POOL GAME"]
["141631J","JULLIAT GUILLAUME","AMICALE BILLARD CLUB DE DAVEZIEUX"]
["016161P","JULLIAT VINCENT","AMICALE BILLARD CLUB DE DAVEZIEUX"]
["147356V","JULLION ANDRE","AMICALE BILLARD CLUB DE DAVEZIEUX"]
["163595W","KAABECHE RIAD","NIGHT BILLARD CLUB"]
["164517Y","KAOUANE YASMINA","VALENCE BILLARD CLUB"]
["162803K","KEBE MAMADOU","CLUB CHAMBERIEN DE BILLARD"]
["142700M","KERLEAUX JEAN CLAUDE","BILLARD CLUB DE VILLEFRANCHE"]
["142184Q","KLEIN JEAN LUC","CLUB DE BILLARD MONTBRISONNAIS"]
["148984P","KLEIN STEPHANE","NIGHT BILLARD CLUB"]
["143742O","KOBYLANSKI ROMAIN","BILLARD CLUB GRENOBLOIS"]
["127300E","KOCAURLU YAVUZ","ACADEMIE DE BILLARD DE CHASSIEU"]
["101020K","KOFFI JUSTHE","ACADEMIE ANNECIENNE DE BILLARD"]
["PS004324A","KOMOU MADANI","CLUB OMNISPORTS DE SAINT FONS"]
["135452S","KONIECZNY FABRICE","CERCLE DES CHEFS D ATELIER"]
["146949C","KOWACKI JEAN PIERRE","BILLARD CLUB DE VILLEFRANCHE"]
["162698W","KUHN JAMES","A.B. DE BOURGOIN-JALLIEU"]
["165334L","KUPKA BRUNO","B.S.CLERMONTOIS"]
["145123R","KURADJIAN ALAIN","SAINT CHAMOND BILLARD CLUB"]
["145614O","KURTZ RENE","BILLARD CLUB AIXOIS"]
["152914L","KUSAR HERVE","BILLARD CLUB DE CLARAFOND ARCINE"]
["155700P","KUSAR TONY","BILLARD CLUB DE CLARAFOND ARCINE"]
["016204G","LABEYE JEAN PIERRE","ACADEMIE BILLARD OUEST LYONNAIS"]
["163164C","LACAUX TAFFOUREAU STEPHANE","CERCLE DES CHEFS D ATELIER"]
["156918N","LACHAUX BERNARD","LE TAPIS VERT ROANNAIS"]
["161671E","LACHEZE GABRIEL","CERCLE DES CHEFS D ATELIER"]
["011067R","LACOMBE JEAN MARIE","BILLARD CLUB ST ELOY"]
["157544T","LACONDAMINE MICHEL","AMICALE BILLARD CLUB DE DAVEZIEUX"]
["156828Q","LACORNE DIDIER","ASS. SPORTIVE MUNICIPALE ST ETIENNE"]
["015732C","LACROIX DANIEL","ACADEMIE BILLARD OUEST LYONNAIS"]
["152192B","LACROIX DYLAN","NIGHT BILLARD CLUB"]
["152915M","LACROIX VALERIE","NIGHT BILLARD CLUB"]
["126033L","LAFORET EDOUARD","ASSOCIATION DU LAKE PUB 74"]
["158191X","LAITHIER GERARD","CLUB CHAMBERIEN DE BILLARD"]
["112387P","LAIYADI NABIL","BLACKBALL BILLARD CLUB BESAYES 26"]
["165307G","LALLIARD PATRICK","ACADEMIE ANNECIENNE DE BILLARD"]
["129029R","LAMAT OLIVIER","THE BLACK 8 POOL"]
["155788K","LAMAT PAUL","THE BLACK 8 POOL"]
["164059A","LAMAT ROMAIN","THE BLACK 8 POOL"]
["164518Z","LAMBERT FREDERIC","VALENCE BILLARD CLUB"]
["159769M","LAMRANI MEHDI","BILLARD CLUB PONTOIS"]
["157556G","LANDAIS JEAN CLAUDE","BILLARD CLUB MOULINS"]
["164780J","LANDAUD LEO","CERCLE DES CHEFS D ATELIER"]
["155161D","LANDOT LAURENCE","ACADEMIE ANNECIENNE DE BILLARD"]
["152189Y","LAPIERRE ERIC","NIGHT BILLARD CLUB"]
["131651N","LAPORTE FRANCOIS","BILLARD CLUB MOULINS"]
["163735Y","LAPORTE VALENTIN","BIG BEN BLACKBALL"]
["145369D","LARDEREAU ROBERT","CLUB DE BILLARD MONTBRISONNAIS"]
["147485K","LARESE PATRICK","ACADEMIE DE BILLARD DE CHASSIEU"]
["138403F","LARIVE JANY","BILLARD CLUB BOURBON"]
["023128O","LASOTA CLAUDE","B.S.CLERMONTOIS"]
["135589Z","LASSERON CYRIL","VEYRE-MONTON BILLARD CLUB"]
["164684E","LATHUILE ALEXANDRE","GROUPE SPORTIF LUGDUNUM"]
["124582Q","LATHUILIERE AXEL","CHARLEMAGNE SNOOKER CLUB"]
["101047L","LATORRE ANDRE","LES SQUALES"]
["164145T","LATTARD LUCAS","LES SQUALES"]
["163316S","LAURENT DANIEL","CERCLE DES CHEFS D ATELIER"]
["015957T","LAURENT JEAN LUC","ACADEMIE DE BILLARD DE CHASSIEU"]
["015761F","LAURETTA JOSEPH","BILLARD CLUB GRENOBLOIS"]
["141637P","LAURIER GILLES","ACADEMIE BILLARD OUEST LYONNAIS"]
["128479N","LAVAUD JACQUES","LE TAPIS VERT ROANNAIS"]
["015733D","LAVAUD JEAN MICHEL","ACADEMIE BILLARD OUEST LYONNAIS"]
["159908N","LAVAURS BERNARD","ACADEMIE DE BILLARD DE LA VALSERINE"]
["164926S","LAVERY AUDE","VALENCE BILLARD CLUB"]
["119728Y","LAZEREG RADIL","LES SQUALES"]
["136272G","LE BRIS STEPHAN","BILLARD STELLA THONON"]
["158893K","LE CALLET JEAN LOUIS","SAINT CHAMOND BILLARD CLUB"]
["160236V","LE GOFF THIERRY","NIGHT BILLARD CLUB"]
["155130V","LEBLANC FRANCK","SAINT CHAMOND BILLARD CLUB"]
["137838M","LEBRAY ANNICK","CLUB CHAMBERIEN DE BILLARD"]
["016086S","LECLERCQ FREDERIC","BILLARD CLUB DE GAILLARD"]
["150752L","LECLERCQ MICHEL","ACADEMIE ANNECIENNE DE BILLARD"]
["157318Y","LECOMTE MARTINE","ACAD. DE BILLARD DE SAINT-ETIENNE"]
["137588W","LECONNETABLE CLAUDE","CLUB DE BILLARD MONTBRISONNAIS"]
["107510A","LECROIX FRANCIS","B.S.CLERMONTOIS"]
["010984M","LEFEBVRE SERGE","BILLARD CLUB BOURBON"]
["105408E","LEGUILLON PATRICK","BILLARD CLUB VICHY"]
["137589X","LELOUP ALAIN","CLUB DE BILLARD MONTBRISONNAIS"]
["013561P","LEMAIRE ALBERT","BILLARD CLUB GRENOBLOIS"]
["145661J","LEPAGE PATRICK","VEYRE-MONTON BILLARD CLUB"]
["145122Q","LEPETIT FRANCOIS","SAINT CHAMOND BILLARD CLUB"]
["107390K","LESCARMONTIER JACQUES","ACADEMIE BILLARD OUEST LYONNAIS"]
["101027R","LESKOVSEK LAURENT","LE BLACKBALL MARSANNAIS"]
["135922U","LETOURNEUR SEBASTIEN","BILLARD CLUB DE BOURG EN BRESSE"]
["156517C","LEVEQUE PAUL GABRIEL","CERCLE DES CHEFS D ATELIER"]
["142698K","LEVY ALAIN","BILLARD CLUB DE GAILLARD"]
["126050C","LHERMINIER THIERRY","BILLARD CLUB ALBERTVILLE"]
["160905X","LHOMME SYLVAIN","ACADEMIE DE BILLARD D AUBENAS"]
["150870P","LHUILLIER DANIEL","BILLARD CLUB PONTOIS"]
["112506E","LIBON VICTOR","AMICALE BILLARD CLUB DE DAVEZIEUX"]
["162914F","LIOMIN BENOIT","BILLARD CLUB DE GAILLARD"]
["112600U","LIVEBARDON SONIA","ACAD. DE BILLARD DE SAINT-ETIENNE"]
["100932A","LOBOS MALDONANO OMAR","BILLARD CLUB PONTOIS"]
["150253T","LOCCI OLIVIER","BILLARD CLUB 109"]
["163949F","LOCH DOMINIQUE","ACADEMIE DE BILLARD DE CHASSIEU"]
["151332R","LOMBREZ FREDERIC","CHARLEMAGNE SNOOKER CLUB"]
["134285V","LONGEREY CHRISTELLE","ACADEMIE ANNECIENNE DE BILLARD"]
["PS004249T","LOPES DE MATOS RANYA","CLUB OMNISPORTS DE SAINT FONS"]
["016031P","LORON ANDRE","LE TAPIS VERT ROANNAIS"]
["016050I","LORON LOUIS","ACAD. DE BILLARD DE SAINT-ETIENNE"]
["124461Z","LORTHIOIS JOHN","BILLARD CLUB ISSOIRE"]
["154202L","LUJAN PIERRE","BILLARD CLUB ROMANAIS PEAGEOIS"]
["163159X","LUPO VITO","CLUB CHAMBERIEN DE BILLARD"]
["159910Q","MABON CELINE","CLUB OMNISPORTS DE SAINT FONS"]
["146266Q","MADEIRA FERNANDO","ACADEMIE DE BILLARD DE LA VALSERINE"]
["137611T","MAESTRI ROBERT","ACADEMIE ANNECIENNE DE BILLARD"]
["016205H","MAGNIN JEAN PIERRE","BILLARD CLUB PONTOIS"]
["130312A","MAHE GUILLAUME","BILLARD CLUB 8 POOL EVIAN"]
["147149V","MAILLARD RENE","BILLARD CLUB DE VILLEFRANCHE"]
["128074Y","MAILLARD SERGE","BILLARD CLUB ST ELOY"]
["124575J","MAISONNEUVE LAURENT","BILLARD CLUB DE VILLEFRANCHE"]
["164355X","MAISONNIAL JEAN LUC","ACAD. DE BILLARD DE SAINT-ETIENNE"]
["146950D","MAISSE ROBERT","BILLARD CLUB DE VILLEFRANCHE"]
["147398Q","MAISSE ROBERT","AMICALE BILLARD CLUB DE DAVEZIEUX"]
["147110C","MALGOUYARD JEAN PIERRE","BILLARD CLUB AIXOIS"]
["160883Y","MALLET LANDRY","GROUPE SPORTIF LUGDUNUM"]
["PS004426L","MAMOUNI IBRAHIM","CLUB OMNISPORTS DE SAINT FONS"]
["015793L","MANDALLAZ GERARD","ACADEMIE ANNECIENNE DE BILLARD"]
["135919R","MANDY NATHALIE","BILLARD CLUB DE BOURG EN BRESSE"]
["147525D","MANET DOMINIQUE","ASS. SPORTIVE MUNICIPALE ST ETIENNE"]
["163268Q","MANIN GUY","ACAD. DE BILLARD DE SAINT-ETIENNE"]
["160884Z","MARCELLIER JOSETTE","GROUPE SPORTIF LUGDUNUM"]
["107687V","MARCHICA IGOR","BILLARD CLUB 109"]
["016183L","MARCON ETIENNE","CERCLE DES CHEFS D ATELIER"]
["164144S","MARCON JEAN YVES","SAINT CHAMOND BILLARD CLUB"]
["137586U","MARECHAL JACQUES","CLUB DE BILLARD MONTBRISONNAIS"]
["144450U","MARIN GUY","BILLARD CLUB DE GAILLARD"]
["159842R","MARION GERARD","ACAD. DE BILLARD DE SAINT-ETIENNE"]
["112591L","MARION RENE","BILLARD CLUB MOULINS"]
["109013V","MARKADAS TITUS","CLUB CHAMBERIEN DE BILLARD"]
["146970A","MARLET PATRICK","ACADEMIE DE BILLARD DE LA VALSERINE"]
["142710W","MARLIER CHARLES","ACADEMIE DE BILLARD DE CHASSIEU"]
["155848A","MARLIER JEAN","ACADEMIE DE BILLARD DE CHASSIEU"]
["155164G","MARMET JEAN MARIE","ACADEMIE ANNECIENNE DE BILLARD"]
["016315N","MARMIESSE JEAN","CERCLE DES CHEFS D ATELIER"]
["159766J","MARON ALAIN","ACADEMIE DE BILLARD DE CHASSIEU"]
["146259J","MARTEL ALAIN","ACADEMIE BILLARD OUEST LYONNAIS"]
["111359B","MARTELLONI GUY","ACADEMIE BILLARD OUEST LYONNAIS"]
["155616Y","MARTIN ALAIN","BILLARD CLUB BOURBON"]
["163512F","MARTIN JEAN PAUL","CERCLE DES CHEFS D ATELIER"]
["010985N","MARTIN OLIVIER","BILLARD CLUB ST ELOY"]
["164537V","MARTINET JEAN MARC","ACADEMIE BILLARD OUEST LYONNAIS"]
["153695K","MARTINEZ SERGE","ACADEMIE DE BILLARD DE CHASSIEU"]
["157879H","MARTINEZ YOANN","EIGHT'S POOL GAME"]
["160562Z","MARTRAIX GERARD","ACADEMIE ANNECIENNE DE BILLARD"]
["107411F","MASCLET ERIC","BILLARD CLUB 109"]
["162524G","MASSELOT CEDRIC","BILLARD CLUB ISSOIRE"]
["120680O","MASSON ERIC","BILLARD CLUB PONTOIS"]
["016157L","MASSON JOEL","BILLARD CLUB SAINT ROMANAIS"]
["149108Z","MATHIEU MICHEL","BILLARD CLUB DE GAILLARD"]
["014960K","MATHIEU YANNIC","VALENCE BILLARD CLUB"]
["100914I","MATHIOT PHILIPPE","ACADEMIE ANNECIENNE DE BILLARD"]
["101044I","MATRAS JEAN MARIE","BILLARD CLUB ROMANAIS PEAGEOIS"]
["143198Q","MAUBLANC HERVE","GROUPE SPORTIF LUGDUNUM"]
["156644Q","MAUCUIT CLAUDE","ACADEMIE DE BILLARD DE CHASSIEU"]
["163116A","MAUDUIT DAVID","BILLARD CLUB ROMANAIS PEAGEOIS"]
["165233B","MAZEAUD GABRIEL","CERCLE DES CHEFS D ATELIER"]
["PS004250V","MEBARKI FARAH","CLUB OMNISPORTS DE SAINT FONS"]
["147001J","MEDINA TOMAS","GROUPE SPORTIF LUGDUNUM"]
["PS004326C","MEFTAH LINA","CLUB OMNISPORTS DE SAINT FONS"]
["PS004329F","MEHRZI YACINE","CLUB OMNISPORTS DE SAINT FONS"]
["130074W","MEJEAN JACQUES","ACAD. DE BILLARD DE SAINT-ETIENNE"]
["121499B","MENS THOMAS","VEYRE-MONTON BILLARD CLUB"]
["165351E","MERCIER PATRICK","Licenciés indépendants 69"]
["147074N","MERLE JEAN FRANCOIS","GROUPE SPORTIF LUGDUNUM"]
["016484A","MERLE MICHEL","BILLARD CLUB DE VILLEFRANCHE"]
["100893N","MERMET JACQUES","CLUB CHAMBERIEN DE BILLARD"]
["103610A","MERMOZ THIERRY","VEYRE-MONTON BILLARD CLUB"]
["104740M","MERMOZ TONY","VEYRE-MONTON BILLARD CLUB"]
["PS004331H","MERZOUGUI ADAM","CLUB OMNISPORTS DE SAINT FONS"]
["133199B","MESNIER JEAN CLAUDE","ACADEMIE DE BILLARD DE LA VALSERINE"]
["145621V","MESTAS RAYMOND","ACADEMIE BILLARD OUEST LYONNAIS"]
["015816I","MEUNIER MARC","BILLARD CLUB DE VILLEFRANCHE"]
["129017F","MEUNIER PHILIPPE","BILLARD CLUB VICHY"]
["153560N","MEURISSE JACQUES","BILLARD CLUB GRENOBLOIS"]
["015735F","MEVEL HERVE","CERCLE DES CHEFS D ATELIER"]
["160174C","MICHAUD LUC","BILLARD CLUB DE BOURG EN BRESSE"]
["165154Q","MICHAUDON TITOUAN","CERCLE DES CHEFS D ATELIER"]
["153538P","MICHEL DENIS","CLUB CHAMBERIEN DE BILLARD"]
["010960O","MIDROUILLET PATRICK","BILLARD CLUB MONTLUCONNAIS"]
["016352Y","MIKDAD ALI MOHAMMED","CERCLE DES CHEFS D ATELIER"]
["147199Z","MILLARA AIME","ACADEMIE BILLARD OUEST LYONNAIS"]
["154733N","MILLET MAURICE","CERCLE DES CHEFS D ATELIER"]
["016433B","MINACORI JULIEN","CERCLE DES CHEFS D ATELIER"]
["157326G","MINARDI ALAIN","GROUPE SPORTIF LUGDUNUM"]
["153351L","MIRONNEAU ERIC","BILLARD CLUB ST ELOY"]
["156415R","MIRTO EVELYNE","NIGHT BILLARD CLUB"]
["119308U","MITEAU MICHEL","BILLARD CLUB MOULINS"]
["164685F","MIVIERE BERNARD","GROUPE SPORTIF LUGDUNUM"]
["151150T","MOGNOT MARCEL","BILLARD CLUB MOULINS"]
["011049Z","MOINE ROBERT","B.S.CLERMONTOIS"]
["015779X","MOLIERE JEAN PAUL","VALENCE BILLARD CLUB"]
["101029T","MOLLE ALBAN","LES SQUALES"]
["124587V","MONIER BERNARD","LE TAPIS VERT ROANNAIS"]
["165276Y","MONMESSIN CEDRIC","BILLARD CLUB LYONNAIS 8 POOL"]
["138180Q","MONNERET MARC","BILLARD CLUB DE VILLEFRANCHE"]
["123794I","MONNEYRAC KEVIN","BILLARD CLUB DE GAILLARD"]
["119309V","MONTARON MAURICE","BILLARD CLUB MOULINS"]
["016109P","MONTEL MAURICE","BILLARD CLUB SAINT ROMANAIS"]
["159798T","MONTILLET JEAN CLAUDE","ACADEMIE DE BILLARD DE CHASSIEU"]
["143894K","MONTMAYEUR FRANCOIS","CHARLEMAGNE SNOOKER CLUB"]
["149875H","MONTPELLIER BRUNO","BILLARD CLUB 8 POOL EVIAN"]
["159951K","MOREAUX PATRICE","ACADEMIE ANNECIENNE DE BILLARD"]
["159263M","MOREIRA ALBERTO","VEYRE-MONTON BILLARD CLUB"]
["162200E","MOREIRA LEONARDO","VEYRE-MONTON BILLARD CLUB"]
["150953E","MOREL FLORENT","BILLARD CLUB DE CLARAFOND ARCINE"]
["152633F","MOREL SYLVAIN","NIGHT BILLARD CLUB"]
["156145Y","MORET GERARD","BILLARD CLUB DE VILLEFRANCHE"]
["126041T","MORIN ANTHONY","BILLARD CLUB 109"]
["135928A","MORLIN GUY","CLUB DE BILLARD MONTBRISONNAIS"]
["119786E","MOSSE PAUL","ACADEMIE BILLARD OUEST LYONNAIS"]
["137576K","MOUGIN NICOLAS","BILLARD CLUB 109"]
["163262J","MOUGIN PIERRE","ACADEMIE DE BILLARD DE CHASSIEU"]
["129872C","MOULARD ANDRE","BILLARD CLUB DE LA PLAINE DU FOREZ"]
["016168W","MOUNIER ARMAND","CLUB DE BILLARD MONTBRISONNAIS"]
["144945V","MOUTMIR HAMZA","VEYRE-MONTON BILLARD CLUB"]
["157225X","MOUTON ALAIN","CERCLE DES CHEFS D ATELIER"]
["PS004334L","MUJEZINOVIC ILHANA","CLUB OMNISPORTS DE SAINT FONS"]
["153142J","MULA ANTOINE","CLUB OMNISPORTS DE SAINT FONS"]
["122566C","MULLER SYLVAIN","CHARLEMAGNE SNOOKER CLUB"]
["139035N","MUNOZ ROMAIN","CLUB CHAMBERIEN DE BILLARD"]
["104678C","MURANTE SYLVIO","BILLARD CLUB 8 POOL EVIAN"]
["103682U","MUSSET OLIVIER","BILLARD CLUB PONTOIS"]
["164207L","MUSTO CAMILLE","ACADEMIE DE BILLARD DE CHASSIEU"]
["113210G","MUTILLOD GABRIEL","CERCLE DES CHEFS D ATELIER"]
["015851R","MUZEAU PATRICK","BILLARD CLUB ROMANAIS PEAGEOIS"]
["PS004251W","NAGGACHE BESSENAY CHANELLE","CLUB OMNISPORTS DE SAINT FONS"]
["119332S","NAKANO LAURENT","BILLARD CLUB LYONNAIS 8 POOL"]
["151982Y","NARJOUX MICHEL","ACADEMIE BILLARD OUEST LYONNAIS"]
["PS004337P","NASSER KASEY","CLUB OMNISPORTS DE SAINT FONS"]
["162464R","NAVEL ANGELIQUE","BILLARD CLUB PONTOIS"]
["101038C","NEBOIT OLIVIER","LE BLACKBALL MARSANNAIS"]
["137273T","NEIMER JOELLE","BILLARD CLUB DE GAILLARD"]
["160328V","NEUPLANCHE JEAN PIERRE","ACADEMIE DE BILLARD D AUBENAS"]
["150632F","NGAMENI ANACLET","BILLARD CLUB AMICALE CHAPELON"]
["PS004252X","NGUYEN HUGO","CLUB OMNISPORTS DE SAINT FONS"]
["138325F","NGUYEN MICHEL","NIGHT BILLARD CLUB"]
["146544I","NIBAULT CLAUDE","BILLARD CLUB DE GAILLARD"]
["107707P","NICOLAS PIERRE","BILLARD CLUB GRENOBLOIS"]
["164514V","NICOLE CHRISTOPHE","VALENCE BILLARD CLUB"]
["153712D","NOCERA GIUSEPPE","NIGHT BILLARD CLUB"]
["149690G","NOEL ROLAND","ACADEMIE DE BILLARD DE LA VALSERINE"]
["130071T","NOUTS CLAUDE","B.S.CLERMONTOIS"]
["117673X","ODOUARD DANIEL","BILLARD CLUB ROMANAIS PEAGEOIS"]
["147707B","OGIER STEPHANE","CHARLEMAGNE SNOOKER CLUB"]
["143526G","OLLIVIER FRANCK","LE TAPIS VERT ROANNAIS"]
["155904L","ORENES LERMA JACKY","BILLARD CLUB PONTOIS"]
["154378C","ORSAL SERGE","ACADEMIE ANNECIENNE DE BILLARD"]
["150744C","OSSONA HERVE","ACADEMIE ANNECIENNE DE BILLARD"]
["165120D","OSTERNAUD JEAN JACQUES","ACADEMIE ANNECIENNE DE BILLARD"]
["138986Q","OTHMANI SAIF EDDINE","BILLARD CLUB LYONNAIS 8 POOL"]
["PS004340S","OTMANI JAWAD","CLUB OMNISPORTS DE SAINT FONS"]
["124310E","OUZEAU VINCENT","CLUB CHAMBERIEN DE BILLARD"]
["119127V","OX KOSTA","ACADEMIE DE BILLARD D AUBENAS"]
["162867E","OYONARTE GERARD","BILLARD CLUB ROMANAIS PEAGEOIS"]
["PS004253Y","OZER ALI OSMAN","CLUB OMNISPORTS DE SAINT FONS"]
["PS004342V","OZTURK EYYUB EMRE","CLUB OMNISPORTS DE SAINT FONS"]
["011065P","PACE JULIEN","B.S.CLERMONTOIS"]
["011051B","PACE MICHEL","B.S.CLERMONTOIS"]
["153140G","PAGES BERTRAND","CHARLEMAGNE SNOOKER CLUB"]
["112499X","PAGNAN ALBERT","ASS. SPORTIVE MUNICIPALE ST ETIENNE"]
["PS004343W","PAILLASSON ABIGAIL","CLUB OMNISPORTS DE SAINT FONS"]
["155510H","PALADEL NEIL","BILLARD STELLA THONON"]
["116718E","PALETTE FABRICE","BILLARD CLUB 109"]
["015956S","PALOMBO ENZO","ACADEMIE DE BILLARD DE CHASSIEU"]
["101010A","PANTEL BERNARD","A.B. DE BOURGOIN-JALLIEU"]
["163046Z","PAPET PATRICK","ACADEMIE DE BILLARD DE CHASSIEU"]
["153572B","PAPILLON EMILIE","VALENCE BILLARD CLUB"]
["107365L","PAPILLON FREDERIC","VALENCE BILLARD CLUB"]
["119744O","PAPIN LAETITIA","LE BLACKBALL MARSANNAIS"]
["015762G","PAQUIEN JEAN MICHEL","CLUB CHAMBERIEN DE BILLARD"]
["106475F","PAQUIER CHARLES","BILLARD CLUB GRENOBLOIS"]
["158398X","PARDO RAMON","NIGHT BILLARD CLUB"]
["152146B","PARMENTIER TEDDY","BLACKBALL BILLARD CLUB BESAYES 26"]
["102280W","PASTOR BRUNO","BILLARD CLUB DE GAILLARD"]
["116303F","PATTY ALAIN","ACADEMIE ANNECIENNE DE BILLARD"]
["155907P","PAUFIQUE JEAN PAUL","GROUPE SPORTIF LUGDUNUM"]
["150007B","PAUVERT JEAN LOUIS","BILLARD CLUB ROMANAIS PEAGEOIS"]
["127241X","PEDAT CHRISTELLE","BILLARD CLUB 8 POOL EVIAN"]
["162930Y","PEDROTTI LIONEL","BILLARD CLUB ROMANAIS PEAGEOIS"]
["113890K","PENDZIALEK CHRISTIAN","BILLARD STELLA THONON"]
["153046E","PENNEC JEAN CLAUDE","CERCLE DES CHEFS D ATELIER"]
["160163Q","PERBET ELIOT","BILLARD CLUB LYONNAIS 8 POOL"]
["015936Y","PERES CLAUDE","Licenciés indépendants 69"]
["124581P","PEREZ RAYMOND","CHARLEMAGNE SNOOKER CLUB"]
["139088O","PERGE PIERRE","ACADEMIE BILLARD OUEST LYONNAIS"]
["164515W","PERICAUD MARISETTE","VALENCE BILLARD CLUB"]
["157347E","PERICAUD ROLAND","VALENCE BILLARD CLUB"]
["148472H","PERILLAT WEIBERG PATRICIA","CERCLE DES CHEFS D ATELIER"]
["139580M","PERILLAT YVES","CERCLE DES CHEFS D ATELIER"]
["162802J","PERRET LOUISE","CLUB DE BILLARD MONTBRISONNAIS"]
["145636K","PERRET OLIVIER","CLUB DE BILLARD MONTBRISONNAIS"]
["015952O","PERRET PHILIPPE","ACADEMIE ANNECIENNE DE BILLARD"]
["145631F","PERRET RICHARD","CLUB DE BILLARD MONTBRISONNAIS"]
["152573Q","PERRIER GERARD","SAINT CHAMOND BILLARD CLUB"]
["016459B","PERROUX DENIS","LA CARAMBOLE LISSILOISE"]
["163132S","PERUS ERIC ALAIN","LES SQUALES"]
["145116K","PESSIA FULVIO","ACADEMIE DE BILLARD DE CHASSIEU"]
["158165T","PETIT CHRISTOPHE","BILLARD STELLA THONON"]
["016075H","PETIT RENE","ACAD. DE BILLARD DE SAINT-ETIENNE"]
["165046Y","PETRETTA ROBERT","CERCLE DES CHEFS D ATELIER"]
["163876B","PEYRARD ARTHUR","ACAD. DE BILLARD DE SAINT-ETIENNE"]
["160249J","PEYRARD GUILLAUME","ACADEMIE DE BILLARD DE CHASSIEU"]
["163264L","PEYREAUD DENIS","BILLARD STELLA THONON"]
["145225P","PEYRET MARCEL","ACADEMIE ANNECIENNE DE BILLARD"]
["160979C","PFIRSCH MARTINE","ACADEMIE BILLARD OUEST LYONNAIS"]
["138176M","PHILIBERT GEORGES","BILLARD CLUB DE SAINT-GALMIER"]
["146311J","PHILIPPON FRANCOIS","CERCLE DES CHEFS D ATELIER"]
["153152V","PHONGSY PHOXAY","BILLARD CLUB LYONNAIS 8 POOL"]
["016239P","PIALLAT RENE","CLUB DE BILLARD MONTBRISONNAIS"]
["010991T","PICANDET RENE","BILLARD CLUB ST ELOY"]
["127269Z","PICKETT THOMAS","ASSOCIATION DU LAKE PUB 74"]
["145348I","PILLOT VINCENT","BILLARD CLUB PONTOIS"]
["163102K","PINATEL FRANCOIS","CHARLEMAGNE SNOOKER CLUB"]
["112468S","PINET FRANCOIS","BILLARD CLUB ROMANAIS PEAGEOIS"]
["163922B","PINTE THEO","ASSOCIATION DU LAKE PUB 74"]
["142708U","PITHOUD MAURICE","ACADEMIE ANNECIENNE DE BILLARD"]
["016019D","PLANCHET MARCEL","ASS. SPORTIVE MUNICIPALE ST ETIENNE"]
["163536G","PLAT DIDIER","BILLARD CLUB ROMANAIS PEAGEOIS"]
["159584L","PLAT PIERRICK","CLUB DE BILLARD MONTBRISONNAIS"]
["015895J","PLUVINAGE JEAN CLAUDE","BILLARD STELLA THONON"]
["145374I","POCHON JACQUES","BILLARD CLUB ROMANAIS PEAGEOIS"]
["106254S","POCINHO MARIO","BILLARD CLUB 109"]
["141348M","PODESZWA GHISLAIN","ACADEMIE BILLARD OUEST LYONNAIS"]
["140818C","POGGI GERARD","BILLARD CLUB ROMANAIS PEAGEOIS"]
["153780C","POIROT THOMAS","BILLARD CLUB ROMANAIS PEAGEOIS"]
["100936E","POIX JEAN LUDOVIC","BILLARD CLUB PONTOIS"]
["127284O","POIZAT JEAN CLAUDE","ACADEMIE BILLARD OUEST LYONNAIS"]
["PS004427M","POLI ANIS","CLUB OMNISPORTS DE SAINT FONS"]
["154624V","POMMIER LUDOVIC","ACADEMIE DE BILLARD DE CHASSIEU"]
["164779H","PONCELAT GABRIEL","CERCLE DES CHEFS D ATELIER"]
["015119N","PONCET FRANCIS","BILLARD CLUB PONTOIS"]
["015764I","PONCET JEAN LUC","BILLARD CLUB GRENOBLOIS"]
["162964K","PONCET ROBERT","SAINT CHAMOND BILLARD CLUB"]
["161322A","PONTONNIER ANNIE","ACADEMIE ANNECIENNE DE BILLARD"]
["143194M","PONTONNIER REMY","ACADEMIE ANNECIENNE DE BILLARD"]
["011061L","PONTRUCHER PIERRE RICHARD","B.S.CLERMONTOIS"]
["146437F","PORTES BERNARD","CLUB DE BILLARD MONTBRISONNAIS"]
["132949L","PORTUGUES RICHARD","ACADEMIE DE BILLARD DE CHASSIEU"]
["131278E","POTIQUET SEBASTIEN","BILLARD CLUB DE BOURG EN BRESSE"]
["117801V","POULALIER PAUL","LE TAPIS VERT ROANNAIS"]
["146252C","POULY ANTOINE","CLUB CHAMBERIEN DE BILLARD"]
["112505D","POUPON MICHEL","ACADEMIE ANNECIENNE DE BILLARD"]
["146189R","POUZET ERIC","ACAD. DE BILLARD DE SAINT-ETIENNE"]
["130058G","POZZANI CEDRIC","BILLARD CLUB AIXOIS"]
["101033X","PRAL LAURENT","BLACKBALL BILLARD CLUB BESAYES 26"]
["016393N","PREBET DANIELLE","BILLARD CLUB AMICALE CHAPELON"]
["121521X","PRETAT MICHEL","AMIC.SPOR.MONTMARAULTOISE BILLARD"]
["145115J","PREVIATI GUY","ACADEMIE DE BILLARD DE CHASSIEU"]
["163244P","PREVOST PATRICK","AMIC.SPOR.MONTMARAULTOISE BILLARD"]
["143023X","PREYNAT JEAN LOUIS","ASS. SPORTIVE MUNICIPALE ST ETIENNE"]
["016498O","PREYNAT MAURICE","ACAD. DE BILLARD DE SAINT-ETIENNE"]
["161423K","PREZ OLIVIER","ASSOCIATION DU LAKE PUB 74"]
["016255F","PRIVAT PAUL","ACADEMIE DE BILLARD D AUBENAS"]
["015944G","PRUVOST JEAN LOUIS","CLUB OMNISPORTS DE SAINT FONS"]
["154625W","QUENOT PATRICK","ACADEMIE DE BILLARD DE CHASSIEU"]
["158001Q","QUESTIER GERALD","VALENCE BILLARD CLUB"]
["153955S","QUOTUREL MICHEL","ACADEMIE ANNECIENNE DE BILLARD"]
["164191T","RACHEL BOISGIBAULT","ACADEMIE BILLARD OUEST LYONNAIS"]
["153571A","RACHON CHRISTIAN","VALENCE BILLARD CLUB"]
["160595K","RAMBEAU PHILIPPE","ACAD. DE BILLARD DE SAINT-ETIENNE"]
["159822V","RAMOND VANESSA","BIG BEN BLACKBALL"]
["140565J","RANCHON BERNARD","ASS. SPORTIVE MUNICIPALE ST ETIENNE"]
["140564I","RANCHON JEAN FRANCOIS","ASS. SPORTIVE MUNICIPALE ST ETIENNE"]
["130075X","RASCLE PIERRE","ACAD. DE BILLARD DE SAINT-ETIENNE"]
["150693X","RAUNET PASCALE","CERCLE DES CHEFS D ATELIER"]
["164782L","RAY TIMOTHEE","CERCLE DES CHEFS D ATELIER"]
["150948Z","RAY VINCENT","BILLARD CLUB DE CLARAFOND ARCINE"]
["130103Z","RAYMOND DENIS","BILLARD CLUB DE GAILLARD"]
["129888S","RAYMOND SERGE","ACADEMIE DE BILLARD DE HAUTE LOIRE"]
["149786L","REBBOH LOUIS","ACAD. DE BILLARD DE SAINT-ETIENNE"]
["PS004123G","REBOUX BAPTISTE","CLUB DE BILLARD MONTBRISONNAIS"]
["152167Z","REDON VALERIE","NIGHT BILLARD CLUB"]
["153783F","REFASSI ABDELGHANI","BILLARD CLUB ROMANAIS PEAGEOIS"]
["107514E","REIS COELHO FERNANDO","B.S.CLERMONTOIS"]
["100917L","REMISE PIERRE","ACADEMIE ANNECIENNE DE BILLARD"]
["132958U","RENAUT DIDIER","CLUB OMNISPORTS DE SAINT FONS"]
["129062Y","RENNESSON RICHARD","BILLARD CLUB ROMANAIS PEAGEOIS"]
["158193Z","REVERCHON BERNARD","CLUB CHAMBERIEN DE BILLARD"]
["145618S","REYMOND PIERRE","CLUB CHAMBERIEN DE BILLARD"]
["PS004344X","REZIG JENA","CLUB OMNISPORTS DE SAINT FONS"]
["016475R","RIBES MAURICE","AMICALE BILLARD CLUB DE DAVEZIEUX"]
["145620U","RICHARD RAYMOND","ACADEMIE BILLARD OUEST LYONNAIS"]
["159121H","RICHET MORGAN","BIG BEN BLACKBALL"]
["155134Z","RICHIER ROGER","SAINT CHAMOND BILLARD CLUB"]
["162959E","RIGAL YOHAN","BILLARD CLUB ISSOIRE"]
["144942S","RIGAUD KEVIN","BILLARD CLUB ST ELOY"]
["107702K","RIMLINGER MARC","BILLARD CLUB 109"]
["015879T","RIONDEL RENE","BILLARD CLUB GRENOBLOIS"]
["136090G","RIVATON PHILIPPE","BILLARD CLUB DE SAINT-GALMIER"]
["156431J","RIVOLIER EMILE","LE TAPIS VERT ROANNAIS"]
["124571F","ROBERT DENIS","ACADEMIE DE BILLARD DE HAUTE LOIRE"]
["163038Q","ROBERT HENRY","B.S.CLERMONTOIS"]
["016202E","ROBERTON PIERRE","GROUPE SPORTIF LUGDUNUM"]
["140694I","ROBEZ FLORENT","NIGHT BILLARD CLUB"]
["164275K","ROCCI BERNARD","CLUB CHAMBERIEN DE BILLARD"]
["107357D","ROCHE GUY","AMICALE BILLARD CLUB DE DAVEZIEUX"]
["145519X","ROCHERIEUX PASCAL","VALENCE BILLARD CLUB"]
["164185M","ROCHIGNEUX MICHEL","CLUB DE BILLARD MONTBRISONNAIS"]
["121509L","RODDIER PATRICK","B.S.CLERMONTOIS"]
["122802E","RODRIGUEZ STEPHANIE","BILLARD CLUB 109"]
["011005H","ROESCH PHILIPPE","BILLARD CLUB MONTLUCONNAIS"]
["163163B","ROFFAT PASCAL","CERCLE DES CHEFS D ATELIER"]
["157067A","ROIG MICHEL","ACADEMIE DE BILLARD D AUBENAS"]
["145118M","ROLET LILIAN","BILLARD CLUB LYONNAIS 8 POOL"]
["119753X","ROLHION DANIEL","ACADEMIE DE BILLARD DE HAUTE LOIRE"]
["140791B","ROMAND ALAIN","ACADEMIE ANNECIENNE DE BILLARD"]
["127378E","ROPARS PATRICK","A.B. DE BOURGOIN-JALLIEU"]
["132526E","ROQUES ALAIN","ACADEMIE BILLARD OUEST LYONNAIS"]
["160186Q","ROSENBERGER MAIA","CERCLE DES CHEFS D ATELIER"]
["165315Q","ROTTA BORI TIAGO","CERCLE DES CHEFS D ATELIER"]
["160698X","ROUGET DANIEL","ACADEMIE DE BILLARD DE LA VALSERINE"]
["151374M","ROURE CEDRIC","CERCLE DES CHEFS D ATELIER"]
["011085J","ROUSSEL CHRISTOPHE","BILLARD CLUB MONTLUCONNAIS"]
["142699L","ROUSSEL CHRISTOPHE","BILLARD CLUB DE VILLEFRANCHE"]
["164182J","ROUSSELLE MATHIAS","CLUB DE BILLARD MONTBRISONNAIS"]
["155685Y","ROUSSELOT JEAN MARC","ACADEMIE ANNECIENNE DE BILLARD"]
["161723L","ROUX ISABELLE","ACADEMIE ANNECIENNE DE BILLARD"]
["100942K","ROUX JULIEN","BILLARD CLUB 109"]
["158738R","ROYET THOMAS","SAINT CHAMOND BILLARD CLUB"]
["156252P","ROZIER MYRIAM","NIGHT BILLARD CLUB"]
["157789K","RUFFET FREDERIC","B.S.CLERMONTOIS"]
["164519A","RUIZ JEAN LOUIS","VALENCE BILLARD CLUB"]
["163985V","RUIZ SEBASTIEN","BLACKBALL BILLARD CLUB BESAYES 26"]
["114964S","RUZ SEBASTIEN","Licenciés indépendants 69"]
["016301Z","SABOT MICHAEL","CLUB DE BILLARD MONTBRISONNAIS"]
["119751V","SABY FREDERIC","BILLARD CLUB DE GAILLARD"]
["154425D","SABY JANA","CERCLE DES CHEFS D ATELIER"]
["165152N","SABY LIAM","CERCLE DES CHEFS D ATELIER"]
["121104W","SACHOT CYRIL","ASSOCIATION DU LAKE PUB 74"]
["159349F","SAGNES JOSE","BIG BEN BLACKBALL"]
["015832Y","SAILLANT PHILIPPE","CERCLE DES CHEFS D ATELIER"]
["PS004254Z","SAILLARD MELISSA","CLUB OMNISPORTS DE SAINT FONS"]
["146545J","SALTIK HUSEYIN","BILLARD CLUB DE GAILLARD"]
["122795X","SAMBEAT JEAN CLAUDE","CLUB CHAMBERIEN DE BILLARD"]
["015877R","SANCHEZ JOSE","ACADEMIE BILLARD OUEST LYONNAIS"]
["107511B","SANVOISIN CHRISTIAN","BILLARD CLUB MOULINS"]
["157261L","SAPOUMTZOGLOU ACHILLE","ACADEMIE BILLARD OUEST LYONNAIS"]
["165235D","SARAZIN LOUIS PIERRE","AMICALE BILLARD CLUB DE DAVEZIEUX"]
["143028C","SARIAN PIERRE","ACADEMIE DE BILLARD D AUBENAS"]
["135591B","SAULNIER MATHIEU","BIG BEN BLACKBALL"]
["164716P","SAUNIER BENOIT","ACADEMIE DE BILLARD D AUBENAS"]
["153597D","SAUZON MARC","BILLARD CLUB ROMANAIS PEAGEOIS"]
["015357R","SAVOLDELLI RENE","BILLARD CLUB SAINT ROMANAIS"]
["127551V","SAVONET VALERIE","LES SQUALES"]
["PS004345Y","SAYADI SHAMSEDINE","CLUB OMNISPORTS DE SAINT FONS"]
["153316Y","SCANDELLA CEDRIC","BILLARD CLUB LYONNAIS 8 POOL"]
["130083F","SCHAFFRAN CLAUDE","CERCLE DES CHEFS D ATELIER"]
["154058E","SCHAFFRAN SEBASTIEN","CERCLE DES CHEFS D ATELIER"]
["139212I","SCHMIT ALEXANDRE","CERCLE DES CHEFS D ATELIER"]
["164924Q","SCHOCH JEAN MARIE","VALENCE BILLARD CLUB"]
["163317T","SCHOCK ALAIN","CERCLE DES CHEFS D ATELIER"]
["121543T","SCHREIBER ROBERT","LE TAPIS VERT ROANNAIS"]
["143525F","SCILY GERARD","LE TAPIS VERT ROANNAIS"]
["110146K","SEAN YOU SENG","BILLARD CLUB LYONNAIS 8 POOL"]
["PS004346Z","SEBIHI ABDELRAHMAN","CLUB OMNISPORTS DE SAINT FONS"]
["PS004255A","SEKOUR INES","CLUB OMNISPORTS DE SAINT FONS"]
["145232W","SENES A MARIO","ASSOCIATION DU LAKE PUB 74"]
["156280V","SIBELLIN GERARD","ACADEMIE DE BILLARD DE CHASSIEU"]
["155850C","SIERRA JUAN","ACADEMIE DE BILLARD DE CHASSIEU"]
["149995N","SILLANS PATRICK","CERCLE DES CHEFS D ATELIER"]
["163544Q","SILVESTRE JEAN PAUL","CLUB CHAMBERIEN DE BILLARD"]
["101011B","SIMON ROBERT","A.B. DE BOURGOIN-JALLIEU"]
["147486L","SINIGAGLIA JEAN PAUL","ACADEMIE DE BILLARD DE CHASSIEU"]
["165306F","SION XAVIER","BILLARD CLUB MOULINS"]
["011120S","SIVADE GERARD","AMIC.SPOR.MONTMARAULTOISE BILLARD"]
["PS004256B","SKANDRANI QACIM","CLUB OMNISPORTS DE SAINT FONS"]
["157214K","SOCKEEL AURORE","BILLARD CLUB DE CLARAFOND ARCINE"]
["159065X","SOCKEEL MARIE PIERRE","BILLARD CLUB DE CLARAFOND ARCINE"]
["159064W","SOCKEEL YANNICK","BILLARD CLUB DE CLARAFOND ARCINE"]
["142707T","SOEHNLEN BRUNO","ACADEMIE ANNECIENNE DE BILLARD"]
["PS004122F","SOL GUILLAUME","CLUB DE BILLARD MONTBRISONNAIS"]
["015966C","SOLA ALBERT","LE TAPIS VERT ROANNAIS"]
["010980I","SOMAVILLA CLAUDE","B.S.CLERMONTOIS"]
["162609Z","SOMVEILLE DOMINIQUE","CLUB CHAMBERIEN DE BILLARD"]
["PS004257C","SONKENG JAYSON","CLUB OMNISPORTS DE SAINT FONS"]
["153573C","SONNES JACQUES","VALENCE BILLARD CLUB"]
["128998M","SOPIC NICOLAS","NIGHT BILLARD CLUB"]
["153543V","SORU IGNACIO","CLUB CHAMBERIEN DE BILLARD"]
["PS004347A","SOUADI SEFANA","CLUB OMNISPORTS DE SAINT FONS"]
["164925R","SOUCHE GUILLAUME","VALENCE BILLARD CLUB"]
["138317X","SOULIER DANIEL","ACAD. DE BILLARD DE SAINT-ETIENNE"]
["016058Q","SOURBE HENRI","BILLARD STELLA THONON"]
["153073J","SPANGENBERG ALAIN","BILLARD CLUB GRENOBLOIS"]
["159772Q","STAFFENT NICOLE","BILLARD CLUB DE GAILLARD"]
["165321X","STEENHAUT CLEMENTINE","EIGHT'S POOL GAME"]
["158168X","SUARD FRANCOISE","BILLARD STELLA THONON"]
["160862A","SUAREZ GENEYNE COLDO","CERCLE DES CHEFS D ATELIER"]
["136039H","SUCHAUT ANTOINE","CLUB DE BILLARD MONTBRISONNAIS"]
["138185V","SUCHAUT THIERRY","SAINT CHAMOND BILLARD CLUB"]
["156581X","SUDARA BRUNO","CLUB CHAMBERIEN DE BILLARD"]
["153122M","SURY GABRIEL","CLUB DE BILLARD MONTBRISONNAIS"]
["126321N","TACHOIRE ADRIEN","ACADEMIE ANNECIENNE DE BILLARD"]
["126326S","TACHOIRE THIERRY","ACADEMIE ANNECIENNE DE BILLARD"]
["153322E","TAILLARDAT MICHEL","B.S.CLERMONTOIS"]
["157200V","TALLON JEAN CLAUDE","BILLARD CLUB MONTLUCONNAIS"]
["152852T","TARTARIN MICHEL","BILLARD CLUB DE GAILLARD"]
["101079R","TASCA ANDRE","BILLARD CLUB 109"]
["156368Q","TASSET JEROME","CLUB CHAMBERIEN DE BILLARD"]
["015854U","TATIER ERIC","VALENCE BILLARD CLUB"]
["117797R","TAVERNA DANIEL","BILLARD CLUB GRENOBLOIS"]
["128999N","TEBBANI AZIZ","NIGHT BILLARD CLUB"]
["164859V","TERMOZ ROBERT","LA CARAMBOLE LISSILOISE"]
["159649G","TERNOY PASCAL","BILLARD CLUB GRENOBLOIS"]
["100899T","TERRADE MARC","BILLARD CLUB DE LA PLAINE DU FOREZ"]
["140833R","TESSIER AURELIEN","BILLARD CLUB 109"]
["160782N","TESTUD FABIAN","LES SQUALES"]
["PS004348B","TETE AXEL","CLUB OMNISPORTS DE SAINT FONS"]
["132938A","TEYSSIER SERGE","SAINT CHAMOND BILLARD CLUB"]
["159858J","THANH TRAN","BILLARD CLUB ALBERTVILLE"]
["153187H","THENET JESSY","NIGHT BILLARD CLUB"]
["154976C","THIERION DIDIER","CERCLE DES CHEFS D ATELIER"]
["146111R","THINON JEROME","ACADEMIE DE BILLARD D AUBENAS"]
["157148N","THIOT PHILIPPE","BILLARD CLUB GRENOBLOIS"]
["162873L","THIVOLLE CECILE","BILLARD CLUB ROMANAIS PEAGEOIS"]
["162874M","THIVOLLE JEAN LOUIS","BILLARD CLUB ROMANAIS PEAGEOIS"]
["164150Z","TIOLLIER BRUNO","CERCLE DES CHEFS D ATELIER"]
["127380G","TISSOT ROGER","LE TAPIS VERT ROANNAIS"]
["016480W","TOME ERIC","BILLARD CLUB AMICALE CHAPELON"]
["165153P","TONNARD CROCI ALFRED","CERCLE DES CHEFS D ATELIER"]
["162870H","TOURAINE PATRICE","BILLARD CLUB ROMANAIS PEAGEOIS"]
["153958W","TOURNU GERARD","ACADEMIE ANNECIENNE DE BILLARD"]
["PS004349C","TRABELSI MOHAMED","CLUB OMNISPORTS DE SAINT FONS"]
["152028Y","TRABICHET CHRISTOPHE","BILLARD CLUB 8 POOL EVIAN"]
["162070N","TRIPLET FREDERIC","CLUB CHAMBERIEN DE BILLARD"]
["137228A","TROQUET BERNARD","CLUB CHAMBERIEN DE BILLARD"]
["158002R","TROTEMANN PIERRE","VALENCE BILLARD CLUB"]
["152601W","TRUANT SEBASTIEN","CERCLE DES CHEFS D ATELIER"]
["101056U","TSAN SAP NHI","BILLARD CLUB LYONNAIS 8 POOL"]
["107037V","TURCAN FREDERIC","BILLARD CLUB ROMANAIS PEAGEOIS"]
["124277X","TURPIN MARC","BILLARD CLUB VICHY"]
["016355B","TUZZOLINO CLAUDE","CERCLE DES CHEFS D ATELIER"]
["138326G","URAY JIMMY","NIGHT BILLARD CLUB"]
["136036E","URICA GERARD","ACADEMIE ANNECIENNE DE BILLARD"]
["160749C","VACHER JEAN CLAUDE","BILLARD CLUB DE SAINT-GALMIER"]
["158166V","VACHERAND JEAN PIERRE","BILLARD STELLA THONON"]
["143251R","VACOSSIN NICOLAS","VEYRE-MONTON BILLARD CLUB"]
["149397N","VACUS KEVIN","VEYRE-MONTON BILLARD CLUB"]
["137570E","VADILLO CHRISTELLE","BLACKBALL BILLARD CLUB BESAYES 26"]
["137569D","VADILLO LAURENT","BLACKBALL BILLARD CLUB BESAYES 26"]
["145516U","VALENTIN JEAN MARC","ACAD. DE BILLARD DE SAINT-ETIENNE"]
["016053L","VALLAT DANIEL","ACAD. DE BILLARD DE SAINT-ETIENNE"]
["151475X","VALLET STEPHANE","BILLARD CLUB PONTOIS"]
["149954T","VALLIN GERARD","AMICALE BILLARD CLUB DE DAVEZIEUX"]
["156333C","VALLOT PATRICE","BILLARD CLUB DE BOURG EN BRESSE"]
["156334D","VALLOT ROMAIN","BILLARD CLUB DE BOURG EN BRESSE"]
["108606E","VALLUIS NORBERT","CHARLEMAGNE SNOOKER CLUB"]
["153574D","VAN DE BUNDERIE MICHEL","VALENCE BILLARD CLUB"]
["162871J","VAN DER HEYDEN JOHN","BILLARD CLUB ROMANAIS PEAGEOIS"]
["165156S","VANDERHEYDEN TOBIAS","CERCLE DES CHEFS D ATELIER"]
["152287E","VAPILLON DANIEL","NIGHT BILLARD CLUB"]
["149128W","VARIGNIER JACQUES","ACADEMIE ANNECIENNE DE BILLARD"]
["015737H","VARLOT HENRI","CERCLE DES CHEFS D ATELIER"]
["022457T","VAUDAY PATRICK","BILLARD CLUB PONTOIS"]
["161663W","VAUTEY JOACHIM","CERCLE DES CHEFS D ATELIER"]
["153999Q","VEILLON CORINNE","SAINT CHAMOND BILLARD CLUB"]
["100863J","VENDITTELLI FABIO","ACADEMIE BILLARD OUEST LYONNAIS"]
["163772N","VENET TANGUY","CLUB CHAMBERIEN DE BILLARD"]
["122467H","VENNI FABRICE","BILLARD CLUB DE GAILLARD"]
["109048E","VERDIER JACQUES","CERCLE DES CHEFS D ATELIER"]
["144938O","VERDIER NICOLAS","BILLARD CLUB ST ELOY"]
["129899D","VERDY MICHEL","B.S.CLERMONTOIS"]
["100019X","VERNEDAL LIONEL","BILLARD CLUB DE SAINT-GALMIER"]
["015919H","VERNET DANIEL","VALENCE BILLARD CLUB"]
["151151V","VERON PATRICK","BILLARD CLUB MOULINS"]
["139036O","VERPILLIER ROBERT","CLUB CHAMBERIEN DE BILLARD"]
["016153H","VERSCHOORIS BRUNO","BILLARD CLUB AIXOIS"]
["122481V","VERYSER CLAUDE","LA CARAMBOLE LISSILOISE"]
["164209N","VEYRE DAMIEN","ACADEMIE ANNECIENNE DE BILLARD"]
["163773P","VEYRON MYLENE","CLUB CHAMBERIEN DE BILLARD"]
["163774Q","VEYRON THOMAS","CLUB CHAMBERIEN DE BILLARD"]
["154026V","VIALLE ANDRE","VALENCE BILLARD CLUB"]
["136032A","VIALLEFONT BERNARD","ACADEMIE BILLARD OUEST LYONNAIS"]
["133591D","VIDAL DANIEL","ACADEMIE DE BILLARD DE CHASSIEU"]
["015824Q","VIDON GERARD","GROUPE SPORTIF LUGDUNUM"]
["164719S","VIELFAURE CECILE","ACADEMIE DE BILLARD D AUBENAS"]
["141017T","VIGLIANO GERARD","BILLARD CLUB VICHY"]
["164043H","VIGNIER NICOLAS","CERCLE DES CHEFS D ATELIER"]
["137422M","VIGUIER FRANCK","BILLARD CLUB VICHY"]
["157080P","VILA VERDE EZEQUIEL","VEYRE-MONTON BILLARD CLUB"]
["160111J","VILETTE LAURENT","BILLARD CLUB MOULINS"]
["117633J","VILLECHENOUX JEAN PHILIPPE","CERCLE DES CHEFS D ATELIER"]
["164111G","VILLEMAGNE ALAIN","ACAD. DE BILLARD DE SAINT-ETIENNE"]
["141470E","VILLENEUVE PATRICK","BILLARD STELLA THONON"]
["162918K","VIMAL ALAIN","BILLARD CLUB DE VILLEFRANCHE"]
["020752E","VIMEUX SYLVAIN","BILLARD CLUB DE GAILLARD"]
["112529B","VINAY MICHEL","BILLARD CLUB ROMANAIS PEAGEOIS"]
["134038I","VINCENT CHRISTIAN","BILLARD CLUB MOULINS"]
["114033X","VINCENT LAURENT","CHARLEMAGNE SNOOKER CLUB"]
["145233X","VINCENT PASCAL","ASSOCIATION DU LAKE PUB 74"]
["016150E","VINCENT RENE","LA CARAMBOLE LISSILOISE"]
["151045E","VINOT FRANCOIS","BILLARD CLUB GRENOBLOIS"]
["101045J","VIOSSAT DAVID","BILLARD CLUB ROMANAIS PEAGEOIS"]
["119773R","VIOT MICHEL","BILLARD CLUB ROMANAIS PEAGEOIS"]
["123367X","VIRGA JOEL","VEYRE-MONTON BILLARD CLUB"]
["162965L","VIRICEL BERNARD","SAINT CHAMOND BILLARD CLUB"]
["150312H","VIRICEL BRUNO","BILLARD CLUB DE SAINT-GALMIER"]
["159885N","VIRTZ MARC","CHARLEMAGNE SNOOKER CLUB"]
["164297J","VOUILLAT HUBERT","ACADEMIE DE BILLARD DE LA VALSERINE"]
["142217X","VOVELLE LOUIS","CERCLE DES CHEFS D ATELIER"]
["133657R","VRAUX JACQUES","BILLARD CLUB ROMANAIS PEAGEOIS"]
["160256R","VUARCHEX MICHEL","ACADEMIE ANNECIENNE DE BILLARD"]
["126051D","WEILL GILBERT","BILLARD CLUB ALBERTVILLE"]
["164881T","WIBEAUX GILLES","CERCLE DES CHEFS D ATELIER"]
["155590V","WILLIAMS ARIANE","BILLARD CLUB AIXOIS"]
["PS004258D","WILSON SYRIANE","CLUB OMNISPORTS DE SAINT FONS"]
["148310G","WOIGNIER ALBERT","BILLARD CLUB ROMANAIS PEAGEOIS"]
["PS004350D","ZAGHAR NOUR DJIHANE","CLUB OMNISPORTS DE SAINT FONS"]
["122472M","ZAPOTOCKY JEAN","BILLARD CLUB DE SAINT-GALMIER"]
["PS003250H","ZEMMALE ANAS","CLUB OMNISPORTS DE SAINT FONS"]
["164186N","ZHANG LEI","CLUB DE BILLARD MONTBRISONNAIS"]
["128168O","ZITO GAETAN","GROUPE SPORTIF LUGDUNUM"]
["0000BL1","BLANC 1"]
["0000BL2","BLANC 2"]
["0000BL3","BLANC 3"]
["0000BL4","BLANC 4"]
["0000BL5","BLANC 5"]
["0000BL6","BLANC 6"]
["0000BL7","BLANC 7"]
["0000BL8","BLANC 8"]
["0000BL9","BLANC 9"]
["0000BL10","BLANC 10"]